Workbook

Sheet RATES (hidden)
E1: 2109 IPT / OPT ANALYSIS / 20191113 | J1: COUNTY 4 | K1: =VLOOKUP(L1,B$3:J$123,9,FALSE) | N1: Adair | O1: (DIST 00) | P1: Adair (DIST 00) | Q1: ADAI (DIST 00) | R1: Adair (Dist 00) | S1: 1.0899 | T1: 0.264235 | U1: INTRANSIT DISTRICT # | AE1: N/A's need to be corrected!! | AN1: (270) 384-3673 - Adair
A2: county #1 | B2: county | C2: county #2 | E2: COUNTY DISTRICT | F2: COUNTY | G2: vlookup vs Col A/B | H2: =right(E col, 2 spaces) | J2: COUNTY 4 | K2: Cty Vlook COL J | L2: Cty Vlook col m vs col a/b | M2: county#/DIST# | N2: county | O2: district | P2: count AND dist | Q2: count AND dist | R2: County/District TP drop | S2: Inventory | T2: In-Transit | U2: INTRANSIT DISTRICT # | AA2: f | AB2: =MAX(S3:S12000) -> 3.6851 | AE2: COUNTY | AF2: PHONE | AH2: COL n | AI2: COL o | AJ2: COL p | AK2: (BLANK) | AL2: COL n | AM2: BLANK | AN2: COL aa & " - " & COL Z | AQ2: COUNTy | AR2: RATE
A3: 001 | B3: Adair | C3: 001 | E3: 00100 | F3: 001 | G3: Adair | H3: 00 | J3: ADAI | K3: ADAI | L3: Adair | M3: 00100 | N3: Adair | O3: (DIST 00) | P3: Adair (DIST 00) | Q3: Adair (DIST 00) | R3: Adair (DIST 00) | S3: 1.0851 | T3: 0.2676 | V3: Adair (DIST 00) | W3: 1.0851 | X3: 0.2676 | AB3: Corporation | AE3: Adair | AF3: (270) 384-3673 | AH3: Adair | AI3: (DIST 00) | AJ3: Adair (DIST 00) | AL3: Adair | AN3: (270) 384-3673 | AP3: Adair (DIST 00) | AQ3: ADAI00 | AR3: 1.0851 | AS3: ADAI | AT3: Adair | AU3: 00 | AV3: Adair (DIST 00) | AZ3: Adair (DIST 00) | BA3: =VLOOKUP(AZ3,AP$3:AR$691,3,FALSE) -> 1.0851
A4: 002 | B4: Allen | C4: 002 | E4: 00101 | F4: 001 | G4: Adair | H4: 01 | J4: ALLE | K4: ADAI | L4: Adair | M4: 00101 | N4: Adair | O4: (DIST 01) | P4: Adair (DIST 01) | Q4: Adair (DIST 01) | R4: Adair (DIST 00) | S4: 1.0833 | T4: 0.2314 | V4: Adair (DIST 00) | W4: 1.0833 | X4: 0.2314 | AB4: Limited Liability Pass-Through Entity | AE4: Allen | AF4: (270) 237-3711 | AH4: Adair | AI4: (DIST 01) | AJ4: Adair (DIST 01) | AL4: Adair | AN4: (270) 384-3673 | AP4: Adair (DIST 01) | AQ4: ADAI01 | AR4: 1.3021 | AS4: ADAI | AT4: Adair | AU4: 01 | AV4: Adair (DIST 01) | AZ4: Adair (DIST 01) | BA4: =VLOOKUP(AZ4,AP$3:AR$691,3,FALSE) -> 1.3021
A5: 003 | B5: Anderson | C5: 003 | E5: 00150 | F5: 001 | G5: Adair | H5: 50 | K5: ADAI | L5: Adair | M5: UNKNOWN | N5: Adair | O5: (DIST UNKNOWN) | P5: (DIST UNKNOWN) | Q5: (DIST UNKNOWN) | R5: Adair (DIST 01) | S5: 1.2863 | T5: 0.2314 | V5: Adair (DIST 01) | W5: 1.2863 | X5: 0.2314 | AB5: General Partnership | AE5: Anderson | AF5: (502) 839-4061 | AH5: Adair | AI5: (DIST 50) | AJ5: Adair (DIST 50) | AL5: Adair | AN5: (270) 384-3673 | AP5: Allen (DIST 00) | AQ5: ALLE00 | AR5: 0.8797 | AS5: ALLE | AT5: Allen | AU5: 00 | AV5: Allen (DIST 00) | AZ5: Adair (UNKNOWN)
A6: 004 | B6: Ballard | C6: 004 | E6: 00200 | F6: 002 | G6: Allen | H6: 00 | J6: ANDE | K6: ALLE | L6: Allen | M6: 00200 | N6: Allen | O6: (DIST 00) | P6: Allen (DIST 00) | Q6: Allen (DIST 00) | R6: Adair (UNKNOWN) | S6: 1.0833 | T6: 0.2314 | V6: Adair (UNKNOWN) | W6: 1.0833 | X6: 0.2314 | AB6: Individual | AE6: Ballard | AF6: (270) 335-3400 | AH6: Allen | AI6: (DIST 00) | AJ6: Allen (DIST 00) | AL6: Allen | AN6: (270) 237-3711 | AP6: Allen (DIST 01) | AQ6: ALLE01 | AR6: 1.1097 | AS6: ALLE | AT6: Allen | AU6: 01 | AV6: Allen (DIST 01) | AZ6: Allen (DIST 00) | BA6: 0.8797
A7: 005 | B7: Barren | C7: 005 | E7: 00201 | F7: 002 | G7: Allen | H7: 01 | J7: BALL | K7: ALLE | L7: Allen | M7: 00201 | N7: Allen | O7: (DIST 01) | P7: Allen (DIST 01) | Q7: Allen (DIST 01) | R7: Allen (DIST 00) | S7: 0.8412 | T7: 0.188 | V7: Allen (DIST 00) | W7: 0.8412 | X7: 0.188 | AB7: Other | AE7: Barren | AF7: (270) 651-2026 | AH7: Allen | AI7: (DIST 01) | AJ7: Allen (DIST 01) | AL7: Allen | AN7: (270) 237-3711 | AP7: Anderson (DIST 00) | AQ7: ANDE00 | AR7: 0.971 | AS7: ANDE | AT7: Anderson | AU7: 00 | AV7: Anderson (DIST 00) | AZ7: Allen (DIST 01) | BA7: 1.1097
A8: 006 | B8: Bath | C8: 006 | E8: 00300 | F8: 003 | G8: Anderson | H8: 00 | K8: ALLE | L8: Allen | M8: UNKNOWN | N8: Allen | O8: (DIST UNKNOWN) | P8: (DIST UNKNOWN) | Q8: (DIST UNKNOWN) | R8: Allen (DIST 01) | S8: 1.0552 | T8: 0.188 | V8: Allen (DIST 01) | W8: 1.0552 | X8: 0.188 | AE8: Bath | AF8: (606) 674-6382 | AH8: Anderson | AI8: (DIST 00) | AJ8: Anderson (DIST 00) | AL8: Anderson | AN8: (502) 839-4061 | AP8: Anderson (DIST 02) | AQ8: ANDE02 | AR8: 1.1065 | AS8: ANDE | AT8: Anderson | AU8: 02 | AV8: Anderson (DIST 02) | AZ8: Allen (UNKNOWN)
A9: 007 | B9: Bell | C9: 007 | E9: 00302 | F9: 003 | G9: Anderson | H9: 02 | J9: BARR | K9: ANDE | L9: Anderson | M9: 00300 | N9: Anderson | O9: (DIST 00) | P9: Anderson (DIST 00) | Q9: Anderson (DIST 00) | R9: Allen (UNKNOWN) | S9: 0.8412 | T9: 0.188 | V9: Allen (UNKNOWN) | W9: 0.8412 | X9: 0.188 | AB9: YES | AC9: NO | AE9: Bell | AF9: (606) 337-2720 | AH9: Anderson | AI9: (DIST 02) | AJ9: Anderson (DIST 02) | AL9: Anderson | AN9: (502) 839-4061 | AP9: Ballard (DIST 00) | AQ9: BALL00 | AR9: 0.909 | AS9: BALL | AT9: Ballard | AU9: 00 | AV9: Ballard (DIST 00) | AZ9: Anderson (DIST 00) | BA9: 0.971
A10: 008 | B10: Boone | C10: 008 | E10: 00360 | F10: 003 | G10: Anderson | H10: 60 | J10: BATH | K10: ANDE | L10: Anderson | M10: 00302 | N10: Anderson | O10: (DIST 02) | P10: Anderson (DIST 02) | Q10: Anderson (DIST 02) | R10: Anderson (DIST 00) | S10: 0.929 | T10: 0.213 | V10: Anderson (DIST 00) | W10: 0.929 | X10: 0.213 | AB10: YES | AC10: NO | AE10: Boone | AF10: (859) 334-2181 | AH10: Anderson | AI10: (DIST 60) | AJ10: Anderson (DIST 60) | AL10: Anderson | AN10: (502) 839-4061 | AP10: Ballard (DIST 02) | AQ10: BALL02 | AR10: 1.283 | AS10: BALL | AT10: Ballard | AU10: 02 | AV10: Ballard (DIST 02) | AZ10: Anderson (DIST 02) | BA10: 1.1065
A11: 009 | B11: Bourbon | C11: 009 | E11: 00400 | F11: 004 | G11: Ballard | H11: 00 | K11: ANDE | L11: Anderson | M11: UNKNOWN | N11: Anderson | O11: (DIST UNKNOWN) | P11: (DIST UNKNOWN) | Q11: (DIST UNKNOWN) | R11: Anderson (DIST 02) | S11: 1.0345 | T11: 0.133 | V11: Anderson (DIST 02) | W11: 1.0345 | X11: 0.133 | AB11: NO | AE11: Bourbon | AF11: (859) 987-2152 | AH11: Ballard | AI11: (DIST 00) | AJ11: Ballard (DIST 00) | AL11: Ballard | AN11: (270) 335-3400 | AP11: Ballard (DIST 03) | AQ11: BALL03 | AR11: 1.251 | AS11: BALL | AT11: Ballard | AU11: 03 | AV11: Ballard (DIST 03) | AZ11: Anderson (UNKNOWN)
A12: 010 | B12: Boyd | C12: 010 | E12: 00402 | F12: 004 | G12: Ballard | H12: 02 | K12: BALL | L12: Ballard | M12: 00400 | N12: Ballard | O12: (DIST 00) | P12: Ballard (DIST 00) | Q12: Ballard (DIST 00) | R12: Anderson (UNKNOWN) | S12: 0.929 | T12: 0.133 | V12: Anderson (UNKNOWN) | W12: 0.929 | X12: 0.133 | AE12: Boyd | AF12: (606) 739-5173 | AH12: Ballard | AI12: (DIST 02) | AJ12: Ballard (DIST 02) | AL12: Ballard | AN12: (270) 335-3400 | AP12: Ballard (DIST 04) | AQ12: BALL04 | AR12: 1.398 | AS12: BALL | AT12: Ballard | AU12: 04 | AV12: Ballard (DIST 04) | AZ12: Ballard (DIST 00) | BA12: 0.909
A13: 011 | B13: Boyle | C13: 011 | E13: 00403 | F13: 004 | G13: Ballard | H13: 03 | K13: BALL | L13: Ballard | M13: 00402 | N13: Ballard | O13: (DIST 02) | P13: Ballard (DIST 02) | Q13: Ballard (DIST 02) | R13: Ballard (DIST 00) | S13: 0.9013 | T13: 0.0633 | V13: Ballard (DIST 00) | W13: 0.9013 | X13: 0.0633 | AE13: Boyle | AF13: (859) 238-1104 | AH13: Ballard | AI13: (DIST 03) | AJ13: Ballard (DIST 03) | AL13: Ballard | AN13: (270) 335-3400 | AP13: Ballard (DIST 05) | AQ13: BALL05 | AR13: 1.249 | AS13: BALL | AT13: Ballard | AU13: 05 | AV13: Ballard (DIST 05) | AZ13: Ballard (DIST 02) | BA13: 1.283
A14: 012 | B14: Bracken | C14: 012 | E14: 00404 | F14: 004 | G14: Ballard | H14: 04 | K14: BALL | L14: Ballard | M14: 00403 | N14: Ballard | O14: (DIST 03) | P14: Ballard (DIST 03) | Q14: Ballard (DIST 03) | R14: Ballard (DIST 02) | S14: 1.2753 | T14: 0.0633 | V14: Ballard (DIST 02) | W14: 1.2753 | X14: 0.0633 | AE14: Bracken | AF14: (606) 735-2228 | AH14: Ballard | AI14: (DIST 04) | AJ14: Ballard (DIST 04) | AL14: Ballard | AN14: (270) 335-3400 | AP14: Barren (DIST 01) | AQ14: BARR01 | AR14: 0.8949 | AS14: BARR | AT14: Barren | AU14: 01 | AV14: Barren (DIST 01) | AZ14: Ballard (DIST 03) | BA14: 1.251
A15: 013 | B15: Breathitt | C15: 013 | E15: 00405 | F15: 004 | G15: Ballard | H15: 05 | K15: BALL | L15: Ballard | M15: 00404 | N15: Ballard | O15: (DIST 04) | P15: Ballard (DIST 04) | Q15: Ballard (DIST 04) | R15: Ballard (DIST 03) | S15: 1.2433 | T15: 0.0633 | V15: Ballard (DIST 03) | W15: 1.2433 | X15: 0.0633 | AB15: PASSWORD JOEL | AE15: Breathitt | AF15: (606) 666-7973 | AH15: Ballard | AI15: (DIST 05) | AJ15: Ballard (DIST 05) | AL15: Ballard | AN15: (270) 335-3400 | AP15: Barren (DIST 02) | AQ15: BARR02 | AR15: 1.1939 | AS15: BARR | AT15: Barren | AU15: 02 | AV15: Barren (DIST 02) | AZ15: Ballard (DIST 04) | BA15: 1.398
A16: 014 | B16: Breckinridge | C16: 014 | E16: 00501 | F16: 005 | G16: Barren | H16: 01 | K16: BALL | L16: Ballard | M16: 00405 | N16: Ballard | O16: (DIST 05) | P16: Ballard (DIST 05) | Q16: Ballard (DIST 05) | R16: Ballard (DIST 04) | S16: 1.3903 | T16: 0.0633 | V16: Ballard (DIST 04) | W16: 1.3903 | X16: 0.0633 | AE16: Breckinridge | AF16: (270) 756-5154 | AH16: Barren | AI16: (DIST 01) | AJ16: Barren (DIST 01) | AL16: Barren | AN16: (270) 651-2026 | AP16: Barren (DIST 03) | AQ16: BARR03 | AR16: 1.2529 | AS16: BARR | AT16: Barren | AU16: 03 | AV16: Barren (DIST 03) | AZ16: Ballard (DIST 05) | BA16: 1.249
A17: 015 | B17: Bullitt | C17: 015 | E17: 00502 | F17: 005 | G17: Barren | H17: 02 | K17: BALL | L17: Ballard | M17: UNKNOWN | N17: Ballard | O17: (DIST UNKNOWN) | P17: (DIST UNKNOWN) | Q17: (DIST UNKNOWN) | R17: Ballard (DIST 05) | S17: 1.2513 | T17: 0.0633 | V17: Ballard (DIST 05) | W17: 1.2513 | X17: 0.0633 | AE17: Bullitt | AF17: (502) 543-7480 | AH17: Barren | AI17: (DIST 02) | AJ17: Barren (DIST 02) | AL17: Barren | AN17: (270) 651-2026 | AP17: Barren (DIST 04) | AQ17: BARR04 | AR17: 1.0399 | AS17: BARR | AT17: Barren | AU17: 04 | AV17: Barren (DIST 04) | AZ17: Ballard (UNKNOWN)
A18: 016 | B18: Butler | C18: 016 | E18: 00503 | F18: 005 | G18: Barren | H18: 03 | J18: BELL | K18: BARR | L18: Barren | M18: 00501 | N18: Barren | O18: (DIST 01) | P18: Barren (DIST 01) | Q18: Barren (DIST 01) | R18: Ballard (UNKNOWN) | S18: 0.929 | T18: 0.0633 | V18: Ballard (UNKNOWN) | W18: 0.929 | X18: 0.0633 | AC18: =SUM(AC19:AC28) -> 0 | AE18: Butler | AF18: (270) 526-3455 | AH18: Barren | AI18: (DIST 03) | AJ18: Barren (DIST 03) | AL18: Barren | AN18: (270) 651-2026 | AP18: Barren (DIST 05) | AQ18: BARR05 | AR18: 1.0709 | AS18: BARR | AT18: Barren | AU18: 05 | AV18: Barren (DIST 05) | AZ18: Barren (DIST 01) | BA18: 0.8949
A19: 017 | B19: Caldwell | C19: 017 | E19: 00504 | F19: 005 | G19: Barren | H19: 04 | J19: BOON | K19: BARR | L19: Barren | M19: 00502 | N19: Barren | O19: (DIST 02) | P19: Barren (DIST 02) | Q19: Barren (DIST 02) | R19: Barren (DIST 01) | S19: 0.9217 | T19: 0.0947 | V19: Barren (DIST 01) | W19: 0.9217 | X19: 0.0947 | AE19: Caldwell | AF19: (270) 365-7227 | AH19: Barren | AI19: (DIST 04) | AJ19: Barren (DIST 04) | AL19: Barren | AN19: (270) 651-2026 | AP19: Barren (DIST 06) | AQ19: BARR06 | AR19: 1.1969 | AS19: BARR | AT19: Barren | AU19: 06 | AV19: Barren (DIST 06) | AZ19: Barren (DIST 02) | BA19: 1.1939
A20: 018 | B20: Calloway | C20: 018 | E20: 00505 | F20: 005 | G20: Barren | H20: 05 | J20: BREC | K20: BARR | L20: Barren | M20: 00503 | N20: Barren | O20: (DIST 03) | P20: Barren (DIST 03) | Q20: Barren (DIST 03) | R20: Barren (DIST 02) | S20: 1.1707 | T20: 0.0947 | V20: Barren (DIST 02) | W20: 1.1707 | X20: 0.0947 | AE20: Calloway | AF20: (270) 753-3482 | AH20: Barren | AI20: (DIST 05) | AJ20: Barren (DIST 05) | AL20: Barren | AN20: (270) 651-2026 | AP20: Barren (DIST 07) | AQ20: BARR07 | AR20: 1.0489 | AS20: BARR | AT20: Barren | AU20: 07 | AV20: Barren (DIST 07) | AZ20: Barren (DIST 03) | BA20: 1.2529
A21: 019 | B21: Campbell | C21: 019 | E21: 00506 | F21: 005 | G21: Barren | H21: 06 | J21: BULL | K21: BARR | L21: Barren | M21: 00504 | N21: Barren | O21: (DIST 04) | P21: Barren (DIST 04) | Q21: Barren (DIST 04) | R21: Barren (DIST 03) | S21: 1.2737 | T21: 0.0947 | V21: Barren (DIST 03) | W21: 1.2737 | X21: 0.0947 | AE21: Campbell | AF21: (859) 292-3871 | AH21: Barren | AI21: (DIST 06) | AJ21: Barren (DIST 06) | AL21: Barren | AN21: (270) 651-2026 | AP21: Barren (DIST 08) | AQ21: BARR08 | AR21: 1.0769 | AS21: BARR | AT21: Barren | AU21: 08 | AV21: Barren (DIST 08) | AZ21: Barren (DIST 04) | BA21: 1.0399
A22: 020 | B22: Carlisle | C22: 020 | E22: 00507 | F22: 005 | G22: Barren | H22: 07 | J22: BUTL | K22: BARR | L22: Barren | M22: 00505 | N22: Barren | O22: (DIST 05) | P22: Barren (DIST 05) | Q22: Barren (DIST 05) | R22: Barren (DIST 04) | S22: 1.0607 | T22: 0.0947 | V22: Barren (DIST 04) | W22: 1.0607 | X22: 0.0947 | AE22: Carlisle | AF22: (270) 628-5498 | AH22: Barren | AI22: (DIST 07) | AJ22: Barren (DIST 07) | AL22: Barren | AN22: (270) 651-2026 | AP22: Bath (DIST 00) | AQ22: BATH00 | AR22: 1.0203 | AS22: BATH | AT22: Bath | AU22: 00 | AV22: Bath (DIST 00) | AZ22: Barren (DIST 05) | BA22: 1.0709
A23: 021 | B23: Carroll | C23: 021 | E23: 00508 | F23: 005 | G23: Barren | H23: 08 | J23: CALD | K23: BARR | L23: Barren | M23: 00506 | N23: Barren | O23: (DIST 06) | P23: Barren (DIST 06) | Q23: Barren (DIST 06) | R23: Barren (DIST 05) | S23: 1.0977 | T23: 0.0947 | V23: Barren (DIST 05) | W23: 1.0977 | X23: 0.0947 | AE23: Carroll | AF23: (502) 732-5448 | AH23: Barren | AI23: (DIST 08) | AJ23: Barren (DIST 08) | AL23: Barren | AN23: (270) 651-2026 | AP23: Bath (DIST 01) | AQ23: BATH01 | AR23: 1.1943 | AS23: BATH | AT23: Bath | AU23: 01 | AV23: Bath (DIST 01) | AZ23: Barren (DIST 06) | BA23: 1.1969
A24: 022 | B24: Carter | C24: 022 | E24: 00600 | F24: 006 | G24: Bath | H24: 00 | J24: CALL | K24: BARR | L24: Barren | M24: 00507 | N24: Barren | O24: (DIST 07) | P24: Barren (DIST 07) | Q24: Barren (DIST 07) | R24: Barren (DIST 06) | S24: 1.2355 | T24: 0.0947 | V24: Barren (DIST 06) | W24: 1.2355 | X24: 0.0947 | AE24: Carter | AF24: (606) 474-5663 | AH24: Bath | AI24: (DIST 00) | AJ24: Bath (DIST 00) | AL24: Bath | AN24: (606) 674-6382 | AP24: Bath (DIST 02) | AQ24: BATH02 | AR24: 1.3243 | AS24: BATH | AT24: Bath | AU24: 02 | AV24: Bath (DIST 02) | AZ24: Barren (DIST 07) | BA24: 1.0489
A25: 023 | B25: Casey | C25: 023 | E25: 00601 | F25: 006 | G25: Bath | H25: 01 | J25: CAMP | K25: BARR | L25: Barren | M25: 00508 | N25: Barren | O25: (DIST 08) | P25: Barren (DIST 08) | Q25: Barren (DIST 08) | R25: Barren (DIST 07) | S25: 1.0317 | T25: 0.0947 | V25: Barren (DIST 07) | W25: 1.0317 | X25: 0.0947 | AE25: Casey | AF25: (606) 787-7621 | AH25: Bath | AI25: (DIST 01) | AJ25: Bath (DIST 01) | AL25: Bath | AN25: (606) 674-6382 | AP25: Bath (DIST 03) | AQ25: BATH03 | AR25: 1.1303 | AS25: BATH | AT25: Bath | AU25: 03 | AV25: Bath (DIST 03) | AZ25: Barren (DIST 08) | BA25: 1.0769
A26: 024 | B26: Christian | C26: 024 | E26: 00602 | F26: 006 | G26: Bath | H26: 02 | K26: BARR | L26: Barren | M26: UNKNOWN | N26: Barren | O26: (DIST UNKNOWN) | P26: (DIST UNKNOWN) | Q26: (DIST UNKNOWN) | R26: Barren (DIST 08) | S26: 1.0977 | T26: 0.0947 | V26: Barren (DIST 08) | W26: 1.0977 | X26: 0.0947 | AE26: Christian | AF26: (270) 887-4115 | AH26: Bath | AI26: (DIST 02) | AJ26: Bath (DIST 02) | AL26: Bath | AN26: (606) 674-6382 | AP26: Bell (DIST 01) | AQ26: BELL01 | AR26: 1.049 | AS26: BELL | AT26: Bell | AU26: 01 | AV26: Bell (DIST 01) | AZ26: Barren (UNKNOWN)
A27: 025 | B27: Clark | C27: 025 | E27: 00603 | F27: 006 | G27: Bath | H27: 03 | K27: BATH | L27: Bath | M27: 00600 | N27: Bath | O27: (DIST 00) | P27: Bath (DIST 00) | Q27: Bath (DIST 00) | R27: Barren (UNKNOWN) | S27: 0.9217 | T27: 0.0947 | V27: Barren (UNKNOWN) | W27: 0.9217 | X27: 0.0947 | AE27: Clark | AF27: (859) 745-0250 | AH27: Bath | AI27: (DIST 03) | AJ27: Bath (DIST 03) | AL27: Bath | AN27: (606) 674-6382 | AP27: Bell (DIST 02) | AQ27: BELL02 | AR27: 1.09 | AS27: BELL | AT27: Bell | AU27: 02 | AV27: Bell (DIST 02) | AZ27: Bath (DIST 00) | BA27: 1.0203
A28: 026 | B28: Clay | C28: 026 | E28: 00701 | F28: 007 | G28: Bell | H28: 01 | K28: BATH | L28: Bath | M28: 00601 | N28: Bath | O28: (DIST 01) | P28: Bath (DIST 01) | Q28: Bath (DIST 01) | R28: Bath (DIST 00) | S28: 1.0894 | T28: 0.2314 | V28: Bath (DIST 00) | W28: 1.0894 | X28: 0.2314 | AE28: Clay | AF28: (606) 598-3832 | AH28: Bell | AI28: (DIST 01) | AJ28: Bell (DIST 01) | AL28: Bell | AN28: (606) 337-2720 | AP28: Bell (DIST 03) | AQ28: BELL03 | AR28: 1.351 | AS28: BELL | AT28: Bell | AU28: 03 | AV28: Bell (DIST 03) | AZ28: Bath (DIST 01) | BA28: 1.1943
A29: 027 | B29: Clinton | C29: 027 | E29: 00702 | F29: 007 | G29: Bell | H29: 02 | K29: BATH | L29: Bath | M29: 00602 | N29: Bath | O29: (DIST 02) | P29: Bath (DIST 02) | Q29: Bath (DIST 02) | R29: Bath (DIST 01) | S29: 1.2574 | T29: 0.2314 | V29: Bath (DIST 01) | W29: 1.2574 | X29: 0.2314 | AE29: Clinton | AF29: (606) 387-5938 | AH29: Bell | AI29: (DIST 02) | AJ29: Bell (DIST 02) | AL29: Bell | AN29: (606) 337-2720 | AP29: Boone (DIST 02) | AQ29: BOON02 | AR29: 1.031 | AS29: BOON | AT29: Boone | AU29: 02 | AV29: Boone (DIST 02) | AZ29: Bath (DIST 02) | BA29: 1.3243
A30: 028 | B30: Crittenden | C30: 028 | E30: 00703 | F30: 007 | G30: Bell | H30: 03 | K30: BATH | L30: Bath | M30: 00603 | N30: Bath | O30: (DIST 03) | P30: Bath (DIST 03) | Q30: Bath (DIST 03) | R30: Bath (DIST 02) | S30: 1.3934 | T30: 0.2314 | V30: Bath (DIST 02) | W30: 1.3934 | X30: 0.2314 | AE30: Crittenden | AF30: (270) 965-4598 | AH30: Bell | AI30: (DIST 03) | AJ30: Bell (DIST 03) | AL30: Bell | AN30: (606) 337-2720 | AP30: Boone (DIST 03) | AQ30: BOON03 | AR30: 1.218 | AS30: BOON | AT30: Boone | AU30: 03 | AV30: Boone (DIST 03) | AZ30: Bath (DIST 03) | BA30: 1.1303
A31: 029 | B31: Cumberland | C31: 029 | E31: 00802 | F31: 008 | G31: Boone | H31: 02 | K31: BATH | L31: Bath | M31: UNKNOWN | N31: Bath | O31: (DIST UNKNOWN) | P31: (DIST UNKNOWN) | Q31: (DIST UNKNOWN) | R31: Bath (DIST 03) | S31: 1.1994 | T31: 0.2314 | V31: Bath (DIST 03) | W31: 1.1994 | X31: 0.2314 | AE31: Cumberland | AF31: (270) 864-5161 | AH31: Boone | AI31: (DIST 02) | AJ31: Boone (DIST 02) | AL31: Boone | AN31: (859) 334-2181 | AP31: Boone (DIST 04) | AQ31: BOON04 | AR31: 1.081 | AS31: BOON | AT31: Boone | AU31: 04 | AV31: Boone (DIST 04) | AZ31: Bath (UNKNOWN)
A32: 030 | B32: Daviess | C32: 030 | E32: 00803 | F32: 008 | G32: Boone | H32: 03 | J32: CARL | K32: BELL | L32: Bell | M32: 00701 | N32: Bell | O32: (DIST 01) | P32: Bell (DIST 01) | Q32: Bell (DIST 01) | R32: Bath (UNKNOWN) | S32: 1.0894 | T32: 0.2314 | V32: Bath (UNKNOWN) | W32: 1.0894 | X32: 0.2314 | AE32: Daviess | AF32: (270) 685-8474 | AH32: Boone | AI32: (DIST 03) | AJ32: Boone (DIST 03) | AL32: Boone | AN32: (859) 334-2181 | AP32: Boone (DIST 05) | AQ32: BOON05 | AR32: 1.066 | AS32: BOON | AT32: Boone | AU32: 05 | AV32: Boone (DIST 05) | AZ32: Bell (DIST 01) | BA32: 1.049
A33: 031 | B33: Edmonson | C33: 031 | E33: 00804 | F33: 008 | G33: Boone | H33: 04 | J33: CARR | K33: BELL | L33: Bell | M33: 00702 | N33: Bell | O33: (DIST 02) | P33: Bell (DIST 02) | Q33: Bell (DIST 02) | R33: Bell (DIST 01) | S33: 1.0363 | T33: 0.1953 | V33: Bell (DIST 01) | W33: 1.0363 | X33: 0.1953 | AE33: Edmonson | AF33: (270) 597-2381 | AH33: Boone | AI33: (DIST 04) | AJ33: Boone (DIST 04) | AL33: Boone | AN33: (859) 334-2181 | AP33: Boone (DIST 06) | AQ33: BOON06 | AR33: 1.081 | AS33: BOON | AT33: Boone | AU33: 06 | AV33: Boone (DIST 06) | AZ33: Bell (DIST 02) | BA33: 1.09
A34: 032 | B34: Elliott | C34: 032 | E34: 00805 | F34: 008 | G34: Boone | H34: 05 | J34: CLAY | K34: BELL | L34: Bell | M34: 00703 | N34: Bell | O34: (DIST 03) | P34: Bell (DIST 03) | Q34: Bell (DIST 03) | R34: Bell (DIST 02) | S34: 1.0793 | T34: 0.1953 | V34: Bell (DIST 02) | W34: 1.0793 | X34: 0.1953 | AE34: Elliott | AF34: (606) 738-5090 | AH34: Boone | AI34: (DIST 05) | AJ34: Boone (DIST 05) | AL34: Boone | AN34: (859) 334-2181 | AP34: Boone (DIST 07) | AQ34: BOON07 | AR34: 1.011 | AS34: BOON | AT34: Boone | AU34: 07 | AV34: Boone (DIST 07) | AZ34: Bell (DIST 03) | BA34: 1.351
A35: 033 | B35: Estill | C35: 033 | E35: 00806 | F35: 008 | G35: Boone | H35: 06 | K35: BELL | L35: Bell | M35: UNKNOWN | N35: Bell | O35: (DIST UNKNOWN) | P35: (DIST UNKNOWN) | Q35: (DIST UNKNOWN) | R35: Bell (DIST 03) | S35: 1.3773 | T35: 0.1953 | V35: Bell (DIST 03) | W35: 1.3773 | X35: 0.1953 | AE35: Estill | AF35: (606) 723-4569 | AH35: Boone | AI35: (DIST 06) | AJ35: Boone (DIST 06) | AL35: Boone | AN35: (859) 334-2181 | AP35: Boone (DIST 08) | AQ35: BOON08 | AR35: 1.081 | AS35: BOON | AT35: Boone | AU35: 08 | AV35: Boone (DIST 08) | AZ35: Bell (UNKNOWN)
A36: 034 | B36: Fayette | C36: 034 | E36: 00807 | F36: 008 | G36: Boone | H36: 07 | J36: CLIN | K36: BOON | L36: Boone | M36: 00802 | N36: Boone | O36: (DIST 02) | P36: Boone (DIST 02) | Q36: Boone (DIST 02) | R36: Bell (UNKNOWN) | S36: 1.0363 | T36: 0.1953 | V36: Bell (UNKNOWN) | W36: 1.0363 | X36: 0.1953 | AE36: Fayette | AF36: (859) 246-2722 | AH36: Boone | AI36: (DIST 07) | AJ36: Boone (DIST 07) | AL36: Boone | AN36: (859) 334-2181 | AP36: Boone (DIST 09) | AQ36: BOON09 | AR36: 1.24 | AS36: BOON | AT36: Boone | AU36: 09 | AV36: Boone (DIST 09) | AZ36: Boone (DIST 02) | BA36: 1.031
A37: 035 | B37: Fleming | C37: 035 | E37: 00808 | F37: 008 | G37: Boone | H37: 08 | J37: CRIT | K37: BOON | L37: Boone | M37: 00803 | N37: Boone | O37: (DIST 03) | P37: Boone (DIST 03) | Q37: Boone (DIST 03) | R37: Boone (DIST 02) | S37: 1.002 | T37: 0.214 | V37: Boone (DIST 02) | W37: 1.002 | X37: 0.214 | AE37: Fleming | AF37: (606) 845-1401 | AH37: Boone | AI37: (DIST 08) | AJ37: Boone (DIST 08) | AL37: Boone | AN37: (859) 334-2181 | AP37: Boone (DIST 10) | AQ37: BOON10 | AR37: 1.066 | AS37: BOON | AT37: Boone | AU37: 10 | AV37: Boone (DIST 10) | AZ37: Boone (DIST 03) | BA37: 1.218
A38: 036 | B38: Floyd | C38: 036 | E38: 00809 | F38: 008 | G38: Boone | H38: 09 | J38: CUMB | K38: BOON | L38: Boone | M38: 00804 | N38: Boone | O38: (DIST 04) | P38: Boone (DIST 04) | Q38: Boone (DIST 04) | R38: Boone (DIST 03) | S38: 1.117 | T38: 0.064 | V38: Boone (DIST 03) | W38: 1.117 | X38: 0.064 | AE38: Floyd | AF38: (606) 886-9622 | AH38: Boone | AI38: (DIST 09) | AJ38: Boone (DIST 09) | AL38: Boone | AN38: (859) 334-2181 | AP38: Boone (DIST 11) | AQ38: BOON11 | AR38: 1.081 | AS38: BOON | AT38: Boone | AU38: 11 | AV38: Boone (DIST 11) | AZ38: Boone (DIST 04) | BA38: 1.081
A39: 037 | B39: Franklin | C39: 037 | E39: 00810 | F39: 008 | G39: Boone | H39: 10 | J39: DAVI | K39: BOON | L39: Boone | M39: 00805 | N39: Boone | O39: (DIST 05) | P39: Boone (DIST 05) | Q39: Boone (DIST 05) | R39: Boone (DIST 04) | S39: 1.052 | T39: 0.264 | V39: Boone (DIST 04) | W39: 1.052 | X39: 0.264 | AE39: Franklin | AF39: (502) 875-8780 | AH39: Boone | AI39: (DIST 10) | AJ39: Boone (DIST 10) | AL39: Boone | AN39: (859) 334-2181 | AP39: Boone (DIST 12) | AQ39: BOON12 | AR39: 0.535 | AS39: BOON | AT39: Boone | AU39: 12 | AV39: Boone (DIST 12) | AZ39: Boone (DIST 05) | BA39: 1.066
A40: 038 | B40: Fulton | C40: 038 | E40: 00811 | F40: 008 | G40: Boone | H40: 11 | J40: EDMO | K40: BOON | L40: Boone | M40: 00806 | N40: Boone | O40: (DIST 06) | P40: Boone (DIST 06) | Q40: Boone (DIST 06) | R40: Boone (DIST 05) | S40: 1.037 | T40: 0.249 | V40: Boone (DIST 05) | W40: 1.037 | X40: 0.249 | AE40: Fulton | AF40: (270) 236-2548 | AH40: Boone | AI40: (DIST 11) | AJ40: Boone (DIST 11) | AL40: Boone | AN40: (859) 334-2181 | AP40: Boone (DIST 13) | AQ40: BOON13 | AR40: 1.081 | AS40: BOON | AT40: Boone | AU40: 13 | AV40: Boone (DIST 13) | AZ40: Boone (DIST 06) | BA40: 1.081
A41: 039 | B41: Gallatin | C41: 039 | E41: 00812 | F41: 008 | G41: Boone | H41: 12 | J41: ELLI | K41: BOON | L41: Boone | M41: 00807 | N41: Boone | O41: (DIST 07) | P41: Boone (DIST 07) | Q41: Boone (DIST 07) | R41: Boone (DIST 06) | S41: 1.052 | T41: 0.264 | V41: Boone (DIST 06) | W41: 1.052 | X41: 0.264 | AE41: Gallatin | AF41: (859) 567-5621 | AH41: Boone | AI41: (DIST 12) | AJ41: Boone (DIST 12) | AL41: Boone | AN41: (859) 334-2181 | AP41: Boone (DIST 14) | AQ41: BOON14 | AR41: 0.535 | AS41: BOON | AT41: Boone | AU41: 14 | AV41: Boone (DIST 14) | AZ41: Boone (DIST 07) | BA41: 1.011
A42: 040 | B42: Garrard | C42: 040 | E42: 00813 | F42: 008 | G42: Boone | H42: 13 | J42: ESTI | K42: BOON | L42: Boone | M42: 00808 | N42: Boone | O42: (DIST 08) | P42: Boone (DIST 08) | Q42: Boone (DIST 08) | R42: Boone (DIST 07) | S42: 0.982 | T42: 0.194 | V42: Boone (DIST 07) | W42: 0.982 | X42: 0.194 | AE42: Garrard | AF42: (859) 792-3291 | AH42: Boone | AI42: (DIST 13) | AJ42: Boone (DIST 13) | AL42: Boone | AN42: (859) 334-2181 | AP42: Boone (DIST 15) | AQ42: BOON15 | AR42: 0.681 | AS42: BOON | AT42: Boone | AU42: 15 | AV42: Boone (DIST 15) | AZ42: Boone (DIST 08) | BA42: 1.081
A43: 041 | B43: Grant | C43: 041 | E43: 00814 | F43: 008 | G43: Boone | H43: 14 | J43: FAYE | K43: BOON | L43: Boone | M43: 00809 | N43: Boone | O43: (DIST 09) | P43: Boone (DIST 09) | Q43: Boone (DIST 09) | R43: Boone (DIST 08) | S43: 1.052 | T43: 0.264 | V43: Boone (DIST 08) | W43: 1.052 | X43: 0.264 | AE43: Grant | AF43: (859) 824-6511 | AH43: Boone | AI43: (DIST 14) | AJ43: Boone (DIST 14) | AL43: Boone | AN43: (859) 334-2181 | AP43: Bourbon (DIST 00) | AQ43: BOUR00 | AR43: 0.9157 | AS43: BOUR | AT43: Bourbon | AU43: 00 | AV43: Bourbon (DIST 00) | AZ43: Boone (DIST 09) | BA43: 1.24
A44: 042 | B44: Graves | C44: 042 | E44: 00815 | F44: 008 | G44: Boone | H44: 15 | J44: FLEM | K44: BOON | L44: Boone | M44: 00810 | N44: Boone | O44: (DIST 10) | P44: Boone (DIST 10) | Q44: Boone (DIST 10) | R44: Boone (DIST 09) | S44: 1.234 | T44: 0.264 | V44: Boone (DIST 09) | W44: 1.234 | X44: 0.264 | AE44: Graves | AF44: (270) 247-3301 | AH44: Boone | AI44: (DIST 15) | AJ44: Boone (DIST 15) | AL44: Boone | AN44: (859) 334-2181 | AP44: Bourbon (DIST 02) | AQ44: BOUR02 | AR44: 1.2589 | AS44: BOUR | AT44: Bourbon | AU44: 02 | AV44: Bourbon (DIST 02) | AZ44: Boone (DIST 10) | BA44: 1.066
A45: 043 | B45: Grayson | C45: 043 | E45: 00865 | F45: 008 | G45: Boone | H45: 65 | J45: FLOY | K45: BOON | L45: Boone | M45: 00811 | N45: Boone | O45: (DIST 11) | P45: Boone (DIST 11) | Q45: Boone (DIST 11) | R45: Boone (DIST 10) | S45: 1.047 | T45: 0.259 | V45: Boone (DIST 10) | W45: 1.047 | X45: 0.259 | AE45: Grayson | AF45: (270) 259-4838 | AH45: Boone | AI45: (DIST 65) | AJ45: Boone (DIST 65) | AL45: Boone | AN45: (859) 334-2181 | AP45: Bourbon (DIST 03) | AQ45: BOUR03 | AR45: 1.4037 | AS45: BOUR | AT45: Bourbon | AU45: 03 | AV45: Bourbon (DIST 03) | AZ45: Boone (DIST 11) | BA45: 1.081
A46: 044 | B46: Green | C46: 044 | E46: 00900 | F46: 009 | G46: Bourbon | H46: 00 | J46: FRAN | K46: BOON | L46: Boone | M46: 00812 | N46: Boone | O46: (DIST 12) | P46: Boone (DIST 12) | Q46: Boone (DIST 12) | R46: Boone (DIST 11) | S46: 1.052 | T46: 0.264 | V46: Boone (DIST 11) | W46: 1.052 | X46: 0.264 | AE46: Green | AF46: (270) 932-7518 | AH46: Bourbon | AI46: (DIST 00) | AJ46: Bourbon (DIST 00) | AL46: Bourbon | AN46: (859) 987-2152 | AP46: Bourbon (DIST 04) | AQ46: BOUR04 | AR46: 1.3246 | AS46: BOUR | AT46: Bourbon | AU46: 04 | AV46: Bourbon (DIST 04) | AZ46: Boone (DIST 12) | BA46: 0.535
A47: 045 | B47: Greenup | C47: 045 | E47: 00902 | F47: 009 | G47: Bourbon | H47: 02 | J47: FULT | K47: BOON | L47: Boone | M47: 00813 | N47: Boone | O47: (DIST 13) | P47: Boone (DIST 13) | Q47: Boone (DIST 13) | R47: Boone (DIST 12) | S47: 1.511 | T47: 0.264 | V47: Boone (DIST 12) | W47: 1.511 | X47: 0.264 | AE47: Greenup | AF47: (606) 473-9984 | AH47: Bourbon | AI47: (DIST 02) | AJ47: Bourbon (DIST 02) | AL47: Bourbon | AN47: (859) 987-2152 | AP47: Bourbon (DIST 05) | AQ47: BOUR05 | AR47: 1.0809 | AS47: BOUR | AT47: Bourbon | AU47: 05 | AV47: Bourbon (DIST 05) | AZ47: Boone (DIST 13) | BA47: 1.081
A48: 046 | B48: Hancock | C48: 046 | E48: 00903 | F48: 009 | G48: Bourbon | H48: 03 | J48: GALL | K48: BOON | L48: Boone | M48: 00814 | N48: Boone | O48: (DIST 14) | P48: Boone (DIST 14) | Q48: Boone (DIST 14) | R48: Boone (DIST 13) | S48: 1.052 | T48: 0.264 | V48: Boone (DIST 13) | W48: 1.052 | X48: 0.264 | AE48: Hancock | AF48: (270) 927-6846 | AH48: Bourbon | AI48: (DIST 03) | AJ48: Bourbon (DIST 03) | AL48: Bourbon | AN48: (859) 987-2152 | AP48: Boyd (DIST 10) | AQ48: BOYD10 | AR48: 1.4516 | AS48: BOYD | AT48: Boyd | AU48: 10 | AV48: Boyd (DIST 10) | AZ48: Boone (DIST 14) | BA48: 0.535
A49: 047 | B49: Hardin | C49: 047 | E49: 00904 | F49: 009 | G49: Bourbon | H49: 04 | J49: GARR | K49: BOON | L49: Boone | M49: 00815 | N49: Boone | O49: (DIST 15) | P49: Boone (DIST 15) | Q49: Boone (DIST 15) | R49: Boone (DIST 14) | S49: 1.511 | T49: 0.264 | V49: Boone (DIST 14) | W49: 1.511 | X49: 0.264 | AE49: Hardin | AF49: (270) 765-2129 | AH49: Bourbon | AI49: (DIST 04) | AJ49: Bourbon (DIST 04) | AL49: Bourbon | AN49: (859) 987-2152 | AP49: Boyd (DIST 11) | AQ49: BOYD11 | AR49: 1.6766 | AS49: BOYD | AT49: Boyd | AU49: 11 | AV49: Boyd (DIST 11) | AZ49: Boone (DIST 15) | BA49: 0.681
A50: 048 | B50: Harlan | C50: 048 | E50: 00905 | F50: 009 | G50: Bourbon | H50: 05 | K50: BOON | L50: Boone | M50: UNKNOWN | N50: Boone | O50: (DIST UNKNOWN) | P50: (DIST UNKNOWN) | Q50: (DIST UNKNOWN) | R50: Boone (DIST 15) | S50: 1.63 | T50: 0.264 | V50: Boone (DIST 15) | W50: 1.63 | X50: 0.264 | AE50: Harlan | AF50: (606) 573-1990 | AH50: Bourbon | AI50: (DIST 05) | AJ50: Bourbon (DIST 05) | AL50: Bourbon | AN50: (859) 987-2152 | AP50: Boyd (DIST 22) | AQ50: BOYD22 | AR50: 1.501 | AS50: BOYD | AT50: Boyd | AU50: 22 | AV50: Boyd (DIST 22) | AZ50: Boone (UNKNOWN)
A51: 049 | B51: Harrison | C51: 049 | E51: 01010 | F51: 010 | G51: Boyd | H51: 10 | J51: GRAN | K51: BOUR | L51: Bourbon | M51: 00900 | N51: Bourbon | O51: (DIST 00) | P51: Bourbon (DIST 00) | Q51: Bourbon (DIST 00) | R51: Boone (UNKNOWN) | S51: 0.982 | T51: 0.064 | V51: Boone (UNKNOWN) | W51: 0.982 | X51: 0.064 | AE51: Harrison | AF51: (859) 234-7133 | AH51: Boyd | AI51: (DIST 10) | AJ51: Boyd (DIST 10) | AL51: Boyd | AN51: (606) 739-5173 | AP51: Boyd (DIST 23) | AQ51: BOYD23 | AR51: 1.2434 | AS51: BOYD | AT51: Boyd | AU51: 23 | AV51: Boyd (DIST 23) | AZ51: Bourbon (DIST 00) | BA51: 0.9157
A52: 050 | B52: Hart | C52: 050 | E52: 01011 | F52: 010 | G52: Boyd | H52: 11 | J52: GRAV | K52: BOUR | L52: Bourbon | M52: 00902 | N52: Bourbon | O52: (DIST 02) | P52: Bourbon (DIST 02) | Q52: Bourbon (DIST 02) | R52: Bourbon (DIST 00) | S52: 0.9406 | T52: 0.1635 | V52: Bourbon (DIST 00) | W52: 0.9406 | X52: 0.1635 | AE52: Hart | AF52: (270) 524-2321 | AH52: Boyd | AI52: (DIST 11) | AJ52: Boyd (DIST 11) | AL52: Boyd | AN52: (606) 739-5173 | AP52: Boyd (DIST 24) | AQ52: BOYD24 | AR52: 1.386 | AS52: BOYD | AT52: Boyd | AU52: 24 | AV52: Boyd (DIST 24) | AZ52: Bourbon (DIST 02) | BA52: 1.2589
A53: 051 | B53: Henderson | C53: 051 | E53: 01022 | F53: 010 | G53: Boyd | H53: 22 | J53: GRAY | K53: BOUR | L53: Bourbon | M53: 00903 | N53: Bourbon | O53: (DIST 03) | P53: Bourbon (DIST 03) | Q53: Bourbon (DIST 03) | R53: Bourbon (DIST 02) | S53: 1.2262 | T53: 0.1635 | V53: Bourbon (DIST 02) | W53: 1.2262 | X53: 0.1635 | AE53: Henderson | AF53: (270) 827-6024 | AH53: Boyd | AI53: (DIST 22) | AJ53: Boyd (DIST 22) | AL53: Boyd | AN53: (606) 739-5173 | AP53: Boyd (DIST 25) | AQ53: BOYD25 | AR53: 1.5935 | AS53: BOYD | AT53: Boyd | AU53: 25 | AV53: Boyd (DIST 25) | AZ53: Bourbon (DIST 03) | BA53: 1.4037
A54: 052 | B54: Henry | C54: 052 | E54: 01024 | F54: 010 | G54: Boyd | H54: 24 | J54: GREE | K54: BOUR | L54: Bourbon | M54: 00904 | N54: Bourbon | O54: (DIST 04) | P54: Bourbon (DIST 04) | Q54: Bourbon (DIST 04) | R54: Bourbon (DIST 03) | S54: 1.4206 | T54: 0.1635 | V54: Bourbon (DIST 03) | W54: 1.4206 | X54: 0.1635 | AE54: Henry | AF54: (502) 845-5740 | AH54: Boyd | AI54: (DIST 24) | AJ54: Boyd (DIST 24) | AL54: Boyd | AN54: (606) 739-5173 | AP54: Boyd (DIST 26) | AQ54: BOYD26 | AR54: 1.5935 | AS54: BOYD | AT54: Boyd | AU54: 26 | AV54: Boyd (DIST 26) | AZ54: Bourbon (DIST 04) | BA54: 1.3246
A55: 053 | B55: Hickman | C55: 053 | E55: 01025 | F55: 010 | G55: Boyd | H55: 25 | J55: GREU | K55: BOUR | L55: Bourbon | M55: 00905 | N55: Bourbon | O55: (DIST 05) | P55: Bourbon (DIST 05) | Q55: Bourbon (DIST 05) | R55: Bourbon (DIST 04) | S55: 1.3669 | T55: 0.1635 | V55: Bourbon (DIST 04) | W55: 1.3669 | X55: 0.1635 | AE55: Hickman | AF55: (270) 653-5521 | AH55: Boyd | AI55: (DIST 25) | AJ55: Boyd (DIST 25) | AL55: Boyd | AN55: (606) 739-5173 | AP55: Boyd (DIST 33) | AQ55: BOYD33 | AR55: 1.4634 | AS55: BOYD | AT55: Boyd | AU55: 33 | AV55: Boyd (DIST 33) | AZ55: Bourbon (DIST 05) | BA55: 1.0809
A56: 054 | B56: Hopkins | C56: 054 | E56: 01026 | F56: 010 | G56: Boyd | H56: 26 | K56: BOUR | L56: Bourbon | M56: UNKNOWN | N56: Bourbon | O56: (DIST UNKNOWN) | P56: (DIST UNKNOWN) | Q56: (DIST UNKNOWN) | R56: Bourbon (DIST 05) | S56: 1.1212 | T56: 0.1635 | V56: Bourbon (DIST 05) | W56: 1.1212 | X56: 0.1635 | AE56: Hopkins | AF56: (270) 821-3092 | AH56: Boyd | AI56: (DIST 26) | AJ56: Boyd (DIST 26) | AL56: Boyd | AN56: (606) 739-5173 | AP56: Boyd (DIST 34) | AQ56: BOYD34 | AR56: 1.621 | AS56: BOYD | AT56: Boyd | AU56: 34 | AV56: Boyd (DIST 34) | AZ56: Bourbon (UNKNOWN)
A57: 055 | B57: Jackson | C57: 055 | E57: 01033 | F57: 010 | G57: Boyd | H57: 33 | K57: BOYD | L57: Boyd | M57: 01010 | N57: Boyd | O57: (DIST 10) | P57: Boyd (DIST 10) | Q57: Boyd (DIST 10) | R57: Bourbon (UNKNOWN) | S57: 0.9406 | T57: 0.1635 | V57: Bourbon (UNKNOWN) | W57: 0.9406 | X57: 0.1635 | AE57: Jackson | AF57: (606) 287-7634 | AH57: Boyd | AI57: (DIST 33) | AJ57: Boyd (DIST 33) | AL57: Boyd | AN57: (606) 739-5173 | AP57: Boyd (DIST 44) | AQ57: BOYD44 | AR57: 1.2284 | AS57: BOYD | AT57: Boyd | AU57: 44 | AV57: Boyd (DIST 44) | AZ57: Boyd (DIST 10) | BA57: 1.4516
A58: 056 | B58: Jefferson | C58: 056 | E58: 01034 | F58: 010 | G58: Boyd | H58: 34 | K58: BOYD | L58: Boyd | M58: 01011 | N58: Boyd | O58: (DIST 11) | P58: Boyd (DIST 11) | Q58: Boyd (DIST 11) | R58: Boyd (DIST 10) | S58: 1.4719 | T58: 0.099 | V58: Boyd (DIST 10) | W58: 1.4719 | X58: 0.099 | AE58: Jefferson | AF58: (502) 574-6380 | AH58: Boyd | AI58: (DIST 34) | AJ58: Boyd (DIST 34) | AL58: Boyd | AN58: (606) 739-5173 | AP58: Boyd (DIST 45) | AQ58: BOYD45 | AR58: 1.2284 | AS58: BOYD | AT58: Boyd | AU58: 45 | AV58: Boyd (DIST 45) | AZ58: Boyd (DIST 11) | BA58: 1.6766
A59: 057 | B59: Jessamine | C59: 057 | E59: 01044 | F59: 010 | G59: Boyd | H59: 44 | K59: BOYD | L59: Boyd | M59: 01022 | N59: Boyd | O59: (DIST 22) | P59: Boyd (DIST 22) | Q59: Boyd (DIST 22) | R59: Boyd (DIST 11) | S59: 1.6969 | T59: 0.099 | V59: Boyd (DIST 11) | W59: 1.6969 | X59: 0.099 | AE59: Jessamine | AF59: (859) 885-4931 | AH59: Boyd | AI59: (DIST 44) | AJ59: Boyd (DIST 44) | AL59: Boyd | AN59: (606) 739-5173 | AP59: Boyd (DIST 46) | AQ59: BOYD46 | AR59: 1.2284 | AS59: BOYD | AT59: Boyd | AU59: 46 | AV59: Boyd (DIST 46) | AZ59: Boyd (DIST 22) | BA59: 1.501
A60: 058 | B60: Johnson | C60: 058 | E60: 01045 | F60: 010 | G60: Boyd | H60: 45 | K60: BOYD | L60: Boyd | M60: 01023 | N60: Boyd | O60: (DIST 23) | P60: Boyd (DIST 23) | Q60: Boyd (DIST 23) | R60: Boyd (DIST 22) | S60: 1.4729 | T60: 0.099 | V60: Boyd (DIST 22) | W60: 1.4729 | X60: 0.099 | AE60: Johnson | AF60: (606) 789-2564 | AH60: Boyd | AI60: (DIST 45) | AJ60: Boyd (DIST 45) | AL60: Boyd | AN60: (606) 739-5173 | AP60: Boyd (DIST 47) | AQ60: BOYD47 | AR60: 1.2284 | AS60: BOYD | AT60: Boyd | AU60: 47 | AV60: Boyd (DIST 47) | AZ60: Boyd (DIST 23) | BA60: 1.2434
A61: 059 | B61: Kenton | C61: 059 | E61: 01046 | F61: 010 | G61: Boyd | H61: 46 | K61: BOYD | L61: Boyd | M61: 01024 | N61: Boyd | O61: (DIST 24) | P61: Boyd (DIST 24) | Q61: Boyd (DIST 24) | R61: Boyd (DIST 23) | S61: 1.2239 | T61: 0.099 | V61: Boyd (DIST 23) | W61: 1.2239 | X61: 0.099 | AE61: Kenton | AF61: (859) 392-1750 | AH61: Boyd | AI61: (DIST 46) | AJ61: Boyd (DIST 46) | AL61: Boyd | AN61: (606) 739-5173 | AP61: Boyd (DIST 48) | AQ61: BOYD48 | AR61: 1.2284 | AS61: BOYD | AT61: Boyd | AU61: 48 | AV61: Boyd (DIST 48) | AZ61: Boyd (DIST 24) | BA61: 1.386
A62: 060 | B62: Knott | C62: 060 | E62: 01047 | F62: 010 | G62: Boyd | H62: 47 | K62: BOYD | L62: Boyd | M62: 01025 | N62: Boyd | O62: (DIST 25) | P62: Boyd (DIST 25) | Q62: Boyd (DIST 25) | R62: Boyd (DIST 24) | S62: 1.4059 | T62: 0.099 | V62: Boyd (DIST 24) | W62: 1.4059 | X62: 0.099 | AE62: Knott | AF62: (606) 785-5569 | AH62: Boyd | AI62: (DIST 47) | AJ62: Boyd (DIST 47) | AL62: Boyd | AN62: (606) 739-5173 | AP62: Boyd (DIST 53) | AQ62: BOYD53 | AR62: 1.4274 | AS62: BOYD | AT62: Boyd | AU62: 53 | AV62: Boyd (DIST 53) | AZ62: Boyd (DIST 25) | BA62: 1.5935
A63: 061 | B63: Knox | C63: 061 | E63: 01048 | F63: 010 | G63: Boyd | H63: 48 | K63: BOYD | L63: Boyd | M63: 01026 | N63: Boyd | O63: (DIST 26) | P63: Boyd (DIST 26) | Q63: Boyd (DIST 26) | R63: Boyd (DIST 25) | S63: 1.5785 | T63: 0.099 | V63: Boyd (DIST 25) | W63: 1.5785 | X63: 0.099 | AE63: Knox | AF63: (606) 546-4113 | AH63: Boyd | AI63: (DIST 48) | AJ63: Boyd (DIST 48) | AL63: Boyd | AN63: (606) 739-5173 | AP63: Boyle (DIST 00) | AQ63: BOYL00 | AR63: 1.2226 | AS63: BOYL | AT63: Boyle | AU63: 00 | AV63: Boyle (DIST 00) | AZ63: Boyd (DIST 26) | BA63: 1.5935
A64: 062 | B64: LaRue | C64: 062 | E64: 01053 | F64: 010 | G64: Boyd | H64: 53 | K64: BOYD | L64: Boyd | M64: 01033 | N64: Boyd | O64: (DIST 33) | P64: Boyd (DIST 33) | Q64: Boyd (DIST 33) | R64: Boyd (DIST 26) | S64: 1.5785 | T64: 0.099 | V64: Boyd (DIST 26) | W64: 1.5785 | X64: 0.099 | AE64: Larue | AF64: (270) 358-4202 | AH64: Boyd | AI64: (DIST 53) | AJ64: Boyd (DIST 53) | AL64: Boyd | AN64: (606) 739-5173 | AP64: Boyle (DIST 01) | AQ64: BOYL01 | AR64: 1.4886 | AS64: BOYL | AT64: Boyle | AU64: 01 | AV64: Boyle (DIST 01) | AZ64: Boyd (DIST 33) | BA64: 1.4634
A65: 063 | B65: Laurel | C65: 063 | E65: 01100 | F65: 011 | G65: Boyle | H65: 00 | K65: BOYD | L65: Boyd | M65: 01034 | N65: Boyd | O65: (DIST 34) | P65: Boyd (DIST 34) | Q65: Boyd (DIST 34) | R65: Boyd (DIST 33) | S65: 1.4569 | T65: 0.199 | V65: Boyd (DIST 33) | W65: 1.4569 | X65: 0.199 | AE65: Laurel | AF65: (606) 864-2889 | AH65: Boyle | AI65: (DIST 00) | AJ65: Boyle (DIST 00) | AL65: Boyle | AN65: (859) 238-1104 | AP65: Boyle (DIST 02) | AQ65: BOYL02 | AR65: 1.5788 | AS65: BOYL | AT65: Boyle | AU65: 02 | AV65: Boyle (DIST 02) | AZ65: Boyd (DIST 34) | BA65: 1.621
A66: 064 | B66: Lawrence | C66: 064 | E66: 01101 | F66: 011 | G66: Boyle | H66: 01 | K66: BOYD | L66: Boyd | M66: 01044 | N66: Boyd | O66: (DIST 44) | P66: Boyd (DIST 44) | Q66: Boyd (DIST 44) | R66: Boyd (DIST 34) | S66: 1.6059 | T66: 0.099 | V66: Boyd (DIST 34) | W66: 1.6059 | X66: 0.099 | AE66: Lawrence | AF66: (606) 638-4743 | AH66: Boyle | AI66: (DIST 01) | AJ66: Boyle (DIST 01) | AL66: Boyle | AN66: (859) 238-1104 | AP66: Boyle (DIST 04) | AQ66: BOYL04 | AR66: 1.3128 | AS66: BOYL | AT66: Boyle | AU66: 04 | AV66: Boyle (DIST 04) | AZ66: Boyd (DIST 44) | BA66: 1.2284
A67: 065 | B67: Lee | C67: 065 | E67: 01102 | F67: 011 | G67: Boyle | H67: 02 | K67: BOYD | L67: Boyd | M67: 01045 | N67: Boyd | O67: (DIST 45) | P67: Boyd (DIST 45) | Q67: Boyd (DIST 45) | R67: Boyd (DIST 44) | S67: 1.2569 | T67: 0.199 | V67: Boyd (DIST 44) | W67: 1.2569 | X67: 0.199 | AE67: Lee | AF67: (606) 464-4105 | AH67: Boyle | AI67: (DIST 02) | AJ67: Boyle (DIST 02) | AL67: Boyle | AN67: (859) 238-1104 | AP67: Boyle (DIST 05) | AQ67: BOYL05 | AR67: 1.5013 | AS67: BOYL | AT67: Boyle | AU67: 05 | AV67: Boyle (DIST 05) | AZ67: Boyd (DIST 45) | BA67: 1.2284
A68: 066 | B68: Leslie | C68: 066 | E68: 01104 | F68: 011 | G68: Boyle | H68: 04 | K68: BOYD | L68: Boyd | M68: 01046 | N68: Boyd | O68: (DIST 46) | P68: Boyd (DIST 46) | Q68: Boyd (DIST 46) | R68: Boyd (DIST 45) | S68: 1.2569 | T68: 0.199 | V68: Boyd (DIST 45) | W68: 1.2569 | X68: 0.199 | AE68: Leslie | AF68: (606) 672-2456 | AH68: Boyle | AI68: (DIST 04) | AJ68: Boyle (DIST 04) | AL68: Boyle | AN68: (859) 238-1104 | AP68: Boyle (DIST 06) | AQ68: BOYL06 | AR68: 1.2266 | AS68: BOYL | AT68: Boyle | AU68: 06 | AV68: Boyle (DIST 06) | AZ68: Boyd (DIST 46) | BA68: =VLOOKUP(AZ68,AP$3:AR$691,3,FALSE) -> 1.2284
A69: 067 | B69: Letcher | C69: 067 | E69: 01105 | F69: 011 | G69: Boyle | H69: 05 | K69: BOYD | L69: Boyd | M69: 01047 | N69: Boyd | O69: (DIST 47) | P69: Boyd (DIST 47) | Q69: Boyd (DIST 47) | R69: Boyd (DIST 46) | S69: 1.2569 | T69: 0.199 | V69: Boyd (DIST 46) | W69: 1.2569 | X69: 0.199 | AE69: Letcher | AF69: (606) 633-2182 | AH69: Boyle | AI69: (DIST 05) | AJ69: Boyle (DIST 05) | AL69: Boyle | AN69: (859) 238-1104 | AP69: Bracken (DIST 00) | AQ69: BRAC00 | AR69: 1.1892 | AS69: BRAC | AT69: Bracken | AU69: 00 | AV69: Bracken (DIST 00) | AZ69: Boyd (DIST 47) | BA69: 1.2284
A70: 068 | B70: Lewis | C70: 068 | E70: 01106 | F70: 011 | G70: Boyle | H70: 06 | K70: BOYD | L70: Boyd | M70: 01048 | N70: Boyd | O70: (DIST 48) | P70: Boyd (DIST 48) | Q70: Boyd (DIST 48) | R70: Boyd (DIST 47) | S70: 1.2569 | T70: 0.199 | V70: Boyd (DIST 47) | W70: 1.2569 | X70: 0.199 | AE70: Lewis | AF70: (606) 796-2622 | AH70: Boyle | AI70: (DIST 06) | AJ70: Boyle (DIST 06) | AL70: Boyle | AN70: (859) 238-1104 | AP70: Bracken (DIST 01) | AQ70: BRAC01 | AR70: 1.9992 | AS70: BRAC | AT70: Bracken | AU70: 01 | AV70: Bracken (DIST 01) | AZ70: Boyd (DIST 48) | BA70: 1.2284
A71: 069 | B71: Lincoln | C71: 069 | E71: 01200 | F71: 012 | G71: Bracken | H71: 00 | K71: BOYD | L71: Boyd | M71: 01053 | N71: Boyd | O71: (DIST 53) | P71: Boyd (DIST 53) | Q71: Boyd (DIST 53) | R71: Boyd (DIST 48) | S71: 1.2569 | T71: 0.199 | V71: Boyd (DIST 48) | W71: 1.2569 | X71: 0.199 | AE71: Lincoln | AF71: (606) 365-4550 | AH71: Bracken | AI71: (DIST 00) | AJ71: Bracken (DIST 00) | AL71: Bracken | AN71: (606) 735-2228 | AP71: Bracken (DIST 02) | AQ71: BRAC02 | AR71: 1.1892 | AS71: BRAC | AT71: Bracken | AU71: 02 | AV71: Bracken (DIST 02) | AZ71: Boyd (DIST 53) | BA71: 1.4274
A72: 070 | B72: Livingston | C72: 070 | E72: 01201 | F72: 012 | G72: Bracken | H72: 01 | K72: BOYD | L72: Boyd | M72: UNKNOWN | N72: Boyd | O72: (DIST UNKNOWN) | P72: (DIST UNKNOWN) | Q72: (DIST UNKNOWN) | R72: Boyd (DIST 53) | S72: 1.4209 | T72: 0.199 | V72: Boyd (DIST 53) | W72: 1.4209 | X72: 0.199 | AE72: Livingston | AF72: (270) 928-2524 | AH72: Bracken | AI72: (DIST 01) | AJ72: Bracken (DIST 01) | AL72: Bracken | AN72: (606) 735-2228 | AP72: Bracken (DIST 03) | AQ72: BRAC03 | AR72: 1.1892 | AS72: BRAC | AT72: Bracken | AU72: 03 | AV72: Bracken (DIST 03) | AZ72: Boyd (UNKNOWN)
A73: 071 | B73: Logan | C73: 071 | E73: 01202 | F73: 012 | G73: Bracken | H73: 02 | J73: HANCK | K73: BOYL | L73: Boyle | M73: 01100 | N73: Boyle | O73: (DIST 00) | P73: Boyle (DIST 00) | Q73: Boyle (DIST 00) | R73: Boyd (UNKNOWN) | S73: 1.2239 | T73: 0.099 | V73: Boyd (UNKNOWN) | W73: 1.2239 | X73: 0.099 | AE73: Logan | AF73: (270) 726-8334 | AH73: Bracken | AI73: (DIST 02) | AJ73: Bracken (DIST 02) | AL73: Bracken | AN73: (606) 735-2228 | AP73: Bracken (DIST 04) | AQ73: BRAC04 | AR73: 2.4546 | AS73: BRAC | AT73: Bracken | AU73: 04 | AV73: Bracken (DIST 04) | AZ73: Boyle (DIST 00) | BA73: 1.2226
A74: 072 | B74: Lyon | C74: 072 | E74: 01204 | F74: 012 | G74: Bracken | H74: 04 | J74: HARD | K74: BOYL | L74: Boyle | M74: 01101 | N74: Boyle | O74: (DIST 01) | P74: Boyle (DIST 01) | Q74: Boyle (DIST 01) | R74: Boyle (DIST 00) | S74: 1.1608 | T74: 0.1291 | V74: Boyle (DIST 00) | W74: 1.1608 | X74: 0.1291 | AE74: Lyon | AF74: (270) 388-7271 | AH74: Bracken | AI74: (DIST 04) | AJ74: Bracken (DIST 04) | AL74: Bracken | AN74: (606) 735-2228 | AP74: Bracken (DIST 05) | AQ74: BRAC05 | AR74: 1.5482 | AS74: BRAC | AT74: Bracken | AU74: 05 | AV74: Bracken (DIST 05) | AZ74: Boyle (DIST 01) | BA74: 1.4886
A75: 073 | B75: McCracken | C75: 073 | E75: 01301 | F75: 013 | G75: Breathitt | H75: 01 | J75: HARL | K75: BOYL | L75: Boyle | M75: 01102 | N75: Boyle | O75: (DIST 02) | P75: Boyle (DIST 02) | Q75: Boyle (DIST 02) | R75: Boyle (DIST 01) | S75: 1.4528 | T75: 0.1291 | V75: Boyle (DIST 01) | W75: 1.4528 | X75: 0.1291 | AE75: Madison | AF75: (859) 623-5410 | AH75: Breathitt | AI75: (DIST 01) | AJ75: Breathitt (DIST 01) | AL75: Breathitt | AN75: (606) 666-7973 | AP75: Breathitt (DIST 01) | AQ75: BREA01 | AR75: 1.3394 | AS75: BREA | AT75: Breathitt | AU75: 01 | AV75: Breathitt (DIST 01) | AZ75: Boyle (DIST 02) | BA75: 1.5788
A76: 074 | B76: McCreary | C76: 074 | E76: 01303 | F76: 013 | G76: Breathitt | H76: 03 | J76: LAUR | K76: BOYL | L76: Boyle | M76: 01104 | N76: Boyle | O76: (DIST 04) | P76: Boyle (DIST 04) | Q76: Boyle (DIST 04) | R76: Boyle (DIST 02) | S76: 1.5234 | T76: 0.1291 | V76: Boyle (DIST 02) | W76: 1.5234 | X76: 0.1291 | AE76: Magoffin | AF76: (606) 349-6198 | AH76: Breathitt | AI76: (DIST 03) | AJ76: Breathitt (DIST 03) | AL76: Breathitt | AN76: (606) 666-7973 | AP76: Breathitt (DIST 02) | AQ76: BREA02 | AR76: 1.3024 | AS76: BREA | AT76: Breathitt | AU76: 02 | AV76: Breathitt (DIST 02) | AZ76: Boyle (DIST 04) | BA76: 1.3128
A77: 075 | B77: McLean | C77: 075 | E77: 01304 | F77: 013 | G77: Breathitt | H77: 04 | J77: LAWR | K77: BOYL | L77: Boyle | M77: 01105 | N77: Boyle | O77: (DIST 05) | P77: Boyle (DIST 05) | Q77: Boyle (DIST 05) | R77: Boyle (DIST 04) | S77: 1.2314 | T77: 0.1291 | V77: Boyle (DIST 04) | W77: 1.2314 | X77: 0.1291 | AE77: Marion | AF77: (270) 692-3401 | AH77: Breathitt | AI77: (DIST 04) | AJ77: Breathitt (DIST 04) | AL77: Breathitt | AN77: (606) 666-7973 | AP77: Breathitt (DIST 03) | AQ77: BREA03 | AR77: 1.6224 | AS77: BREA | AT77: Breathitt | AU77: 03 | AV77: Breathitt (DIST 03) | AZ77: Boyle (DIST 05) | BA77: 1.5013
A78: 076 | B78: Madison | C78: 076 | E78: 01401 | F78: 014 | G78: Breckinridge | H78: 01 | J78: LEE | K78: BOYL | L78: Boyle | M78: 01106 | N78: Boyle | O78: (DIST 06) | P78: Boyle (DIST 06) | Q78: Boyle (DIST 06) | R78: Boyle (DIST 05) | S78: 1.4395 | T78: 0.1291 | V78: Boyle (DIST 05) | W78: 1.4395 | X78: 0.1291 | AE78: Marshall | AF78: (270) 527-4728 | AH78: Breckinridge | AI78: (DIST 01) | AJ78: Breckinridge (DIST 01) | AL78: Breckinridge | AN78: (270) 756-5154 | AP78: Breathitt (DIST 04) | AQ78: BREA04 | AR78: 1.5854 | AS78: BREA | AT78: Breathitt | AU78: 04 | AV78: Breathitt (DIST 04) | AZ78: Boyle (DIST 06) | BA78: 1.2266
A79: 077 | B79: Magoffin | C79: 077 | E79: 01402 | F79: 014 | G79: Breckinridge | H79: 02 | K79: BOYL | L79: Boyle | M79: UNKNOWN | N79: Boyle | O79: (DIST UNKNOWN) | P79: (DIST UNKNOWN) | Q79: (DIST UNKNOWN) | R79: Boyle (DIST 06) | S79: 1.1612 | T79: 0.1291 | V79: Boyle (DIST 06) | W79: 1.1612 | X79: 0.1291 | AE79: Martin | AF79: (606) 298-2807 | AH79: Breckinridge | AI79: (DIST 02) | AJ79: Breckinridge (DIST 02) | AL79: Breckinridge | AN79: (270) 756-5154 | AP79: Breckinridge (DIST 01) | AQ79: BREC01 | AR79: 0.892 | AS79: BREC | AT79: Breckinridge | AU79: 01 | AV79: Breckinridge (DIST 01) | AZ79: Boyle (UNKNOWN)
A80: 078 | B80: Marion | C80: 078 | E80: 01403 | F80: 014 | G80: Breckinridge | H80: 03 | K80: BRAC | L80: Bracken | M80: 01200 | N80: Bracken | O80: (DIST 00) | P80: Bracken (DIST 00) | Q80: Bracken (DIST 00) | R80: Boyle (UNKNOWN) | S80: 1.1608 | T80: 0.1291 | V80: Boyle (UNKNOWN) | W80: 1.1608 | X80: 0.1291 | AE80: Mason | AF80: (606) 564-3700 | AH80: Breckinridge | AI80: (DIST 03) | AJ80: Breckinridge (DIST 03) | AL80: Breckinridge | AN80: (270) 756-5154 | AP80: Breckinridge (DIST 02) | AQ80: BREC02 | AR80: 1.089 | AS80: BREC | AT80: Breckinridge | AU80: 02 | AV80: Breckinridge (DIST 02) | AZ80: Bracken (DIST 00) | BA80: 1.1892
A81: 079 | B81: Marshall | C81: 079 | E81: 01404 | F81: 014 | G81: Breckinridge | H81: 04 | K81: BRAC | L81: Bracken | M81: 01201 | N81: Bracken | O81: (DIST 01) | P81: Bracken (DIST 01) | Q81: Bracken (DIST 01) | R81: Bracken (DIST 00) | S81: 1.1968 | T81: 0.3458 | V81: Bracken (DIST 00) | W81: 1.1968 | X81: 0.3458 | AE81: McCracken | AF81: (270) 444-4712 | AH81: Breckinridge | AI81: (DIST 04) | AJ81: Breckinridge (DIST 04) | AL81: Breckinridge | AN81: (270) 756-5154 | AP81: Breckinridge (DIST 03) | AQ81: BREC03 | AR81: 1.252 | AS81: BREC | AT81: Breckinridge | AU81: 03 | AV81: Breckinridge (DIST 03) | AZ81: Bracken (DIST 01) | BA81: 1.9992
A82: 080 | B82: Martin | C82: 080 | E82: 01405 | F82: 014 | G82: Breckinridge | H82: 05 | K82: BRAC | L82: Bracken | M82: 01202 | N82: Bracken | O82: (DIST 02) | P82: Bracken (DIST 02) | Q82: Bracken (DIST 02) | R82: Bracken (DIST 01) | S82: 2.2688 | T82: 0.3458 | V82: Bracken (DIST 01) | W82: 2.2688 | X82: 0.3458 | AE82: McCreary | AF82: (606) 376-2514 | AH82: Breckinridge | AI82: (DIST 05) | AJ82: Breckinridge (DIST 05) | AL82: Breckinridge | AN82: (270) 756-5154 | AP82: Breckinridge (DIST 04) | AQ82: BREC04 | AR82: 1.3695 | AS82: BREC | AT82: Breckinridge | AU82: 04 | AV82: Breckinridge (DIST 04) | AZ82: Bracken (DIST 02) | BA82: 1.1892
A83: 081 | B83: Mason | C83: 081 | E83: 01500 | F83: 015 | G83: Bullitt | H83: 00 | K83: BRAC | L83: Bracken | M83: 01203 | N83: Bracken | O83: (DIST 03) | P83: Bracken (DIST 03) | Q83: Bracken (DIST 03) | R83: Bracken (DIST 02) | S83: 1.1968 | T83: 0.3458 | V83: Bracken (DIST 02) | W83: 1.1968 | X83: 0.3458 | AE83: McLean | AF83: (270) 273-3291 | AH83: Bullitt | AI83: (DIST 00) | AJ83: Bullitt (DIST 00) | AL83: Bullitt | AN83: (502) 543-7480 | AP83: Breckinridge (DIST 05) | AQ83: BREC05 | AR83: 1.451 | AS83: BREC | AT83: Breckinridge | AU83: 05 | AV83: Breckinridge (DIST 05) | AZ83: Bracken (DIST 03) | BA83: 1.1892
A84: 082 | B84: Meade | C84: 082 | E84: 01501 | F84: 015 | G84: Bullitt | H84: 01 | K84: BRAC | L84: Bracken | M84: 01204 | N84: Bracken | O84: (DIST 04) | P84: Bracken (DIST 04) | Q84: Bracken (DIST 04) | R84: Bracken (DIST 03) | S84: 1.1968 | T84: 0.3458 | V84: Bracken (DIST 03) | W84: 1.1968 | X84: 0.3458 | AE84: Meade | AF84: (270) 422-2178 | AH84: Bullitt | AI84: (DIST 01) | AJ84: Bullitt (DIST 01) | AL84: Bullitt | AN84: (502) 543-7480 | AP84: Bullitt (DIST 00) | AQ84: BULL00 | AR84: 0.9666 | AS84: BULL | AT84: Bullitt | AU84: 00 | AV84: Bullitt (DIST 00) | AZ84: Bracken (DIST 04) | BA84: 2.4546
A85: 083 | B85: Menifee | C85: 083 | E85: 01502 | F85: 015 | G85: Bullitt | H85: 02 | K85: BRAC | L85: Bracken | M85: 01205 | N85: Bracken | O85: (DIST 05) | P85: Bracken (DIST 05) | Q85: Bracken (DIST 05) | R85: Bracken (DIST 04) | S85: 2.4502 | T85: 0.3458 | V85: Bracken (DIST 04) | W85: 2.4502 | X85: 0.3458 | AE85: Menifee | AF85: (606) 768-3514 | AH85: Bullitt | AI85: (DIST 02) | AJ85: Bullitt (DIST 02) | AL85: Bullitt | AN85: (502) 543-7480 | AP85: Bullitt (DIST 01) | AQ85: BULL01 | AR85: 1.0666 | AS85: BULL | AT85: Bullitt | AU85: 01 | AV85: Bullitt (DIST 01) | AZ85: Bracken (DIST 05) | BA85: 1.5482
A86: 084 | B86: Mercer | C86: 084 | E86: 01503 | F86: 015 | G86: Bullitt | H86: 03 | K86: BRAC | L86: Bracken | M86: UNKNOWN | N86: Bracken | O86: (DIST UNKNOWN) | P86: (DIST UNKNOWN) | Q86: (DIST UNKNOWN) | R86: Bracken (DIST 05) | S86: 1.5258 | T86: 0.3458 | V86: Bracken (DIST 05) | W86: 1.5258 | X86: 0.3458 | AE86: Mercer | AF86: (859) 734-6330 | AH86: Bullitt | AI86: (DIST 03) | AJ86: Bullitt (DIST 03) | AL86: Bullitt | AN86: (502) 543-7480 | AP86: Bullitt (DIST 02) | AQ86: BULL02 | AR86: 1.0666 | AS86: BULL | AT86: Bullitt | AU86: 02 | AV86: Bullitt (DIST 02) | AZ86: Bracken (UNKNOWN)
A87: 085 | B87: Metcalfe | C87: 085 | E87: 01504 | F87: 015 | G87: Bullitt | H87: 04 | K87: BREA | L87: Breathitt | M87: 01301 | N87: Breathitt | O87: (DIST 01) | P87: Breathitt (DIST 01) | Q87: Breathitt (DIST 01) | R87: Bracken (UNKNOWN) | S87: 1.1968 | T87: 0.3458 | V87: Bracken (UNKNOWN) | W87: 1.1968 | X87: 0.3458 | AE87: Metcalfe | AF87: (270) 432-3162 | AH87: Bullitt | AI87: (DIST 04) | AJ87: Bullitt (DIST 04) | AL87: Bullitt | AN87: (502) 543-7480 | AP87: Bullitt (DIST 03) | AQ87: BULL03 | AR87: 1.1666 | AS87: BULL | AT87: Bullitt | AU87: 03 | AV87: Bullitt (DIST 03) | AZ87: Breathitt (DIST 01) | BA87: 1.3394
A88: 086 | B88: Monroe | C88: 086 | E88: 01505 | F88: 015 | G88: Bullitt | H88: 05 | K88: BREA | L88: Breathitt | M88: 01302 | N88: Breathitt | O88: (DIST 02) | P88: Breathitt (DIST 02) | Q88: Breathitt (DIST 02) | R88: Breathitt (DIST 01) | S88: 1.2792 | T88: 0 | V88: Breathitt (DIST 01) | W88: 1.2792 | X88: 0 | AE88: Monroe | AF88: (270) 487-6401 | AH88: Bullitt | AI88: (DIST 05) | AJ88: Bullitt (DIST 05) | AL88: Bullitt | AN88: (502) 543-7480 | AP88: Bullitt (DIST 04) | AQ88: BULL04 | AR88: 1.0666 | AS88: BULL | AT88: Bullitt | AU88: 04 | AV88: Bullitt (DIST 04) | AZ88: Breathitt (DIST 02) | BA88: 1.3024
A89: 087 | B89: Montgomery | C89: 087 | E89: 01506 | F89: 015 | G89: Bullitt | H89: 06 | K89: BREA | L89: Breathitt | M89: 01303 | N89: Breathitt | O89: (DIST 03) | P89: Breathitt (DIST 03) | Q89: Breathitt (DIST 03) | R89: Breathitt (DIST 02) | S89: 1.2392 | T89: 0 | V89: Breathitt (DIST 02) | W89: 1.2392 | X89: 0 | AE89: Montgomery | AF89: (859) 498-8710 | AH89: Bullitt | AI89: (DIST 06) | AJ89: Bullitt (DIST 06) | AL89: Bullitt | AN89: (502) 543-7480 | AP89: Bullitt (DIST 05) | AQ89: BULL05 | AR89: 1.2616 | AS89: BULL | AT89: Bullitt | AU89: 05 | AV89: Bullitt (DIST 05) | AZ89: Breathitt (DIST 03) | BA89: 1.6224
A90: 088 | B90: Morgan | C90: 088 | E90: 01507 | F90: 015 | G90: Bullitt | H90: 07 | K90: BREA | L90: Breathitt | M90: 01304 | N90: Breathitt | O90: (DIST 04) | P90: Breathitt (DIST 04) | Q90: Breathitt (DIST 04) | R90: Breathitt (DIST 03) | S90: 1.5582 | T90: 0 | V90: Breathitt (DIST 03) | W90: 1.5582 | X90: 0 | AE90: Morgan | AF90: (606) 743-3349 | AH90: Bullitt | AI90: (DIST 07) | AJ90: Bullitt (DIST 07) | AL90: Bullitt | AN90: (502) 543-7480 | AP90: Bullitt (DIST 06) | AQ90: BULL06 | AR90: 1.2466 | AS90: BULL | AT90: Bullitt | AU90: 06 | AV90: Bullitt (DIST 06) | AZ90: Breathitt (DIST 04) | BA90: 1.5854
A91: 089 | B91: Muhlenberg | C91: 089 | E91: 01508 | F91: 015 | G91: Bullitt | H91: 08 | K91: BREA | L91: Breathitt | M91: UNKNOWN | N91: Breathitt | O91: (DIST UNKNOWN) | P91: (DIST UNKNOWN) | Q91: (DIST UNKNOWN) | R91: Breathitt (DIST 04) | S91: 1.5182 | T91: 0 | V91: Breathitt (DIST 04) | W91: 1.5182 | X91: 0 | AE91: Muhlenberg | AF91: (270) 338-4664 | AH91: Bullitt | AI91: (DIST 08) | AJ91: Bullitt (DIST 08) | AL91: Bullitt | AN91: (502) 543-7480 | AP91: Bullitt (DIST 07) | AQ91: BULL07 | AR91: 1.2242 | AS91: BULL | AT91: Bullitt | AU91: 07 | AV91: Bullitt (DIST 07) | AZ91: Breathitt (UNKNOWN)
A92: 090 | B92: Nelson | C92: 090 | E92: 01509 | F92: 015 | G92: Bullitt | H92: 09 | K92: BREC | L92: Breckinridge | M92: 01401 | N92: Breckinridge | O92: (DIST 01) | P92: Breckinridge (DIST 01) | Q92: Breckinridge (DIST 01) | R92: Breathitt (UNKNOWN) | S92: 1.2392 | T92: 0 | V92: Breathitt (UNKNOWN) | W92: 1.2392 | X92: 0 | AE92: Nelson | AF92: (502) 348-1810 | AH92: Bullitt | AI92: (DIST 09) | AJ92: Bullitt (DIST 09) | AL92: Bullitt | AN92: (502) 543-7480 | AP92: Bullitt (DIST 08) | AQ92: BULL08 | AR92: 1.2666 | AS92: BULL | AT92: Bullitt | AU92: 08 | AV92: Bullitt (DIST 08) | AZ92: Breckinridge (DIST 01) | BA92: 0.892
A93: 091 | B93: Nicholas | C93: 091 | E93: 01510 | F93: 015 | G93: Bullitt | H93: 10 | K93: BREC | L93: Breckinridge | M93: 01402 | N93: Breckinridge | O93: (DIST 02) | P93: Breckinridge (DIST 02) | Q93: Breckinridge (DIST 02) | R93: Breckinridge (DIST 01) | S93: 0.8867 | T93: 0.2157 | V93: Breckinridge (DIST 01) | W93: 0.8867 | X93: 0.2157 | AE93: Nicholas | AF93: (859) 289-3735 | AH93: Bullitt | AI93: (DIST 10) | AJ93: Bullitt (DIST 10) | AL93: Bullitt | AN93: (502) 543-7480 | AP93: Bullitt (DIST 09) | AQ93: BULL09 | AR93: 1.2411 | AS93: BULL | AT93: Bullitt | AU93: 09 | AV93: Bullitt (DIST 09) | AZ93: Breckinridge (DIST 02) | BA93: 1.089
A94: 092 | B94: Ohio | C94: 092 | E94: 01511 | F94: 015 | G94: Bullitt | H94: 11 | K94: BREC | L94: Breckinridge | M94: 01403 | N94: Breckinridge | O94: (DIST 03) | P94: Breckinridge (DIST 03) | Q94: Breckinridge (DIST 03) | R94: Breckinridge (DIST 02) | S94: 1.0837 | T94: 0.2157 | V94: Breckinridge (DIST 02) | W94: 1.0837 | X94: 0.2157 | AE94: Ohio | AF94: (270) 298-4433 | AH94: Bullitt | AI94: (DIST 11) | AJ94: Bullitt (DIST 11) | AL94: Bullitt | AN94: (502) 543-7480 | AP94: Bullitt (DIST 10) | AQ94: BULL10 | AR94: 1.3066 | AS94: BULL | AT94: Bullitt | AU94: 10 | AV94: Bullitt (DIST 10) | AZ94: Breckinridge (DIST 03) | BA94: 1.252
A95: 093 | B95: Oldham | C95: 093 | E95: 01512 | F95: 015 | G95: Bullitt | H95: 12 | K95: BREC | L95: Breckinridge | M95: 01404 | N95: Breckinridge | O95: (DIST 04) | P95: Breckinridge (DIST 04) | Q95: Breckinridge (DIST 04) | R95: Breckinridge (DIST 03) | S95: 1.2367 | T95: 0.2157 | V95: Breckinridge (DIST 03) | W95: 1.2367 | X95: 0.2157 | AE95: Oldham | AF95: (502) 222-9320 | AH95: Bullitt | AI95: (DIST 12) | AJ95: Bullitt (DIST 12) | AL95: Bullitt | AN95: (502) 543-7480 | AP95: Bullitt (DIST 11) | AQ95: BULL11 | AR95: 1.0946 | AS95: BULL | AT95: Bullitt | AU95: 11 | AV95: Bullitt (DIST 11) | AZ95: Breckinridge (DIST 04) | BA95: 1.3695
A96: 094 | B96: Owen | C96: 094 | E96: 01516 | F96: 015 | G96: Bullitt | H96: 16 | K96: BREC | L96: Breckinridge | M96: 01405 | N96: Breckinridge | O96: (DIST 05) | P96: Breckinridge (DIST 05) | Q96: Breckinridge (DIST 05) | R96: Breckinridge (DIST 04) | S96: 1.3067 | T96: 0.2157 | V96: Breckinridge (DIST 04) | W96: 1.3067 | X96: 0.2157 | AE96: Owen | AF96: (502) 484-5172 | AH96: Bullitt | AI96: (DIST 16) | AJ96: Bullitt (DIST 16) | AL96: Bullitt | AN96: (502) 543-7480 | AP96: Bullitt (DIST 12) | AQ96: BULL12 | AR96: 1.0666 | AS96: BULL | AT96: Bullitt | AU96: 12 | AV96: Bullitt (DIST 12) | AZ96: Breckinridge (DIST 05) | BA96: 1.451
A97: 095 | B97: Owsley | C97: 095 | E97: 01600 | F97: 016 | G97: Butler | H97: 00 | K97: BREC | L97: Breckinridge | M97: UNKNOWN | N97: Breckinridge | O97: (DIST UNKNOWN) | P97: (DIST UNKNOWN) | Q97: (DIST UNKNOWN) | R97: Breckinridge (DIST 05) | S97: 1.4457 | T97: 0.2157 | V97: Breckinridge (DIST 05) | W97: 1.4457 | X97: 0.2157 | AE97: Owsley | AF97: (606) 593-6265 | AH97: Butler | AI97: (DIST 00) | AJ97: Butler (DIST 00) | AL97: Butler | AN97: (270) 526-3455 | AP97: Bullitt (DIST 16) | AQ97: BULL16 | AR97: 1.1946 | AS97: BULL | AT97: Bullitt | AU97: 16 | AV97: Bullitt (DIST 16) | AZ97: Breckinridge (UNKNOWN)
A98: 096 | B98: Pendleton | C98: 096 | E98: 01601 | F98: 016 | G98: Butler | H98: 01 | K98: BULL | L98: Bullitt | M98: 01500 | N98: Bullitt | O98: (DIST 00) | P98: Bullitt (DIST 00) | Q98: Bullitt (DIST 00) | R98: Breckinridge (UNKNOWN) | S98: 0.8867 | T98: 0.2157 | V98: Breckinridge (UNKNOWN) | W98: 0.8867 | X98: 0.2157 | AE98: Pendleton | AF98: (859) 654-6055 | AH98: Butler | AI98: (DIST 01) | AJ98: Butler (DIST 01) | AL98: Butler | AN98: (270) 526-3455 | AP98: Butler (DIST 00) | AQ98: BUTL00 | AR98: 0.8485 | AS98: BUTL | AT98: Butler | AU98: 00 | AV98: Butler (DIST 00) | AZ98: Bullitt (DIST 00) | BA98: 0.9666
A99: 097 | B99: Perry | C99: 097 | E99: 01602 | F99: 016 | G99: Butler | H99: 02 | J99: BOUR | K99: BULL | L99: Bullitt | M99: 01501 | N99: Bullitt | O99: (DIST 01) | P99: Bullitt (DIST 01) | Q99: Bullitt (DIST 01) | R99: Bullitt (DIST 00) | S99: 0.9365 | T99: 0.0935 | V99: Bullitt (DIST 00) | W99: 0.9365 | X99: 0.0935 | AE99: Perry | AF99: (606) 436-4914 | AH99: Butler | AI99: (DIST 02) | AJ99: Butler (DIST 02) | AL99: Butler | AN99: (270) 526-3455 | AP99: Butler (DIST 01) | AQ99: BUTL01 | AR99: 0.9581 | AS99: BUTL | AT99: Butler | AU99: 01 | AV99: Butler (DIST 01) | AZ99: Bullitt (DIST 01) | BA99: 1.0666
A100: 098 | B100: Pike | C100: 098 | E100: 01603 | F100: 016 | G100: Butler | H100: 03 | J100: BOYD | K100: BULL | L100: Bullitt | M100: 01502 | N100: Bullitt | O100: (DIST 02) | P100: Bullitt (DIST 02) | Q100: Bullitt (DIST 02) | R100: Bullitt (DIST 01) | S100: 1.0365 | T100: 0.1935 | V100: Bullitt (DIST 01) | W100: 1.0365 | X100: 0.1935 | AE100: Pike | AF100: (606) 432-6201 | AH100: Butler | AI100: (DIST 03) | AJ100: Butler (DIST 03) | AL100: Butler | AN100: (270) 526-3455 | AP100: Butler (DIST 02) | AQ100: BUTL02 | AR100: 0.8485 | AS100: BUTL | AT100: Butler | AU100: 02 | AV100: Butler (DIST 02) | AZ100: Bullitt (DIST 02) | BA100: 1.0666
A101: 099 | B101: Powell | C101: 099 | E101: 016ND | F101: 016 | G101: Butler | H101: ND | J101: BOYL | K101: BULL | L101: Bullitt | M101: 01503 | N101: Bullitt | O101: (DIST 03) | P101: Bullitt (DIST 03) | Q101: Bullitt (DIST 03) | R101: Bullitt (DIST 02) | S101: 1.0365 | T101: 0.1935 | V101: Bullitt (DIST 02) | W101: 1.0365 | X101: 0.1935 | AE101: Powell | AF101: (606) 663-4184 | AH101: Butler | AI101: (DIST ND) | AJ101: Butler (DIST ND) | AL101: Butler | AN101: (270) 526-3455 | AP101: Butler (DIST 03) | AQ101: BUTL03 | AR101: 0.9435 | AS101: BUTL | AT101: Butler | AU101: 03 | AV101: Butler (DIST 03) | AZ101: Bullitt (DIST 03) | BA101: 1.1666
A102: 100 | B102: Pulaski | C102: 100 | E102: 01700 | F102: 017 | G102: Caldwell | H102: 00 | J102: BRAC | K102: BULL | L102: Bullitt | M102: 01504 | N102: Bullitt | O102: (DIST 04) | P102: Bullitt (DIST 04) | Q102: Bullitt (DIST 04) | R102: Bullitt (DIST 03) | S102: 1.1365 | T102: 0.2935 | V102: Bullitt (DIST 03) | W102: 1.1365 | X102: 0.2935 | AE102: Pulaski | AF102: (606) 679-1812 | AH102: Caldwell | AI102: (DIST 00) | AJ102: Caldwell (DIST 00) | AL102: Caldwell | AN102: (270) 365-7227 | AP102: Caldwell (DIST 00) | AQ102: CALD00 | AR102: 0.7438 | AS102: CALD | AT102: Caldwell | AU102: 00 | AV102: Caldwell (DIST 00) | AZ102: Bullitt (DIST 04) | BA102: 1.0666
A103: 101 | B103: Robertson | C103: 101 | E103: 01701 | F103: 017 | G103: Caldwell | H103: 01 | J103: BREA | K103: BULL | L103: Bullitt | M103: 01505 | N103: Bullitt | O103: (DIST 05) | P103: Bullitt (DIST 05) | Q103: Bullitt (DIST 05) | R103: Bullitt (DIST 04) | S103: 1.0365 | T103: 0.1935 | V103: Bullitt (DIST 04) | W103: 1.0365 | X103: 0.1935 | AE103: Robertson | AF103: (606) 724-5213 | AH103: Caldwell | AI103: (DIST 01) | AJ103: Caldwell (DIST 01) | AL103: Caldwell | AN103: (270) 365-7227 | AP103: Caldwell (DIST 01) | AQ103: CALD01 | AR103: 0.9176 | AS103: CALD | AT103: Caldwell | AU103: 01 | AV103: Caldwell (DIST 01) | AZ103: Bullitt (DIST 05) | BA103: 1.2616
A104: 102 | B104: Rockcastle | C104: 102 | E104: 01702 | F104: 017 | G104: Caldwell | H104: 02 | J104: CART | K104: BULL | L104: Bullitt | M104: 01506 | N104: Bullitt | O104: (DIST 06) | P104: Bullitt (DIST 06) | Q104: Bullitt (DIST 06) | R104: Bullitt (DIST 05) | S104: 1.2265 | T104: 0.2935 | V104: Bullitt (DIST 05) | W104: 1.2265 | X104: 0.2935 | AE104: Rockcastle | AF104: (606) 256-4194 | AH104: Caldwell | AI104: (DIST 02) | AJ104: Caldwell (DIST 02) | AL104: Caldwell | AN104: (270) 365-7227 | AP104: Caldwell (DIST 02) | AQ104: CALD02 | AR104: 1.0238 | AS104: CALD | AT104: Caldwell | AU104: 02 | AV104: Caldwell (DIST 02) | AZ104: Bullitt (DIST 06) | BA104: 1.2466
A105: 103 | B105: Rowan | C105: 103 | E105: 01801 | F105: 018 | G105: Calloway | H105: 01 | J105: CASE | K105: BULL | L105: Bullitt | M105: 01507 | N105: Bullitt | O105: (DIST 07) | P105: Bullitt (DIST 07) | Q105: Bullitt (DIST 07) | R105: Bullitt (DIST 06) | S105: 1.2165 | T105: 0.1935 | V105: Bullitt (DIST 06) | W105: 1.2165 | X105: 0.1935 | AE105: Rowan | AF105: (606) 784-5512 | AH105: Calloway | AI105: (DIST 01) | AJ105: Calloway (DIST 01) | AL105: Calloway | AN105: (270) 753-3482 | AP105: Calloway (DIST 01) | AQ105: CALL01 | AR105: 1.3047 | AS105: CALL | AT105: Calloway | AU105: 01 | AV105: Calloway (DIST 01) | AZ105: Bullitt (DIST 07) | BA105: 1.2242
A106: 104 | B106: Russell | C106: 104 | E106: 01802 | F106: 018 | G106: Calloway | H106: 02 | J106: CHRI | K106: BULL | L106: Bullitt | M106: 01508 | N106: Bullitt | O106: (DIST 08) | P106: Bullitt (DIST 08) | Q106: Bullitt (DIST 08) | R106: Bullitt (DIST 07) | S106: 1.1941 | T106: 0.1935 | V106: Bullitt (DIST 07) | W106: 1.1941 | X106: 0.1935 | AE106: Russell | AF106: (270) 343-4395 | AH106: Calloway | AI106: (DIST 02) | AJ106: Calloway (DIST 02) | AL106: Calloway | AN106: (270) 753-3482 | AP106: Calloway (DIST 02) | AQ106: CALL02 | AR106: 1.0793 | AS106: CALL | AT106: Calloway | AU106: 02 | AV106: Calloway (DIST 02) | AZ106: Bullitt (DIST 08) | BA106: 1.2666
A107: 105 | B107: Scott | C107: 105 | E107: 01803 | F107: 018 | G107: Calloway | H107: 03 | J107: CLAR | K107: BULL | L107: Bullitt | M107: 01509 | N107: Bullitt | O107: (DIST 09) | P107: Bullitt (DIST 09) | Q107: Bullitt (DIST 09) | R107: Bullitt (DIST 08) | S107: 1.2465 | T107: 0.1935 | V107: Bullitt (DIST 08) | W107: 1.2465 | X107: 0.1935 | AE107: Scott | AF107: (502) 863-7885 | AH107: Calloway | AI107: (DIST 03) | AJ107: Calloway (DIST 03) | AL107: Calloway | AN107: (270) 753-3482 | AP107: Calloway (DIST 03) | AQ107: CALL03 | AR107: 1.0507 | AS107: CALL | AT107: Calloway | AU107: 03 | AV107: Calloway (DIST 03) | AZ107: Bullitt (DIST 09) | BA107: 1.2411
A108: 106 | B108: Shelby | C108: 106 | E108: 01810 | F108: 018 | G108: Calloway | H108: 10 | J108: HARR | K108: BULL | L108: Bullitt | M108: 01510 | N108: Bullitt | O108: (DIST 10) | P108: Bullitt (DIST 10) | Q108: Bullitt (DIST 10) | R108: Bullitt (DIST 09) | S108: 1.211 | T108: 0.1935 | V108: Bullitt (DIST 09) | W108: 1.211 | X108: 0.1935 | AE108: Shelby | AF108: (502) 633-4403 | AH108: Calloway | AI108: (DIST 10) | AJ108: Calloway (DIST 10) | AL108: Calloway | AN108: (270) 753-3482 | AP108: Calloway (DIST 10) | AQ108: CALL10 | AR108: 0.8253 | AS108: CALL | AT108: Calloway | AU108: 10 | AV108: Calloway (DIST 10) | AZ108: Bullitt (DIST 10) | BA108: 1.3066
A109: 107 | B109: Simpson | C109: 107 | E109: 01812 | F109: 018 | G109: Calloway | H109: 12 | J109: HART | K109: BULL | L109: Bullitt | M109: 01511 | N109: Bullitt | O109: (DIST 11) | P109: Bullitt (DIST 11) | Q109: Bullitt (DIST 11) | R109: Bullitt (DIST 10) | S109: 1.2765 | T109: 0.0935 | V109: Bullitt (DIST 10) | W109: 1.2765 | X109: 0.0935 | AE109: Simpson | AF109: (270) 586-4261 | AH109: Calloway | AI109: (DIST 12) | AJ109: Calloway (DIST 12) | AL109: Calloway | AN109: (270) 753-3482 | AP109: Calloway (DIST 12) | AQ109: CALL12 | AR109: 1.2253 | AS109: CALL | AT109: Calloway | AU109: 12 | AV109: Calloway (DIST 12) | AZ109: Bullitt (DIST 11) | BA109: 1.0946
A110: 108 | B110: Spencer | C110: 108 | E110: 01830 | F110: 018 | G110: Calloway | H110: 30 | K110: BULL | L110: Bullitt | M110: 01512 | N110: Bullitt | O110: (DIST 12) | P110: Bullitt (DIST 12) | Q110: Bullitt (DIST 12) | R110: Bullitt (DIST 11) | S110: 1.0615 | T110: 0.0935 | V110: Bullitt (DIST 11) | W110: 1.0615 | X110: 0.0935 | AE110: Spencer | AF110: (502) 477-3207 | AH110: Calloway | AI110: (DIST 30) | AJ110: Calloway (DIST 30) | AL110: Calloway | AN110: (270) 753-3482 | AP110: Campbell (DIST 01) | AQ110: CAMP01 | AR110: 1.0579 | AS110: CAMP | AT110: Campbell | AU110: 01 | AV110: Campbell (DIST 01) | AZ110: Bullitt (DIST 12) | BA110: 1.0666
A111: 109 | B111: Taylor | C111: 109 | E111: 01904 | F111: 019 | G111: Campbell | H111: 04 | J111: HEND | K111: BULL | L111: Bullitt | M111: 01516 | N111: Bullitt | O111: (DIST 16) | P111: Bullitt (DIST 16) | Q111: Bullitt (DIST 16) | R111: Bullitt (DIST 12) | S111: 1.0365 | T111: 0.1935 | V111: Bullitt (DIST 12) | W111: 1.0365 | X111: 0.1935 | AE111: Taylor | AF111: (270) 465-5811 | AH111: Campbell | AI111: (DIST 04) | AJ111: Campbell (DIST 04) | AL111: Campbell | AN111: (859) 292-3871 | AP111: Campbell (DIST 02) | AQ111: CAMP02 | AR111: 1.0579 | AS111: CAMP | AT111: Campbell | AU111: 02 | AV111: Campbell (DIST 02) | AZ111: Bullitt (DIST 16) | BA111: 1.1946
A112: 110 | B112: Todd | C112: 110 | E112: 01905 | F112: 019 | G112: Campbell | H112: 05 | J112: HENR | K112: BULL | L112: Bullitt | M112: UNKNOWN | N112: Bullitt | O112: (DIST UNKNOWN) | P112: (DIST UNKNOWN) | Q112: (DIST UNKNOWN) | R112: Bullitt (DIST 16) | S112: 1.1615 | T112: 0.1935 | V112: Bullitt (DIST 16) | W112: 1.1615 | X112: 0.1935 | AE112: Todd | AF112: (270) 265-9966 | AH112: Campbell | AI112: (DIST 05) | AJ112: Campbell (DIST 05) | AL112: Campbell | AN112: (859) 292-3871 | AP112: Campbell (DIST 04) | AQ112: CAMP04 | AR112: 1.3579 | AS112: CAMP | AT112: Campbell | AU112: 04 | AV112: Campbell (DIST 04) | AZ112: Bullitt (UNKNOWN)
A113: 111 | B113: Trigg | C113: 111 | E113: 01906 | F113: 019 | G113: Campbell | H113: 06 | J113: HICK | K113: BUTL | L113: Butler | M113: 01600 | N113: Butler | O113: (DIST 00) | P113: Butler (DIST 00) | Q113: Butler (DIST 00) | R113: Bullitt (UNKNOWN) | S113: 0.9365 | T113: 0.0935 | V113: Bullitt (UNKNOWN) | W113: 0.9365 | X113: 0.0935 | AE113: Trigg | AF113: (270) 522-3271 | AH113: Campbell | AI113: (DIST 06) | AJ113: Campbell (DIST 06) | AL113: Campbell | AN113: (859) 292-3871 | AP113: Campbell (DIST 05) | AQ113: CAMP05 | AR113: 1.9559 | AS113: CAMP | AT113: Campbell | AU113: 05 | AV113: Campbell (DIST 05) | AZ113: Butler (DIST 00) | BA113: 0.8485
A114: 112 | B114: Trimble | C114: 112 | E114: 01907 | F114: 019 | G114: Campbell | H114: 07 | J114: HOPK | K114: BUTL | L114: Butler | M114: 01601 | N114: Butler | O114: (DIST 01) | P114: Butler (DIST 01) | Q114: Butler (DIST 01) | R114: Butler (DIST 00) | S114: 0.8376 | T114: 0.113 | V114: Butler (DIST 00) | W114: 0.8376 | X114: 0.113 | AE114: Trimble | AF114: (502) 255-3592 | AH114: Campbell | AI114: (DIST 07) | AJ114: Campbell (DIST 07) | AL114: Campbell | AN114: (859) 292-3871 | AP114: Campbell (DIST 06) | AQ114: CAMP06 | AR114: 0.6839 | AS114: CAMP | AT114: Campbell | AU114: 06 | AV114: Campbell (DIST 06) | AZ114: Butler (DIST 01) | BA114: 0.9581
A115: 113 | B115: Union | C115: 113 | E115: 01908 | F115: 019 | G115: Campbell | H115: 08 | K115: BUTL | L115: Butler | M115: 01602 | N115: Butler | O115: (DIST 02) | P115: Butler (DIST 02) | Q115: Butler (DIST 02) | R115: Butler (DIST 01) | S115: 0.9316 | T115: 0.113 | V115: Butler (DIST 01) | W115: 0.9316 | X115: 0.113 | AE115: Union | AF115: (270) 389-1933 | AH115: Campbell | AI115: (DIST 08) | AJ115: Campbell (DIST 08) | AL115: Campbell | AN115: (859) 292-3871 | AP115: Campbell (DIST 07) | AQ115: CAMP07 | AR115: 0.9279 | AS115: CAMP | AT115: Campbell | AU115: 07 | AV115: Campbell (DIST 07) | AZ115: Butler (DIST 02) | BA115: 0.8485
A116: 114 | B116: Warren | C116: 114 | E116: 01909 | F116: 019 | G116: Campbell | H116: 09 | J116: LESL | K116: BUTL | L116: Butler | M116: 01603 | N116: Butler | O116: (DIST 03) | P116: Butler (DIST 03) | Q116: Butler (DIST 03) | R116: Butler (DIST 02) | S116: 0.8376 | T116: 0.113 | V116: Butler (DIST 02) | W116: 0.8376 | X116: 0.113 | AE116: Warren | AF116: (270) 843-3268 | AH116: Campbell | AI116: (DIST 09) | AJ116: Campbell (DIST 09) | AL116: Campbell | AN116: (859) 292-3871 | AP116: Campbell (DIST 08) | AQ116: CAMP08 | AR116: 1.2118 | AS116: CAMP | AT116: Campbell | AU116: 08 | AV116: Campbell (DIST 08) | AZ116: Butler (DIST 03) | BA116: 0.9435
A117: 115 | B117: Washington | C117: 115 | E117: 01910 | F117: 019 | G117: Campbell | H117: 10 | J117: LETC | K117: BUTL | L117: Butler | M117: UNKNOWN | N117: Butler | O117: (DIST UNKNOWN) | P117: (DIST UNKNOWN) | Q117: (DIST UNKNOWN) | R117: Butler (DIST 03) | S117: 0.8376 | T117: 0.113 | V117: Butler (DIST 03) | W117: 0.8376 | X117: 0.113 | AE117: Washington | AF117: (859) 336-5420 | AH117: Campbell | AI117: (DIST 10) | AJ117: Campbell (DIST 10) | AL117: Campbell | AN117: (859) 292-3871 | AP117: Campbell (DIST 09) | AQ117: CAMP09 | AR117: 1.4549 | AS117: CAMP | AT117: Campbell | AU117: 09 | AV117: Campbell (DIST 09) | AZ117: Butler (UNKNOWN)
A118: 116 | B118: Wayne | C118: 116 | E118: 01912 | F118: 019 | G118: Campbell | H118: 12 | J118: LEWI | K118: CALD | L118: Caldwell | M118: 01700 | N118: Caldwell | O118: (DIST 00) | P118: Caldwell (DIST 00) | Q118: Caldwell (DIST 00) | R118: Butler (UNKNOWN) | S118: 0.8376 | T118: 0.113 | V118: Butler (UNKNOWN) | W118: 0.8376 | X118: 0.113 | AE118: Wayne | AF118: (606) 348-6621 | AH118: Campbell | AI118: (DIST 12) | AJ118: Campbell (DIST 12) | AL118: Campbell | AN118: (859) 292-3871 | AP118: Campbell (DIST 10) | AQ118: CAMP10 | AR118: 1.6169 | AS118: CAMP | AT118: Campbell | AU118: 10 | AV118: Campbell (DIST 10) | AZ118: Caldwell (DIST 00) | BA118: 0.7438
A119: 117 | B119: Webster | C119: 117 | E119: 01913 | F119: 019 | G119: Campbell | H119: 13 | K119: CALD | L119: Caldwell | M119: 01701 | N119: Caldwell | O119: (DIST 01) | P119: Caldwell (DIST 01) | Q119: Caldwell (DIST 01) | R119: Caldwell (DIST 00) | S119: 0.7402 | T119: 0.107 | V119: Caldwell (DIST 00) | W119: 0.7402 | X119: 0.107 | AE119: Webster | AF119: (270) 639-7016 | AH119: Campbell | AI119: (DIST 13) | AJ119: Campbell (DIST 13) | AL119: Campbell | AN119: (859) 292-3871 | AP119: Campbell (DIST 11) | AQ119: CAMP11 | AR119: 1.6349 | AS119: CAMP | AT119: Campbell | AU119: 11 | AV119: Campbell (DIST 11) | AZ119: Caldwell (DIST 01) | BA119: 0.9176
A120: 118 | B120: Whitley | C120: 118 | E120: 01914 | F120: 019 | G120: Campbell | H120: 14 | J120: PULA | K120: CALD | L120: Caldwell | M120: 01702 | N120: Caldwell | O120: (DIST 02) | P120: Caldwell (DIST 02) | Q120: Caldwell (DIST 02) | R120: Caldwell (DIST 01) | S120: 0.8942 | T120: 0.107 | V120: Caldwell (DIST 01) | W120: 0.8942 | X120: 0.107 | AE120: Whitley | AF120: (606) 549-6008 | AH120: Campbell | AI120: (DIST 14) | AJ120: Campbell (DIST 14) | AL120: Campbell | AN120: (859) 292-3871 | AP120: Campbell (DIST 12) | AQ120: CAMP12 | AR120: 1.4759 | AS120: CAMP | AT120: Campbell | AU120: 12 | AV120: Campbell (DIST 12) | AZ120: Caldwell (DIST 02) | BA120: 1.0238
A121: 119 | B121: Wolfe | C121: 119 | E121: 01915 | F121: 019 | G121: Campbell | H121: 15 | J121: ROBE | K121: CALD | L121: Caldwell | M121: UNKNOWN | N121: Caldwell | O121: (DIST UNKNOWN) | P121: (DIST UNKNOWN) | Q121: (DIST UNKNOWN) | R121: Caldwell (DIST 02) | S121: 1.0202 | T121: 0.107 | V121: Caldwell (DIST 02) | W121: 1.0202 | X121: 0.107 | AE121: Wolfe | AF121: (606) 668-6923 | AH121: Campbell | AI121: (DIST 15) | AJ121: Campbell (DIST 15) | AL121: Campbell | AN121: (859) 292-3871 | AP121: Campbell (DIST 13) | AQ121: CAMP13 | AR121: 1.3709 | AS121: CAMP | AT121: Campbell | AU121: 13 | AV121: Campbell (DIST 13) | AZ121: Caldwell (UNKNOWN)
A122: 120 | B122: Woodford | C122: 120 | E122: 01917 | F122: 019 | G122: Campbell | H122: 17 | J122: ROCK | K122: CALL | L122: Calloway | M122: 01801 | N122: Calloway | O122: (DIST 01) | P122: Calloway (DIST 01) | Q122: Calloway (DIST 01) | R122: Caldwell (UNKNOWN) | S122: 0.7402 | T122: 0.107 | V122: Caldwell (UNKNOWN) | W122: 0.7402 | X122: 0.107 | AE122: Woodford | AF122: (859) 873-4101 | AH122: Campbell | AI122: (DIST 17) | AJ122: Campbell (DIST 17) | AL122: Campbell | AN122: (859) 292-3871 | AP122: Campbell (DIST 14) | AQ122: CAMP14 | AR122: 1.3969 | AS122: CAMP | AT122: Campbell | AU122: 14 | AV122: Campbell (DIST 14) | AZ122: Calloway (DIST 01) | BA122: 1.3047
E123: 01918 | F123: 019 | G123: Campbell | H123: 18 | J123: ROWA | K123: CALL | L123: Calloway | M123: 01802 | N123: Calloway | O123: (DIST 02) | P123: Calloway (DIST 02) | Q123: Calloway (DIST 02) | R123: Calloway (DIST 01) | S123: 1.2819 | T123: 0.091 | V123: Calloway (DIST 01) | W123: 1.2819 | X123: 0.091 | AH123: Campbell | AI123: (DIST 18) | AJ123: Campbell (DIST 18) | AL123: Campbell | AN123: (859) 292-3871 | AP123: Campbell (DIST 15) | AQ123: CAMP15 | AR123: 1.3969 | AS123: CAMP | AT123: Campbell | AU123: 15 | AV123: Campbell (DIST 15) | AZ123: Calloway (DIST 02) | BA123: 1.0793
E124: 01921 | F124: 019 | G124: Campbell | H124: 21 | J124: RUSS | K124: CALL | L124: Calloway | M124: 01803 | N124: Calloway | O124: (DIST 03) | P124: Calloway (DIST 03) | Q124: Calloway (DIST 03) | R124: Calloway (DIST 02) | S124: 1.0608 | T124: 0.181 | V124: Calloway (DIST 02) | W124: 1.0608 | X124: 0.181 | AH124: Campbell | AI124: (DIST 21) | AJ124: Campbell (DIST 21) | AL124: Campbell | AN124: (859) 292-3871 | AP124: Campbell (DIST 16) | AQ124: CAMP16 | AR124: 1.2429 | AS124: CAMP | AT124: Campbell | AU124: 16 | AV124: Campbell (DIST 16) | AZ124: Calloway (DIST 03) | BA124: 1.0507
E125: 01923 | F125: 019 | G125: Campbell | H125: 23 | K125: CALL | L125: Calloway | M125: 01810 | N125: Calloway | O125: (DIST 10) | P125: Calloway (DIST 10) | Q125: Calloway (DIST 10) | R125: Calloway (DIST 03) | S125: 1.0289 | T125: 0.091 | V125: Calloway (DIST 03) | W125: 1.0289 | X125: 0.091 | AH125: Campbell | AI125: (DIST 23) | AJ125: Campbell (DIST 23) | AL125: Campbell | AN125: (859) 292-3871 | AP125: Campbell (DIST 17) | AQ125: CAMP17 | AR125: 1.2429 | AS125: CAMP | AT125: Campbell | AU125: 17 | AV125: Campbell (DIST 17) | AZ125: Calloway (DIST 10) | BA125: 0.8253
E126: 01926 | F126: 019 | G126: Campbell | H126: 26 | J126: JACK | K126: CALL | L126: Calloway | M126: 01812 | N126: Calloway | O126: (DIST 12) | P126: Calloway (DIST 12) | Q126: Calloway (DIST 12) | R126: Calloway (DIST 10) | S126: 0.8078 | T126: 0.181 | V126: Calloway (DIST 10) | W126: 0.8078 | X126: 0.181 | AH126: Campbell | AI126: (DIST 26) | AJ126: Campbell (DIST 26) | AL126: Campbell | AN126: (859) 292-3871 | AP126: Campbell (DIST 18) | AQ126: CAMP18 | AR126: 1.8079 | AS126: CAMP | AT126: Campbell | AU126: 18 | AV126: Campbell (DIST 18) | AZ126: Calloway (DIST 12) | BA126: 1.2253
E127: 01927 | F127: 019 | G127: Campbell | H127: 27 | J127: JEFF | K127: CALL | L127: Calloway | M127: UNKNOWN | N127: Calloway | O127: (DIST UNKNOWN) | P127: (DIST UNKNOWN) | Q127: (DIST UNKNOWN) | R127: Calloway (DIST 12) | S127: 1.2238 | T127: 0.091 | V127: Calloway (DIST 12) | W127: 1.2238 | X127: 0.091 | AH127: Campbell | AI127: (DIST 27) | AJ127: Campbell (DIST 27) | AL127: Campbell | AN127: (859) 292-3871 | AP127: Campbell (DIST 19) | AQ127: CAMP19 | AR127: 1.7899 | AS127: CAMP | AT127: Campbell | AU127: 19 | AV127: Campbell (DIST 19) | AZ127: Calloway (UNKNOWN)
E128: 01928 | F128: 019 | G128: Campbell | H128: 28 | J128: JESS | K128: CAMP | L128: Campbell | M128: 01901 | N128: Campbell | O128: (DIST 01) | P128: Campbell (DIST 01) | Q128: Campbell (DIST 01) | R128: Calloway (UNKNOWN) | S128: 0.8078 | T128: 0.091 | V128: Calloway (UNKNOWN) | W128: 0.8078 | X128: 0.091 | AH128: Campbell | AI128: (DIST 28) | AJ128: Campbell (DIST 28) | AL128: Campbell | AN128: (859) 292-3871 | AP128: Campbell (DIST 20) | AQ128: CAMP20 | AR128: 1.3149 | AS128: CAMP | AT128: Campbell | AU128: 20 | AV128: Campbell (DIST 20) | AZ128: Campbell (DIST 01) | BA128: 1.0579
E129: 01929 | F129: 019 | G129: Campbell | H129: 29 | J129: JOHN | K129: CAMP | L129: Campbell | M129: 01902 | N129: Campbell | O129: (DIST 02) | P129: Campbell (DIST 02) | Q129: Campbell (DIST 02) | R129: Campbell (DIST 01) | S129: 1.0811 | T129: 0.1586 | V129: Campbell (DIST 01) | W129: 1.0811 | X129: 0.1586 | AH129: Campbell | AI129: (DIST 29) | AJ129: Campbell (DIST 29) | AL129: Campbell | AN129: (859) 292-3871 | AP129: Campbell (DIST 21) | AQ129: CAMP21 | AR129: 1.0039 | AS129: CAMP | AT129: Campbell | AU129: 21 | AV129: Campbell (DIST 21) | AZ129: Campbell (DIST 02) | BA129: 1.0579
E130: 01937 | F130: 019 | G130: Campbell | H130: 37 | J130: KENT | K130: CAMP | L130: Campbell | M130: 01904 | N130: Campbell | O130: (DIST 04) | P130: Campbell (DIST 04) | Q130: Campbell (DIST 04) | R130: Campbell (DIST 02) | S130: 1.0811 | T130: 0.1586 | V130: Campbell (DIST 02) | W130: 1.0811 | X130: 0.1586 | AH130: Campbell | AI130: (DIST 37) | AJ130: Campbell (DIST 37) | AL130: Campbell | AN130: (859) 292-3871 | AP130: Campbell (DIST 22) | AQ130: CAMP22 | AR130: 1.6349 | AS130: CAMP | AT130: Campbell | AU130: 22 | AV130: Campbell (DIST 22) | AZ130: Campbell (DIST 04) | BA130: 1.3579
E131: 01938 | F131: 019 | G131: Campbell | H131: 38 | J131: KNOT | K131: CAMP | L131: Campbell | M131: 01905 | N131: Campbell | O131: (DIST 05) | P131: Campbell (DIST 05) | Q131: Campbell (DIST 05) | R131: Campbell (DIST 04) | S131: 2.5871 | T131: 0.1586 | V131: Campbell (DIST 04) | W131: 2.5871 | X131: 0.1586 | AH131: Campbell | AI131: (DIST 38) | AJ131: Campbell (DIST 38) | AL131: Campbell | AN131: (859) 292-3871 | AP131: Campbell (DIST 23) | AQ131: CAMP23 | AR131: 1.2849 | AS131: CAMP | AT131: Campbell | AU131: 23 | AV131: Campbell (DIST 23) | AZ131: Campbell (DIST 05) | BA131: 1.9559
E132: 01939 | F132: 019 | G132: Campbell | H132: 39 | J132: KNOX | K132: CAMP | L132: Campbell | M132: 01906 | N132: Campbell | O132: (DIST 06) | P132: Campbell (DIST 06) | Q132: Campbell (DIST 06) | R132: Campbell (DIST 05) | S132: 2.1871 | T132: 0.1586 | V132: Campbell (DIST 05) | W132: 2.1871 | X132: 0.1586 | AH132: Campbell | AI132: (DIST 39) | AJ132: Campbell (DIST 39) | AL132: Campbell | AN132: (859) 292-3871 | AP132: Campbell (DIST 26) | AQ132: CAMP26 | AR132: 1.4079 | AS132: CAMP | AT132: Campbell | AU132: 26 | AV132: Campbell (DIST 26) | AZ132: Campbell (DIST 06) | BA132: =VLOOKUP(AZ132,AP$3:AR$691,3,FALSE) -> 0.6839
E133: 01943 | F133: 019 | G133: Campbell | H133: 43 | J133: LARU | K133: CAMP | L133: Campbell | M133: 01907 | N133: Campbell | O133: (DIST 07) | P133: Campbell (DIST 07) | Q133: Campbell (DIST 07) | R133: Campbell (DIST 06) | S133: 1.7541 | T133: 0.1586 | V133: Campbell (DIST 06) | W133: 1.7541 | X133: 0.1586 | AH133: Campbell | AI133: (DIST 43) | AJ133: Campbell (DIST 43) | AL133: Campbell | AN133: (859) 292-3871 | AP133: Campbell (DIST 27) | AQ133: CAMP27 | AR133: 1.2379 | AS133: CAMP | AT133: Campbell | AU133: 27 | AV133: Campbell (DIST 27) | AZ133: Campbell (DIST 07) | BA133: 0.9279
E134: 01946 | F134: 019 | G134: Campbell | H134: 46 | J134: LINC | K134: CAMP | L134: Campbell | M134: 01908 | N134: Campbell | O134: (DIST 08) | P134: Campbell (DIST 08) | Q134: Campbell (DIST 08) | R134: Campbell (DIST 07) | S134: 1.9351 | T134: 0.1586 | V134: Campbell (DIST 07) | W134: 1.9351 | X134: 0.1586 | AH134: Campbell | AI134: (DIST 46) | AJ134: Campbell (DIST 46) | AL134: Campbell | AN134: (859) 292-3871 | AP134: Campbell (DIST 28) | AQ134: CAMP28 | AR134: 1.2579 | AS134: CAMP | AT134: Campbell | AU134: 28 | AV134: Campbell (DIST 28) | AZ134: Campbell (DIST 08) | BA134: 1.2118
E135: 01947 | F135: 019 | G135: Campbell | H135: 47 | J135: LIVI | K135: CAMP | L135: Campbell | M135: 01909 | N135: Campbell | O135: (DIST 09) | P135: Campbell (DIST 09) | Q135: Campbell (DIST 09) | R135: Campbell (DIST 08) | S135: 2.433 | T135: 0.0908 | V135: Campbell (DIST 08) | W135: 2.433 | X135: 0.0908 | AH135: Campbell | AI135: (DIST 47) | AJ135: Campbell (DIST 47) | AL135: Campbell | AN135: (859) 292-3871 | AP135: Campbell (DIST 29) | AQ135: CAMP29 | AR135: 1.3079 | AS135: CAMP | AT135: Campbell | AU135: 29 | AV135: Campbell (DIST 29) | AZ135: Campbell (DIST 09) | BA135: 1.4549
E136: 01949 | F136: 019 | G136: Campbell | H136: 49 | J136: LOGA | K136: CAMP | L136: Campbell | M136: 01910 | N136: Campbell | O136: (DIST 10) | P136: Campbell (DIST 10) | Q136: Campbell (DIST 10) | R136: Campbell (DIST 09) | S136: 1.4291 | T136: 0.1586 | V136: Campbell (DIST 09) | W136: 1.4291 | X136: 0.1586 | AH136: Campbell | AI136: (DIST 49) | AJ136: Campbell (DIST 49) | AL136: Campbell | AN136: (859) 292-3871 | AP136: Campbell (DIST 33) | AQ136: CAMP33 | AR136: 1.2379 | AS136: CAMP | AT136: Campbell | AU136: 33 | AV136: Campbell (DIST 33) | AZ136: Campbell (DIST 10) | BA136: 1.6169
E137: 02000 | F137: 020 | G137: Carlisle | H137: 00 | J137: LYON | K137: CAMP | L137: Campbell | M137: 01911 | N137: Campbell | O137: (DIST 11) | P137: Campbell (DIST 11) | Q137: Campbell (DIST 11) | R137: Campbell (DIST 10) | S137: 1.8081 | T137: 0.1586 | V137: Campbell (DIST 10) | W137: 1.8081 | X137: 0.1586 | AH137: Carlisle | AI137: (DIST 00) | AJ137: Carlisle (DIST 00) | AL137: Carlisle | AN137: (270) 628-5498 | AP137: Campbell (DIST 35) | AQ137: CAMP35 | AR137: 1.3919 | AS137: CAMP | AT137: Campbell | AU137: 35 | AV137: Campbell (DIST 35) | AZ137: Campbell (DIST 11) | BA137: 1.6349
E138: 02001 | F138: 020 | G138: Carlisle | H138: 01 | J138: MCCK | K138: CAMP | L138: Campbell | M138: 01912 | N138: Campbell | O138: (DIST 12) | P138: Campbell (DIST 12) | Q138: Campbell (DIST 12) | R138: Campbell (DIST 11) | S138: 1.7971 | T138: 0.1586 | V138: Campbell (DIST 11) | W138: 1.7971 | X138: 0.1586 | AH138: Carlisle | AI138: (DIST 01) | AJ138: Carlisle (DIST 01) | AL138: Carlisle | AN138: (270) 628-5498 | AP138: Campbell (DIST 37) | AQ138: CAMP37 | AR138: 1.2379 | AS138: CAMP | AT138: Campbell | AU138: 37 | AV138: Campbell (DIST 37) | AZ138: Campbell (DIST 12) | BA138: 1.4759
E139: 02002 | F139: 020 | G139: Carlisle | H139: 02 | J139: MCCR | K139: CAMP | L139: Campbell | M139: 01913 | N139: Campbell | O139: (DIST 13) | P139: Campbell (DIST 13) | Q139: Campbell (DIST 13) | R139: Campbell (DIST 12) | S139: 1.4211 | T139: 0.2908 | V139: Campbell (DIST 12) | W139: 1.4211 | X139: 0.2908 | AH139: Carlisle | AI139: (DIST 02) | AJ139: Carlisle (DIST 02) | AL139: Carlisle | AN139: (270) 628-5498 | AP139: Campbell (DIST 38) | AQ139: CAMP38 | AR139: 1.6359 | AS139: CAMP | AT139: Campbell | AU139: 38 | AV139: Campbell (DIST 38) | AZ139: Campbell (DIST 13) | BA139: 1.3709
E140: 02100 | F140: 021 | G140: Carroll | H140: 00 | J140: MCLE | K140: CAMP | L140: Campbell | M140: 01914 | N140: Campbell | O140: (DIST 14) | P140: Campbell (DIST 14) | Q140: Campbell (DIST 14) | R140: Campbell (DIST 13) | S140: 1.5941 | T140: 0.1586 | V140: Campbell (DIST 13) | W140: 1.5941 | X140: 0.1586 | AH140: Carroll | AI140: (DIST 00) | AJ140: Carroll (DIST 00) | AL140: Carroll | AN140: (502) 732-5448 | AP140: Campbell (DIST 39) | AQ140: CAMP39 | AR140: 1.7899 | AS140: CAMP | AT140: Campbell | AU140: 39 | AV140: Campbell (DIST 39) | AZ140: Campbell (DIST 14) | BA140: 1.3969
E141: 02101 | F141: 021 | G141: Carroll | H141: 01 | J141: MADI | K141: CAMP | L141: Campbell | M141: 01915 | N141: Campbell | O141: (DIST 15) | P141: Campbell (DIST 15) | Q141: Campbell (DIST 15) | R141: Campbell (DIST 14) | S141: 1.4031 | T141: 0.2908 | V141: Campbell (DIST 14) | W141: 1.4031 | X141: 0.2908 | AH141: Carroll | AI141: (DIST 01) | AJ141: Carroll (DIST 01) | AL141: Carroll | AN141: (502) 732-5448 | AP141: Campbell (DIST 45) | AQ141: CAMP45 | AR141: 1.2579 | AS141: CAMP | AT141: Campbell | AU141: 45 | AV141: Campbell (DIST 45) | AZ141: Campbell (DIST 15) | BA141: 1.3969
E142: 02102 | F142: 021 | G142: Carroll | H142: 02 | J142: MAGO | K142: CAMP | L142: Campbell | M142: 01916 | N142: Campbell | O142: (DIST 16) | P142: Campbell (DIST 16) | Q142: Campbell (DIST 16) | R142: Campbell (DIST 15) | S142: 1.4031 | T142: 0.2908 | V142: Campbell (DIST 15) | W142: 1.4031 | X142: 0.2908 | AH142: Carroll | AI142: (DIST 02) | AJ142: Carroll (DIST 02) | AL142: Carroll | AN142: (502) 732-5448 | AP142: Campbell (DIST 47) | AQ142: CAMP47 | AR142: 1.2579 | AS142: CAMP | AT142: Campbell | AU142: 47 | AV142: Campbell (DIST 47) | AZ142: Campbell (DIST 16) | BA142: 1.2429
E143: 02103 | F143: 021 | G143: Carroll | H143: 03 | J143: MARI | K143: CAMP | L143: Campbell | M143: 01917 | N143: Campbell | O143: (DIST 17) | P143: Campbell (DIST 17) | Q143: Campbell (DIST 17) | R143: Campbell (DIST 16) | S143: 1.2811 | T143: 0.2908 | V143: Campbell (DIST 16) | W143: 1.2811 | X143: 0.2908 | AH143: Carroll | AI143: (DIST 03) | AJ143: Carroll (DIST 03) | AL143: Carroll | AN143: (502) 732-5448 | AP143: Campbell (DIST 48) | AQ143: CAMP48 | AR143: 1.4049 | AS143: CAMP | AT143: Campbell | AU143: 48 | AV143: Campbell (DIST 48) | AZ143: Campbell (DIST 17) | BA143: 1.2429
E144: 02104 | F144: 021 | G144: Carroll | H144: 04 | J144: MARS | K144: CAMP | L144: Campbell | M144: 01918 | N144: Campbell | O144: (DIST 18) | P144: Campbell (DIST 18) | Q144: Campbell (DIST 18) | R144: Campbell (DIST 17) | S144: 1.2811 | T144: 0.2908 | V144: Campbell (DIST 17) | W144: 1.2811 | X144: 0.2908 | AH144: Carroll | AI144: (DIST 04) | AJ144: Carroll (DIST 04) | AL144: Carroll | AN144: (502) 732-5448 | AP144: Carlisle (DIST 00) | AQ144: CARL00 | AR144: 0.9998 | AS144: CARL | AT144: Carlisle | AU144: 00 | AV144: Carlisle (DIST 00) | AZ144: Campbell (DIST 18) | BA144: 1.8079
E145: 02105 | F145: 021 | G145: Carroll | H145: 05 | J145: MART | K145: CAMP | L145: Campbell | M145: 01919 | N145: Campbell | O145: (DIST 19) | P145: Campbell (DIST 19) | Q145: Campbell (DIST 19) | R145: Campbell (DIST 18) | S145: 2.0211 | T145: 0.1586 | V145: Campbell (DIST 18) | W145: 2.0211 | X145: 0.1586 | AH145: Carroll | AI145: (DIST 05) | AJ145: Carroll (DIST 05) | AL145: Carroll | AN145: (502) 732-5448 | AP145: Carlisle (DIST 01) | AQ145: CARL01 | AR145: 1.2698 | AS145: CARL | AT145: Carlisle | AU145: 01 | AV145: Carlisle (DIST 01) | AZ145: Campbell (DIST 19) | BA145: 1.7899
E146: 02106 | F146: 021 | G146: Carroll | H146: 06 | J146: MASO | K146: CAMP | L146: Campbell | M146: 01920 | N146: Campbell | O146: (DIST 20) | P146: Campbell (DIST 20) | Q146: Campbell (DIST 20) | R146: Campbell (DIST 19) | S146: 2.1071 | T146: 0.1586 | V146: Campbell (DIST 19) | W146: 2.1071 | X146: 0.1586 | AH146: Carroll | AI146: (DIST 06) | AJ146: Carroll (DIST 06) | AL146: Carroll | AN146: (502) 732-5448 | AP146: Carlisle (DIST 02) | AQ146: CARL02 | AR146: 1.4138 | AS146: CARL | AT146: Carlisle | AU146: 02 | AV146: Carlisle (DIST 02) | AZ146: Campbell (DIST 20) | BA146: 1.3149
E147: 02200 | F147: 022 | G147: Carter | H147: 00 | J147: MEAD | K147: CAMP | L147: Campbell | M147: 01921 | N147: Campbell | O147: (DIST 21) | P147: Campbell (DIST 21) | Q147: Campbell (DIST 21) | R147: Campbell (DIST 20) | S147: 1.3551 | T147: 0.1586 | V147: Campbell (DIST 20) | W147: 1.3551 | X147: 0.1586 | AH147: Carter | AI147: (DIST 00) | AJ147: Carter (DIST 00) | AL147: Carter | AN147: (606) 474-5663 | AP147: Carroll (DIST 00) | AQ147: CARR00 | AR147: 1.0111 | AS147: CARR | AT147: Carroll | AU147: 00 | AV147: Carroll (DIST 00) | AZ147: Campbell (DIST 21) | BA147: 1.0039
E148: 02201 | F148: 022 | G148: Carter | H148: 01 | J148: MENI | K148: CAMP | L148: Campbell | M148: 01922 | N148: Campbell | O148: (DIST 22) | P148: Campbell (DIST 22) | Q148: Campbell (DIST 22) | R148: Campbell (DIST 21) | S148: 2.1961 | T148: 0.1586 | V148: Campbell (DIST 21) | W148: 2.1961 | X148: 0.1586 | AH148: Carter | AI148: (DIST 01) | AJ148: Carter (DIST 01) | AL148: Carter | AN148: (606) 474-5663 | AP148: Carroll (DIST 01) | AQ148: CARR01 | AR148: 1.1111 | AS148: CARR | AT148: Carroll | AU148: 01 | AV148: Carroll (DIST 01) | AZ148: Campbell (DIST 22) | BA148: 1.6349
E149: 02202 | F149: 022 | G149: Carter | H149: 02 | J149: MERC | K149: CAMP | L149: Campbell | M149: 01923 | N149: Campbell | O149: (DIST 23) | P149: Campbell (DIST 23) | Q149: Campbell (DIST 23) | R149: Campbell (DIST 22) | S149: 1.7971 | T149: 0.1586 | V149: Campbell (DIST 22) | W149: 1.7971 | X149: 0.1586 | AH149: Carter | AI149: (DIST 02) | AJ149: Carter (DIST 02) | AL149: Carter | AN149: (606) 474-5663 | AP149: Carroll (DIST 02) | AQ149: CARR02 | AR149: 1.3911 | AS149: CARR | AT149: Carroll | AU149: 02 | AV149: Carroll (DIST 02) | AZ149: Campbell (DIST 23) | BA149: 1.2849
E150: 02300 | F150: 023 | G150: Casey | H150: 00 | J150: METC | K150: CAMP | L150: Campbell | M150: 01926 | N150: Campbell | O150: (DIST 26) | P150: Campbell (DIST 26) | Q150: Campbell (DIST 26) | R150: Campbell (DIST 23) | S150: 1.0811 | T150: 0.1586 | V150: Campbell (DIST 23) | W150: 1.0811 | X150: 0.1586 | AH150: Casey | AI150: (DIST 00) | AJ150: Casey (DIST 00) | AL150: Casey | AN150: (606) 787-7621 | AP150: Carroll (DIST 03) | AQ150: CARR03 | AR150: 1.3771 | AS150: CARR | AT150: Carroll | AU150: 03 | AV150: Carroll (DIST 03) | AZ150: Campbell (DIST 26) | BA150: 1.4079
E151: 02301 | F151: 023 | G151: Casey | H151: 01 | J151: MONR | K151: CAMP | L151: Campbell | M151: 01927 | N151: Campbell | O151: (DIST 27) | P151: Campbell (DIST 27) | Q151: Campbell (DIST 27) | R151: Campbell (DIST 26) | S151: 1.4231 | T151: 0.2908 | V151: Campbell (DIST 26) | W151: 1.4231 | X151: 0.2908 | AH151: Casey | AI151: (DIST 01) | AJ151: Casey (DIST 01) | AL151: Casey | AN151: (606) 787-7621 | AP151: Carroll (DIST 04) | AQ151: CARR04 | AR151: 1.2251 | AS151: CARR | AT151: Carroll | AU151: 04 | AV151: Carroll (DIST 04) | AZ151: Campbell (DIST 27) | BA151: 1.2379
E152: 02400 | F152: 024 | G152: Christian | H152: 00 | K152: CAMP | L152: Campbell | M152: 01928 | N152: Campbell | O152: (DIST 28) | P152: Campbell (DIST 28) | Q152: Campbell (DIST 28) | R152: Campbell (DIST 27) | S152: 1.2611 | T152: 0.2708 | V152: Campbell (DIST 27) | W152: 1.2611 | X152: 0.2708 | AH152: Christian | AI152: (DIST 00) | AJ152: Christian (DIST 00) | AL152: Christian | AN152: (270) 887-4115 | AP152: Carroll (DIST 05) | AQ152: CARR05 | AR152: 1.3111 | AS152: CARR | AT152: Carroll | AU152: 05 | AV152: Carroll (DIST 05) | AZ152: Campbell (DIST 28) | BA152: 1.2579
E153: 02401 | F153: 024 | G153: Christian | H153: 01 | J153: MONT | K153: CAMP | L153: Campbell | M153: 01929 | N153: Campbell | O153: (DIST 29) | P153: Campbell (DIST 29) | Q153: Campbell (DIST 29) | R153: Campbell (DIST 28) | S153: 1.2811 | T153: 0.2908 | V153: Campbell (DIST 28) | W153: 1.2811 | X153: 0.2908 | AH153: Christian | AI153: (DIST 01) | AJ153: Christian (DIST 01) | AL153: Christian | AN153: (270) 887-4115 | AP153: Carroll (DIST 06) | AQ153: CARR06 | AR153: 1.2611 | AS153: CARR | AT153: Carroll | AU153: 06 | AV153: Carroll (DIST 06) | AZ153: Campbell (DIST 29) | BA153: 1.3079
E154: 02402 | F154: 024 | G154: Christian | H154: 02 | J154: MORG | K154: CAMP | L154: Campbell | M154: 01933 | N154: Campbell | O154: (DIST 33) | P154: Campbell (DIST 33) | Q154: Campbell (DIST 33) | R154: Campbell (DIST 29) | S154: 1.3311 | T154: 0.1586 | V154: Campbell (DIST 29) | W154: 1.3311 | X154: 0.1586 | AH154: Christian | AI154: (DIST 02) | AJ154: Christian (DIST 02) | AL154: Christian | AN154: (270) 887-4115 | AP154: Carter (DIST 00) | AQ154: CART00 | AR154: 0.7756 | AS154: CART | AT154: Carter | AU154: 00 | AV154: Carter (DIST 00) | AZ154: Campbell (DIST 33) | BA154: 1.2379
E155: 02403 | F155: 024 | G155: Christian | H155: 03 | J155: MUHL | K155: CAMP | L155: Campbell | M155: 01935 | N155: Campbell | O155: (DIST 35) | P155: Campbell (DIST 35) | Q155: Campbell (DIST 35) | R155: Campbell (DIST 33) | S155: 1.2611 | T155: 0.2708 | V155: Campbell (DIST 33) | W155: 1.2611 | X155: 0.2708 | AH155: Christian | AI155: (DIST 03) | AJ155: Christian (DIST 03) | AL155: Christian | AN155: (270) 887-4115 | AP155: Carter (DIST 01) | AQ155: CART01 | AR155: 0.9696 | AS155: CART | AT155: Carter | AU155: 01 | AV155: Carter (DIST 01) | AZ155: Campbell (DIST 35) | BA155: 1.3919
E156: 02404 | F156: 024 | G156: Christian | H156: 04 | K156: CAMP | L156: Campbell | M156: 01937 | N156: Campbell | O156: (DIST 37) | P156: Campbell (DIST 37) | Q156: Campbell (DIST 37) | R156: Campbell (DIST 35) | S156: 1.3831 | T156: 0.2708 | V156: Campbell (DIST 35) | W156: 1.3831 | X156: 0.2708 | AH156: Christian | AI156: (DIST 04) | AJ156: Christian (DIST 04) | AL156: Christian | AN156: (270) 887-4115 | AP156: Carter (DIST 02) | AQ156: CART02 | AR156: 1.0076 | AS156: CART | AT156: Carter | AU156: 02 | AV156: Carter (DIST 02) | AZ156: Campbell (DIST 37) | BA156: 1.2379
E157: 02405 | F157: 024 | G157: Christian | H157: 05 | J157: SCOT | K157: CAMP | L157: Campbell | M157: 01938 | N157: Campbell | O157: (DIST 38) | P157: Campbell (DIST 38) | Q157: Campbell (DIST 38) | R157: Campbell (DIST 37) | S157: 1.2611 | T157: 0.2708 | V157: Campbell (DIST 37) | W157: 1.2611 | X157: 0.2708 | AH157: Christian | AI157: (DIST 05) | AJ157: Christian (DIST 05) | AL157: Christian | AN157: (270) 887-4115 | AP157: Casey (DIST 00) | AQ157: CASE00 | AR157: 0.8431 | AS157: CASE | AT157: Casey | AU157: 00 | AV157: Casey (DIST 00) | AZ157: Campbell (DIST 38) | BA157: 1.6359
E158: 02431 | F158: 024 | G158: Christian | H158: 31 | J158: SHEL | K158: CAMP | L158: Campbell | M158: 01939 | N158: Campbell | O158: (DIST 39) | P158: Campbell (DIST 39) | Q158: Campbell (DIST 39) | R158: Campbell (DIST 38) | S158: 1.7451 | T158: 0.1586 | V158: Campbell (DIST 38) | W158: 1.7451 | X158: 0.1586 | AH158: Christian | AI158: (DIST 31) | AJ158: Christian (DIST 31) | AL158: Christian | AN158: (270) 887-4115 | AP158: Casey (DIST 01) | AQ158: CASE01 | AR158: 1.0521 | AS158: CASE | AT158: Casey | AU158: 01 | AV158: Casey (DIST 01) | AZ158: Campbell (DIST 39) | BA158: 1.7899
E159: 02500 | F159: 025 | G159: Clark | H159: 00 | J159: SIMP | K159: CAMP | L159: Campbell | M159: 01945 | N159: Campbell | O159: (DIST 45) | P159: Campbell (DIST 45) | Q159: Campbell (DIST 45) | R159: Campbell (DIST 39) | S159: 2.1071 | T159: 0.1586 | V159: Campbell (DIST 39) | W159: 2.1071 | X159: 0.1586 | AH159: Clark | AI159: (DIST 00) | AJ159: Clark (DIST 00) | AL159: Clark | AN159: (859) 745-0250 | AP159: Christian (DIST 00) | AQ159: CHRI00 | AR159: 0.6788 | AS159: CHRI | AT159: Christian | AU159: 00 | AV159: Christian (DIST 00) | AZ159: Campbell (DIST 45) | BA159: 1.2579
E160: 02501 | F160: 025 | G160: Clark | H160: 01 | J160: SPEN | K160: CAMP | L160: Campbell | M160: 01947 | N160: Campbell | O160: (DIST 47) | P160: Campbell (DIST 47) | Q160: Campbell (DIST 47) | R160: Campbell (DIST 45) | S160: 1.2811 | T160: 0.2908 | V160: Campbell (DIST 45) | W160: 1.2811 | X160: 0.2908 | AH160: Clark | AI160: (DIST 01) | AJ160: Clark (DIST 01) | AL160: Clark | AN160: (859) 745-0250 | AP160: Christian (DIST 01) | AQ160: CHRI01 | AR160: 0.9178 | AS160: CHRI | AT160: Christian | AU160: 01 | AV160: Christian (DIST 01) | AZ160: Campbell (DIST 47) | BA160: 1.2579
E161: 02560 | F161: 025 | G161: Clark | H161: 60 | K161: CAMP | L161: Campbell | M161: 01948 | N161: Campbell | O161: (DIST 48) | P161: Campbell (DIST 48) | Q161: Campbell (DIST 48) | R161: Campbell (DIST 47) | S161: 1.2811 | T161: 0.2908 | V161: Campbell (DIST 47) | W161: 1.2811 | X161: 0.2908 | AH161: Clark | AI161: (DIST 60) | AJ161: Clark (DIST 60) | AL161: Clark | AN161: (859) 745-0250 | AP161: Christian (DIST 02) | AQ161: CHRI02 | AR161: 1.0031 | AS161: CHRI | AT161: Christian | AU161: 02 | AV161: Christian (DIST 02) | AZ161: Campbell (DIST 48) | BA161: 1.4049
E162: 02600 | F162: 026 | G162: Clay | H162: 00 | K162: CAMP | L162: Campbell | M162: UNKNOWN | N162: Campbell | O162: (DIST UNKNOWN) | P162: (DIST UNKNOWN) | Q162: (DIST UNKNOWN) | R162: Campbell (DIST 48) | S162: 1.4311 | T162: 0.2908 | V162: Campbell (DIST 48) | W162: 1.4311 | X162: 0.2908 | AH162: Clay | AI162: (DIST 00) | AJ162: Clay (DIST 00) | AL162: Clay | AN162: (606) 598-3832 | AP162: Christian (DIST 03) | AQ162: CHRI03 | AR162: 0.7621 | AS162: CHRI | AT162: Christian | AU162: 03 | AV162: Christian (DIST 03) | AZ162: Campbell (UNKNOWN)
E163: 02601 | F163: 026 | G163: Clay | H163: 01 | K163: CARL | L163: Carlisle | M163: 02000 | N163: Carlisle | O163: (DIST 00) | P163: Carlisle (DIST 00) | Q163: Carlisle (DIST 00) | R163: Campbell (UNKNOWN) | S163: 1.0811 | T163: 0.0908 | V163: Campbell (UNKNOWN) | W163: 1.0811 | X163: 0.0908 | AH163: Clay | AI163: (DIST 01) | AJ163: Clay (DIST 01) | AL163: Clay | AN163: (606) 598-3832 | AP163: Christian (DIST 04) | AQ163: CHRI04 | AR163: 0.7491 | AS163: CHRI | AT163: Christian | AU163: 04 | AV163: Christian (DIST 04) | AZ163: Carlisle (DIST 00) | BA163: 0.9998
E164: 02700 | F164: 027 | G164: Clinton | H164: 00 | K164: CARL | L164: Carlisle | M164: 02001 | N164: Carlisle | O164: (DIST 01) | P164: Carlisle (DIST 01) | Q164: Carlisle (DIST 01) | R164: Carlisle (DIST 00) | S164: 1.0038 | T164: 0.1278 | V164: Carlisle (DIST 00) | W164: 1.0038 | X164: 0.1278 | AH164: Clinton | AI164: (DIST 00) | AJ164: Clinton (DIST 00) | AL164: Clinton | AN164: (606) 387-5938 | AP164: Christian (DIST 05) | AQ164: CHRI05 | AR164: 0.7822 | AS164: CHRI | AT164: Christian | AU164: 05 | AV164: Christian (DIST 05) | AZ164: Carlisle (DIST 01) | BA164: 1.2698
E165: 02701 | F165: 027 | G165: Clinton | H165: 01 | J165: NELS | K165: CARL | L165: Carlisle | M165: 02002 | N165: Carlisle | O165: (DIST 02) | P165: Carlisle (DIST 02) | Q165: Carlisle (DIST 02) | R165: Carlisle (DIST 01) | S165: 1.2738 | T165: 0.1278 | V165: Carlisle (DIST 01) | W165: 1.2738 | X165: 0.1278 | AH165: Clinton | AI165: (DIST 01) | AJ165: Clinton (DIST 01) | AL165: Clinton | AN165: (606) 387-5938 | AP165: Clark (DIST 00) | AQ165: CLAR00 | AR165: 0.9458 | AS165: CLAR | AT165: Clark | AU165: 00 | AV165: Clark (DIST 00) | AZ165: Carlisle (DIST 02) | BA165: 1.4138
E166: 02750 | F166: 027 | G166: Clinton | H166: 50 | J166: NICH | K166: CARL | L166: Carlisle | M166: UNKNOWN | N166: Carlisle | O166: (DIST UNKNOWN) | P166: (DIST UNKNOWN) | Q166: (DIST UNKNOWN) | R166: Carlisle (DIST 02) | S166: 1.4178 | T166: 0.1278 | V166: Carlisle (DIST 02) | W166: 1.4178 | X166: 0.1278 | AH166: Clinton | AI166: (DIST 50) | AJ166: Clinton (DIST 50) | AL166: Clinton | AN166: (606) 387-5938 | AP166: Clark (DIST 01) | AQ166: CLAR01 | AR166: 1.0957 | AS166: CLAR | AT166: Clark | AU166: 01 | AV166: Clark (DIST 01) | AZ166: Carlisle (UNKNOWN)
E167: 02801 | F167: 028 | G167: Crittenden | H167: 01 | J167: OHIO | K167: CARR | L167: Carroll | M167: 02100 | N167: Carroll | O167: (DIST 00) | P167: Carroll (DIST 00) | Q167: Carroll (DIST 00) | R167: Carlisle (UNKNOWN) | S167: 1.0038 | T167: 0.1278 | V167: Carlisle (UNKNOWN) | W167: 1.0038 | X167: 0.1278 | AH167: Crittenden | AI167: (DIST 01) | AJ167: Crittenden (DIST 01) | AL167: Crittenden | AN167: (270) 965-4598 | AP167: Clay (DIST 00) | AQ167: CLAY00 | AR167: 1.156 | AS167: CLAY | AT167: Clay | AU167: 00 | AV167: Clay (DIST 00) | AZ167: Carroll (DIST 00) | BA167: 1.0111
E168: 02802 | F168: 028 | G168: Crittenden | H168: 02 | K168: CARR | L168: Carroll | M168: 02101 | N168: Carroll | O168: (DIST 01) | P168: Carroll (DIST 01) | Q168: Carroll (DIST 01) | R168: Carroll (DIST 00) | S168: 1.019 | T168: 0.217 | V168: Carroll (DIST 00) | W168: 1.019 | X168: 0.217 | AH168: Crittenden | AI168: (DIST 02) | AJ168: Crittenden (DIST 02) | AL168: Crittenden | AN168: (270) 965-4598 | AP168: Clay (DIST 01) | AQ168: CLAY01 | AR168: 1.516 | AS168: CLAY | AT168: Clay | AU168: 01 | AV168: Clay (DIST 01) | AZ168: Carroll (DIST 01) | BA168: 1.1111
E169: 02831 | F169: 028 | G169: Crittenden | H169: 31 | J169: OLDH | K169: CARR | L169: Carroll | M169: 02102 | N169: Carroll | O169: (DIST 02) | P169: Carroll (DIST 02) | Q169: Carroll (DIST 02) | R169: Carroll (DIST 01) | S169: 1.119 | T169: 0.317 | V169: Carroll (DIST 01) | W169: 1.119 | X169: 0.317 | AH169: Crittenden | AI169: (DIST 31) | AJ169: Crittenden (DIST 31) | AL169: Crittenden | AN169: (270) 965-4598 | AP169: Clinton (DIST 00) | AQ169: CLIN00 | AR169: 0.7372 | AS169: CLIN | AT169: Clinton | AU169: 00 | AV169: Clinton (DIST 00) | AZ169: Carroll (DIST 02) | BA169: 1.3911
E170: 02900 | F170: 029 | G170: Cumberland | H170: 00 | J170: OWEN | K170: CARR | L170: Carroll | M170: 02103 | N170: Carroll | O170: (DIST 03) | P170: Carroll (DIST 03) | Q170: Carroll (DIST 03) | R170: Carroll (DIST 02) | S170: 1.399 | T170: 0.317 | V170: Carroll (DIST 02) | W170: 1.399 | X170: 0.317 | AH170: Cumberland | AI170: (DIST 00) | AJ170: Cumberland (DIST 00) | AL170: Cumberland | AN170: (270) 864-5161 | AP170: Clinton (DIST 01) | AQ170: CLIN01 | AR170: 0.9372 | AS170: CLIN | AT170: Clinton | AU170: 01 | AV170: Clinton (DIST 01) | AZ170: Carroll (DIST 03) | BA170: 1.3771
E171: 02901 | F171: 029 | G171: Cumberland | H171: 01 | K171: CARR | L171: Carroll | M171: 02104 | N171: Carroll | O171: (DIST 04) | P171: Carroll (DIST 04) | Q171: Carroll (DIST 04) | R171: Carroll (DIST 03) | S171: 1.32 | T171: 0.217 | V171: Carroll (DIST 03) | W171: 1.32 | X171: 0.217 | AH171: Cumberland | AI171: (DIST 01) | AJ171: Cumberland (DIST 01) | AL171: Cumberland | AN171: (270) 864-5161 | AP171: Crittenden (DIST 01) | AQ171: CRIT01 | AR171: 0.7466 | AS171: CRIT | AT171: Crittenden | AU171: 01 | AV171: Crittenden (DIST 01) | AZ171: Carroll (DIST 04) | BA171: 1.2251
E172: 02950 | F172: 029 | G172: Cumberland | H172: 50 | K172: CARR | L172: Carroll | M172: 02105 | N172: Carroll | O172: (DIST 05) | P172: Carroll (DIST 05) | Q172: Carroll (DIST 05) | R172: Carroll (DIST 04) | S172: 1.233 | T172: 0.217 | V172: Carroll (DIST 04) | W172: 1.233 | X172: 0.217 | AH172: Cumberland | AI172: (DIST 50) | AJ172: Cumberland (DIST 50) | AL172: Cumberland | AN172: (270) 864-5161 | AP172: Crittenden (DIST 02) | AQ172: CRIT02 | AR172: 1.0247 | AS172: CRIT | AT172: Crittenden | AU172: 02 | AV172: Crittenden (DIST 02) | AZ172: Carroll (DIST 05) | BA172: 1.3111
E173: 03000 | F173: 030 | G173: Daviess | H173: 00 | K173: CARR | L173: Carroll | M173: 02106 | N173: Carroll | O173: (DIST 06) | P173: Carroll (DIST 06) | Q173: Carroll (DIST 06) | R173: Carroll (DIST 05) | S173: 1.319 | T173: 0.217 | V173: Carroll (DIST 05) | W173: 1.319 | X173: 0.217 | AH173: Daviess | AI173: (DIST 00) | AJ173: Daviess (DIST 00) | AL173: Daviess | AN173: (270) 685-8474 | AP173: Cumberland (DIST 00) | AQ173: CUMB00 | AR173: 0.7664 | AS173: CUMB | AT173: Cumberland | AU173: 00 | AV173: Cumberland (DIST 00) | AZ173: Carroll (DIST 06) | BA173: 1.2611
E174: 03001 | F174: 030 | G174: Daviess | H174: 01 | K174: CARR | L174: Carroll | M174: UNKNOWN | N174: Carroll | O174: (DIST UNKNOWN) | P174: (DIST UNKNOWN) | Q174: (DIST UNKNOWN) | R174: Carroll (DIST 06) | S174: 1.269 | T174: 0.217 | V174: Carroll (DIST 06) | W174: 1.269 | X174: 0.217 | AH174: Daviess | AI174: (DIST 01) | AJ174: Daviess (DIST 01) | AL174: Daviess | AN174: (270) 685-8474 | AP174: Cumberland (DIST 01) | AQ174: CUMB01 | AR174: 1.0764 | AS174: CUMB | AT174: Cumberland | AU174: 01 | AV174: Cumberland (DIST 01) | AZ174: Carroll (UNKNOWN)
E175: 03002 | F175: 030 | G175: Daviess | H175: 02 | K175: CART | L175: Carter | M175: 02200 | N175: Carter | O175: (DIST 00) | P175: Carter (DIST 00) | Q175: Carter (DIST 00) | R175: Carroll (UNKNOWN) | S175: 1.019 | T175: 0.217 | V175: Carroll (UNKNOWN) | W175: 1.019 | X175: 0.217 | AH175: Daviess | AI175: (DIST 02) | AJ175: Daviess (DIST 02) | AL175: Daviess | AN175: (270) 685-8474 | AP175: Daviess (DIST 00) | AQ175: DAVI00 | AR175: 1.003 | AS175: DAVI | AT175: Daviess | AU175: 00 | AV175: Daviess (DIST 00) | AZ175: Carter (DIST 00) | BA175: 0.7756
E176: 03003 | F176: 030 | G176: Daviess | H176: 03 | K176: CART | L176: Carter | M176: 02201 | N176: Carter | O176: (DIST 01) | P176: Carter (DIST 01) | Q176: Carter (DIST 01) | R176: Carter (DIST 00) | S176: 0.7628 | T176: 0.16 | V176: Carter (DIST 00) | W176: 0.7628 | X176: 0.16 | AH176: Daviess | AI176: (DIST 03) | AJ176: Daviess (DIST 03) | AL176: Daviess | AN176: (270) 685-8474 | AP176: Daviess (DIST 01) | AQ176: DAVI01 | AR176: 1.003 | AS176: DAVI | AT176: Daviess | AU176: 01 | AV176: Daviess (DIST 01) | AZ176: Carter (DIST 01) | BA176: 0.9696
E177: 03004 | F177: 030 | G177: Daviess | H177: 04 | K177: CART | L177: Carter | M177: 02202 | N177: Carter | O177: (DIST 02) | P177: Carter (DIST 02) | Q177: Carter (DIST 02) | R177: Carter (DIST 01) | S177: 0.9508 | T177: 0.16 | V177: Carter (DIST 01) | W177: 0.9508 | X177: 0.16 | AH177: Daviess | AI177: (DIST 04) | AJ177: Daviess (DIST 04) | AL177: Daviess | AN177: (270) 685-8474 | AP177: Daviess (DIST 02) | AQ177: DAVI02 | AR177: 1.1448 | AS177: DAVI | AT177: Daviess | AU177: 02 | AV177: Daviess (DIST 02) | AZ177: Carter (DIST 02) | BA177: 1.0076
E178: 03043 | F178: 030 | G178: Daviess | H178: 43 | K178: CART | L178: Carter | M178: UNKNOWN | N178: Carter | O178: (DIST UNKNOWN) | P178: (DIST UNKNOWN) | Q178: (DIST UNKNOWN) | R178: Carter (DIST 02) | S178: 0.9888 | T178: 0.16 | V178: Carter (DIST 02) | W178: 0.9888 | X178: 0.16 | AH178: Daviess | AI178: (DIST 43) | AJ178: Daviess (DIST 43) | AL178: Daviess | AN178: (270) 685-8474 | AP178: Daviess (DIST 03) | AQ178: DAVI03 | AR178: 1.3332 | AS178: DAVI | AT178: Daviess | AU178: 03 | AV178: Daviess (DIST 03) | AZ178: Carter (UNKNOWN)
E179: 03044 | F179: 030 | G179: Daviess | H179: 44 | K179: CASE | L179: Casey | M179: 02300 | N179: Casey | O179: (DIST 00) | P179: Casey (DIST 00) | Q179: Casey (DIST 00) | R179: Carter (UNKNOWN) | S179: 0.7628 | T179: 0.16 | V179: Carter (UNKNOWN) | W179: 0.7628 | X179: 0.16 | AH179: Daviess | AI179: (DIST 44) | AJ179: Daviess (DIST 44) | AL179: Daviess | AN179: (270) 685-8474 | AP179: Daviess (DIST 04) | AQ179: DAVI04 | AR179: 1.4842 | AS179: DAVI | AT179: Daviess | AU179: 04 | AV179: Daviess (DIST 04) | AZ179: Casey (DIST 00) | BA179: 0.8431
E180: 03050 | F180: 030 | G180: Daviess | H180: 50 | K180: CASE | L180: Casey | M180: 02301 | N180: Casey | O180: (DIST 01) | P180: Casey (DIST 01) | Q180: Casey (DIST 01) | R180: Casey (DIST 00) | S180: 0.8268 | T180: 0.251 | V180: Casey (DIST 00) | W180: 0.8268 | X180: 0.251 | AH180: Daviess | AI180: (DIST 50) | AJ180: Daviess (DIST 50) | AL180: Daviess | AN180: (270) 685-8474 | AP180: Daviess (DIST 05) | AQ180: DAVI05 | AR180: 1.4842 | AS180: DAVI | AT180: Daviess | AU180: 05 | AV180: Daviess (DIST 05) | AZ180: Casey (DIST 01) | BA180: 1.0521
E181: 03100 | F181: 031 | G181: Edmonson | H181: 00 | K181: CASE | L181: Casey | M181: UNKNOWN | N181: Casey | O181: (DIST UNKNOWN) | P181: (DIST UNKNOWN) | Q181: (DIST UNKNOWN) | R181: Casey (DIST 01) | S181: 1.0308 | T181: 0.251 | V181: Casey (DIST 01) | W181: 1.0308 | X181: 0.251 | AH181: Edmonson | AI181: (DIST 00) | AJ181: Edmonson (DIST 00) | AL181: Edmonson | AN181: (270) 597-2381 | AP181: Daviess (DIST 06) | AQ181: DAVI06 | AR181: 1.3332 | AS181: DAVI | AT181: Daviess | AU181: 06 | AV181: Daviess (DIST 06) | AZ181: Casey (UNKNOWN)
E182: 03101 | F182: 031 | G182: Edmonson | H182: 01 | K182: CHRI | L182: Christian | M182: 02400 | N182: Christian | O182: (DIST 00) | P182: Christian (DIST 00) | Q182: Christian (DIST 00) | R182: Casey (UNKNOWN) | S182: 0.8268 | T182: 0.251 | V182: Casey (UNKNOWN) | W182: 0.8268 | X182: 0.251 | AH182: Edmonson | AI182: (DIST 01) | AJ182: Edmonson (DIST 01) | AL182: Edmonson | AN182: (270) 597-2381 | AP182: Daviess (DIST 07) | AQ182: DAVI07 | AR182: 1.003 | AS182: DAVI | AT182: Daviess | AU182: 07 | AV182: Daviess (DIST 07) | AZ182: Christian (DIST 00) | BA182: 0.6788
E183: 03150 | F183: 031 | G183: Edmonson | H183: 50 | K183: CHRI | L183: Christian | M183: 02401 | N183: Christian | O183: (DIST 01) | P183: Christian (DIST 01) | Q183: Christian (DIST 01) | R183: Christian (DIST 00) | S183: 0.6661 | T183: 0.0641 | V183: Christian (DIST 00) | W183: 0.6661 | X183: 0.0641 | AH183: Edmonson | AI183: (DIST 50) | AJ183: Edmonson (DIST 50) | AL183: Edmonson | AN183: (270) 597-2381 | AP183: Edmonson (DIST 00) | AQ183: EDMO00 | AR183: 0.9996 | AS183: EDMO | AT183: Edmonson | AU183: 00 | AV183: Edmonson (DIST 00) | AZ183: Christian (DIST 01) | BA183: 0.9178
E184: 03200 | F184: 032 | G184: Elliott | H184: 00 | K184: CHRI | L184: Christian | M184: 02402 | N184: Christian | O184: (DIST 02) | P184: Christian (DIST 02) | Q184: Christian (DIST 02) | R184: Christian (DIST 01) | S184: 0.9051 | T184: 0.0641 | V184: Christian (DIST 01) | W184: 0.9051 | X184: 0.0641 | AH184: Elliott | AI184: (DIST 00) | AJ184: Elliott (DIST 00) | AL184: Elliott | AN184: (606) 738-5090 | AP184: Edmonson (DIST 01) | AQ184: EDMO01 | AR184: 1.0641 | AS184: EDMO | AT184: Edmonson | AU184: 01 | AV184: Edmonson (DIST 01) | AZ184: Christian (DIST 02) | BA184: 1.0031
E185: 03201 | F185: 032 | G185: Elliott | H185: 01 | K185: CHRI | L185: Christian | M185: 02403 | N185: Christian | O185: (DIST 03) | P185: Christian (DIST 03) | Q185: Christian (DIST 03) | R185: Christian (DIST 02) | S185: 0.8705 | T185: 0.0641 | V185: Christian (DIST 02) | W185: 0.8705 | X185: 0.0641 | AH185: Elliott | AI185: (DIST 01) | AJ185: Elliott (DIST 01) | AL185: Elliott | AN185: (606) 738-5090 | AP185: Elliott (DIST 00) | AQ185: ELLI00 | AR185: 0.8282 | AS185: ELLI | AT185: Elliott | AU185: 00 | AV185: Elliott (DIST 00) | AZ185: Christian (DIST 03) | BA185: 0.7621
E186: 03300 | F186: 033 | G186: Estill | H186: 00 | K186: CHRI | L186: Christian | M186: 02404 | N186: Christian | O186: (DIST 04) | P186: Christian (DIST 04) | Q186: Christian (DIST 04) | R186: Christian (DIST 03) | S186: 0.7494 | T186: 0.0641 | V186: Christian (DIST 03) | W186: 0.7494 | X186: 0.0641 | AH186: Estill | AI186: (DIST 00) | AJ186: Estill (DIST 00) | AL186: Estill | AN186: (606) 723-4569 | AP186: Elliott (DIST 01) | AQ186: ELLI01 | AR186: 1.0282 | AS186: ELLI | AT186: Elliott | AU186: 01 | AV186: Elliott (DIST 01) | AZ186: Christian (DIST 04) | BA186: 0.7491
E187: 03301 | F187: 033 | G187: Estill | H187: 01 | K187: CHRI | L187: Christian | M187: 02405 | N187: Christian | O187: (DIST 05) | P187: Christian (DIST 05) | Q187: Christian (DIST 05) | R187: Christian (DIST 04) | S187: 0.806 | T187: 0.0641 | V187: Christian (DIST 04) | W187: 0.806 | X187: 0.0641 | AH187: Estill | AI187: (DIST 01) | AJ187: Estill (DIST 01) | AL187: Estill | AN187: (606) 723-4569 | AP187: Estill (DIST 00) | AQ187: ESTI00 | AR187: 1.1069 | AS187: ESTI | AT187: Estill | AU187: 00 | AV187: Estill (DIST 00) | AZ187: Christian (DIST 05) | BA187: 0.7822
E188: 03302 | F188: 033 | G188: Estill | H188: 02 | K188: CHRI | L188: Christian | M188: UNKNOWN | N188: Christian | O188: (DIST UNKNOWN) | P188: (DIST UNKNOWN) | Q188: (DIST UNKNOWN) | R188: Christian (DIST 05) | S188: 0.8941 | T188: 0.0641 | V188: Christian (DIST 05) | W188: 0.8941 | X188: 0.0641 | AH188: Estill | AI188: (DIST 02) | AJ188: Estill (DIST 02) | AL188: Estill | AN188: (606) 723-4569 | AP188: Estill (DIST 01) | AQ188: ESTI01 | AR188: 1.6569 | AS188: ESTI | AT188: Estill | AU188: 01 | AV188: Estill (DIST 01) | AZ188: Christian (UNKNOWN)
E189: 03402 | F189: 034 | G189: Fayette | H189: 02 | K189: CLAR | L189: Clark | M189: 02500 | N189: Clark | O189: (DIST 00) | P189: Clark (DIST 00) | Q189: Clark (DIST 00) | R189: Christian (UNKNOWN) | S189: 0.6661 | T189: 0.0641 | V189: Christian (UNKNOWN) | W189: 0.6661 | X189: 0.0641 | AH189: Fayette | AI189: (DIST 02) | AJ189: Fayette (DIST 02) | AL189: Fayette | AN189: (859) 246-2722 | AP189: Estill (DIST 02) | AQ189: ESTI02 | AR189: 1.5069 | AS189: ESTI | AT189: Estill | AU189: 02 | AV189: Estill (DIST 02) | AZ189: Clark (DIST 00) | BA189: 0.9458
E190: 03432 | F190: 034 | G190: Fayette | H190: 32 | K190: CLAR | L190: Clark | M190: 02501 | N190: Clark | O190: (DIST 01) | P190: Clark (DIST 01) | Q190: Clark (DIST 01) | R190: Clark (DIST 00) | S190: 0.9582 | T190: 0.1346 | V190: Clark (DIST 00) | W190: 0.9582 | X190: 0.1346 | AH190: Fayette | AI190: (DIST 32) | AJ190: Fayette (DIST 32) | AL190: Fayette | AN190: (859) 246-2722 | AP190: Fayette (DIST 02) | AQ190: FAYE02 | AR190: 0.9901 | AS190: FAYE | AT190: Fayette | AU190: 02 | AV190: Fayette (DIST 02) | AZ190: Clark (DIST 01) | BA190: 1.0957
E191: 034ND | F191: 034 | G191: Fayette | H191: ND | K191: CLAR | L191: Clark | M191: UNKNOWN | N191: Clark | O191: (DIST UNKNOWN) | P191: (DIST UNKNOWN) | Q191: (DIST UNKNOWN) | R191: Clark (DIST 01) | S191: 1.1112 | T191: 0.1346 | V191: Clark (DIST 01) | W191: 1.1112 | X191: 0.1346 | AH191: Fayette | AI191: (DIST ND) | AJ191: Fayette (DIST ND) | AL191: Fayette | AN191: (859) 246-2722 | AP191: Fleming (DIST 00) | AQ191: FLEM00 | AR191: 0.9482 | AS191: FLEM | AT191: Fleming | AU191: 00 | AV191: Fleming (DIST 00) | AZ191: Clark (UNKNOWN)
E192: 03500 | F192: 035 | G192: Fleming | H192: 00 | K192: CLAY | L192: Clay | M192: 02600 | N192: Clay | O192: (DIST 00) | P192: Clay (DIST 00) | Q192: Clay (DIST 00) | R192: Clark (UNKNOWN) | S192: 0.9582 | T192: 0.1346 | V192: Clark (UNKNOWN) | W192: 0.9582 | X192: 0.1346 | AH192: Fleming | AI192: (DIST 00) | AJ192: Fleming (DIST 00) | AL192: Fleming | AN192: (606) 845-1401 | AP192: Fleming (DIST 01) | AQ192: FLEM01 | AR192: 1.0736 | AS192: FLEM | AT192: Fleming | AU192: 01 | AV192: Fleming (DIST 01) | AZ192: Clay (DIST 00) | BA192: 1.156
E193: 03501 | F193: 035 | G193: Fleming | H193: 01 | K193: CLAY | L193: Clay | M193: 02601 | N193: Clay | O193: (DIST 01) | P193: Clay (DIST 01) | Q193: Clay (DIST 01) | R193: Clay (DIST 00) | S193: 1.1677 | T193: 0.2389 | V193: Clay (DIST 00) | W193: 1.1677 | X193: 0.2389 | AH193: Fleming | AI193: (DIST 01) | AJ193: Fleming (DIST 01) | AL193: Fleming | AN193: (606) 845-1401 | AP193: Floyd (DIST 00) | AQ193: FLOY00 | AR193: 1.0416 | AS193: FLOY | AT193: Floyd | AU193: 00 | AV193: Floyd (DIST 00) | AZ193: Clay (DIST 01) | BA193: 1.516
E194: 035ND | F194: 035 | G194: Fleming | H194: ND | K194: CLAY | L194: Clay | M194: UNKNOWN | N194: Clay | O194: (DIST UNKNOWN) | P194: (DIST UNKNOWN) | Q194: (DIST UNKNOWN) | R194: Clay (DIST 01) | S194: 1.5277 | T194: 0.2389 | V194: Clay (DIST 01) | W194: 1.5277 | X194: 0.2389 | AH194: Fleming | AI194: (DIST ND) | AJ194: Fleming (DIST ND) | AL194: Fleming | AN194: (606) 845-1401 | AP194: Floyd (DIST 01) | AQ194: FLOY01 | AR194: 1.4189 | AS194: FLOY | AT194: Floyd | AU194: 01 | AV194: Floyd (DIST 01) | AZ194: Clay (UNKNOWN)
E195: 03601 | F195: 036 | G195: Floyd | H195: 01 | K195: CLIN | L195: Clinton | M195: 02700 | N195: Clinton | O195: (DIST 00) | P195: Clinton (DIST 00) | Q195: Clinton (DIST 00) | R195: Clay (UNKNOWN) | S195: 1.1677 | T195: 0.2389 | V195: Clay (UNKNOWN) | W195: 1.1677 | X195: 0.2389 | AH195: Floyd | AI195: (DIST 01) | AJ195: Floyd (DIST 01) | AL195: Floyd | AN195: (606) 886-9622 | AP195: Floyd (DIST 02) | AQ195: FLOY02 | AR195: 1.3716 | AS195: FLOY | AT195: Floyd | AU195: 02 | AV195: Floyd (DIST 02) | AZ195: Clinton (DIST 00) | BA195: 0.7372
E196: 03602 | F196: 036 | G196: Floyd | H196: 02 | K196: CLIN | L196: Clinton | M196: 02701 | N196: Clinton | O196: (DIST 01) | P196: Clinton (DIST 01) | Q196: Clinton (DIST 01) | R196: Clinton (DIST 00) | S196: 0.7782 | T196: 0.0951 | V196: Clinton (DIST 00) | W196: 0.7782 | X196: 0.0951 | AH196: Floyd | AI196: (DIST 02) | AJ196: Floyd (DIST 02) | AL196: Floyd | AN196: (606) 886-9622 | AP196: Floyd (DIST 03) | AQ196: FLOY03 | AR196: 1.2616 | AS196: FLOY | AT196: Floyd | AU196: 03 | AV196: Floyd (DIST 03) | AZ196: Clinton (DIST 01) | BA196: =VLOOKUP(AZ196,AP$3:AR$691,3,FALSE) -> 0.9372
E197: 03603 | F197: 036 | G197: Floyd | H197: 03 | K197: CLIN | L197: Clinton | M197: UNKNOWN | N197: Clinton | O197: (DIST UNKNOWN) | P197: (DIST UNKNOWN) | Q197: (DIST UNKNOWN) | R197: Clinton (DIST 01) | S197: 0.9761 | T197: 0.0951 | V197: Clinton (DIST 01) | W197: 0.9761 | X197: 0.0951 | AH197: Floyd | AI197: (DIST 03) | AJ197: Floyd (DIST 03) | AL197: Floyd | AN197: (606) 886-9622 | AP197: Floyd (DIST 04) | AQ197: FLOY04 | AR197: 1.4416 | AS197: FLOY | AT197: Floyd | AU197: 04 | AV197: Floyd (DIST 04) | AZ197: Clinton (UNKNOWN)
E198: 03604 | F198: 036 | G198: Floyd | H198: 04 | K198: CRIT | L198: Crittenden | M198: 02801 | N198: Crittenden | O198: (DIST 01) | P198: Crittenden (DIST 01) | Q198: Crittenden (DIST 01) | R198: Clinton (UNKNOWN) | S198: 0.7782 | T198: 0.0951 | V198: Clinton (UNKNOWN) | W198: 0.7782 | X198: 0.0951 | AH198: Floyd | AI198: (DIST 04) | AJ198: Floyd (DIST 04) | AL198: Floyd | AN198: (606) 886-9622 | AP198: Floyd (DIST 05) | AQ198: FLOY05 | AR198: 1.1416 | AS198: FLOY | AT198: Floyd | AU198: 05 | AV198: Floyd (DIST 05) | AZ198: Crittenden (DIST 01) | BA198: 0.7466
E199: 03605 | F199: 036 | G199: Floyd | H199: 05 | K199: CRIT | L199: Crittenden | M199: 02802 | N199: Crittenden | O199: (DIST 02) | P199: Crittenden (DIST 02) | Q199: Crittenden (DIST 02) | R199: Crittenden (DIST 01) | S199: 0.7772 | T199: 0.1372 | V199: Crittenden (DIST 01) | W199: 0.7772 | X199: 0.1372 | AH199: Floyd | AI199: (DIST 05) | AJ199: Floyd (DIST 05) | AL199: Floyd | AN199: (606) 886-9622 | AP199: Floyd (DIST 06) | AQ199: FLOY06 | AR199: 1.1416 | AS199: FLOY | AT199: Floyd | AU199: 06 | AV199: Floyd (DIST 06) | AZ199: Crittenden (DIST 02) | BA199: 1.0247
E200: 03606 | F200: 036 | G200: Floyd | H200: 06 | K200: CRIT | L200: Crittenden | M200: UNKNOWN | N200: Crittenden | O200: (DIST UNKNOWN) | P200: (DIST UNKNOWN) | Q200: (DIST UNKNOWN) | R200: Crittenden (DIST 02) | S200: 1.0972 | T200: 0.1372 | V200: Crittenden (DIST 02) | W200: 1.0972 | X200: 0.1372 | AH200: Floyd | AI200: (DIST 06) | AJ200: Floyd (DIST 06) | AL200: Floyd | AN200: (606) 886-9622 | AP200: Floyd (DIST 07) | AQ200: FLOY07 | AR200: 1.1416 | AS200: FLOY | AT200: Floyd | AU200: 07 | AV200: Floyd (DIST 07) | AZ200: Crittenden (UNKNOWN)
... 674 more rows

Sheet Sheet1 (hidden)
B1: 99 | D1: 2022 INV | E1: 2022 Transit | F1: 2021 | G1: 2021
A2: count AND dist | B2: count | C2: County/District TP drop | D2: 2022inv | E2: 2022trans | F2: Inventory | G2: In-Transit | H2: county | I2: compare1 | J2: stack
A3: Adair (DIST 00) | B3: ADAI | C3: Adair (DIST 00) | D3: 1.0879 | E3: 0.2676 | F3: 1.0851 | G3: 0.2676 | H3: ADAI | I3: 0.0028 | J3: 1 | K3: Adair (DIST 00)
A4: Adair (DIST 01) | B4: ADAI | C4: Adair (DIST 01) | D4: 1.2949 | E4: 0.2676 | F4: 1.3021 | G4: 0.2676 | H4: ADAI | I4: -0.0072 | J4: 2 | K4: Adair (DIST 01) | S4: asdfasdf
A5: (DIST UNKNOWN) | B5: ADAI | C5: Adair (UNKNOWN) | D5: 1.0879 | E5: 0.2676 | F5: 1.0851 | G5: 0.2676 | H5: ADAI | I5: 0.0028 | J5: 3 | K5: Adair (UNKNOWN) | S5: sdfasdf
A6: Allen (DIST 00) | B6: ALLE | C6: Allen (DIST 00) | D6: 0.8364 | E6: 0.2097 | F6: 0.8797 | G6: 0.2097 | H6: ALLE | I6: -0.0433 | J6: 4 | K6: Allen (DIST 00) | S6: sfds
A7: Allen (DIST 01) | B7: ALLE | C7: Allen (DIST 01) | D7: 1.0545 | E7: 0.2097 | F7: 1.1097 | G7: 0.2097 | H7: ALLE | I7: -0.0552 | J7: 5 | K7: Allen (DIST 01) | S7: adfasd
A8: (DIST UNKNOWN) | B8: ALLE | C8: Allen (UNKNOWN) | D8: 0.8364 | E8: 0.2097 | F8: 0.8797 | G8: 0.2097 | H8: ALLE | I8: -0.0433 | J8: 6 | K8: Allen (UNKNOWN) | S8: aerarae
A9: Anderson (DIST 00) | B9: ANDE | C9: Anderson (DIST 00) | D9: 0.9692 | E9: 0.219 | F9: 0.971 | G9: 0.219 | H9: ANDE | I9: -0.0018 | J9: 7 | K9: Anderson (DIST 00) | S9: dfgsdfg
A10: Anderson (DIST 02) | B10: ANDE | C10: Anderson (DIST 02) | D10: 1.1047 | E10: 0.119 | F10: 1.1065 | G10: 0.119 | H10: ANDE | I10: -0.0018 | J10: 8 | K10: Anderson (DIST 02) | S10: tryrty
A11: (DIST UNKNOWN) | B11: ANDE | C11: Anderson (UNKNOWN) | D11: 0.9692 | E11: 0.119 | F11: 0.971 | G11: 0.119 | H11: ANDE | I11: -0.0018 | J11: 9 | K11: Anderson (UNKNOWN) | S11: hgegfhf
A12: Ballard (DIST 00) | B12: BALL | C12: Ballard (DIST 00) | D12: 0.9062 | E12: 0.03 | F12: 0.909 | G12: 0.03 | H12: BALL | I12: -0.0028 | J12: 10 | K12: Ballard (DIST 00) | S12: sgsfgfd
A13: Ballard (DIST 02) | B13: BALL | C13: Ballard (DIST 02) | D13: 1.2802 | E13: 0.03 | F13: 1.283 | G13: 0.03 | H13: BALL | I13: -0.0028 | J13: 11 | K13: Ballard (DIST 02) | S13: gfgfreerg
A14: Ballard (DIST 03) | B14: BALL | C14: Ballard (DIST 03) | D14: 1.2482 | E14: 0.03 | F14: 1.251 | G14: 0.03 | H14: BALL | I14: -0.0028 | J14: 12 | K14: Ballard (DIST 03) | S14: fdfdsfsdfd
A15: Ballard (DIST 04) | B15: BALL | C15: Ballard (DIST 04) | D15: 1.3952 | E15: 0.03 | F15: 1.398 | G15: 0.03 | H15: BALL | I15: -0.0028 | J15: 13 | K15: Ballard (DIST 04) | S15: tyyyt
A16: Ballard (DIST 05) | B16: BALL | C16: Ballard (DIST 05) | D16: 1.2462 | E16: 0.03 | F16: 1.249 | G16: 0.03 | H16: BALL | I16: -0.0028 | J16: 14 | K16: Ballard (DIST 05) | S16: fdffg
A17: (DIST UNKNOWN) | B17: BALL | C17: Ballard (UNKNOWN) | D17: 0.9062 | E17: 0.03 | F17: 0.909 | G17: 0.03 | H17: BALL | I17: -0.0028 | J17: 15 | K17: Ballard (UNKNOWN) | S17: lkjlk
A18: Barren (DIST 01) | B18: BARR | C18: Barren (DIST 01) | D18: 0.6575 | E18: 0.0679 | F18: 0.8949 | G18: 0.0679 | H18: BARR | I18: -0.2374 | J18: 16 | K18: Barren (DIST 01) | S18: kjkjij
A19: Barren (DIST 02) | B19: BARR | C19: Barren (DIST 02) | D19: 1.1907 | E19: 0.0679 | F19: 1.1939 | G19: 0.0679 | H19: BARR | I19: -0.0032 | J19: 17 | K19: Barren (DIST 02) | S19: kjipui0uio
A20: Barren (DIST 03) | B20: BARR | C20: Barren (DIST 03) | D20: 1.2497 | E20: 0.0679 | F20: 1.2529 | G20: 0.0679 | H20: BARR | I20: -0.0032 | J20: 18 | K20: Barren (DIST 03) | S20: tdtu
A21: Barren (DIST 04) | B21: BARR | C21: Barren (DIST 04) | D21: 1.0367 | E21: 0.0679 | F21: 1.0399 | G21: 0.0679 | H21: BARR | I21: -0.0032 | J21: 19 | K21: Barren (DIST 04) | S21: jjklkl
A22: Barren (DIST 05) | B22: BARR | C22: Barren (DIST 05) | D22: 1.0727 | E22: 0.0679 | F22: 1.0709 | G22: 0.0679 | H22: BARR | I22: 0.0018 | J22: 20 | K22: Barren (DIST 05) | S22: qetwet
A23: Barren (DIST 06) | B23: BARR | C23: Barren (DIST 06) | D23: 1.1987 | E23: 0.0679 | F23: 1.1969 | G23: 0.0679 | H23: BARR | I23: 0.0018 | J23: 21 | K23: Barren (DIST 06) | S23: ytyry
A24: Barren (DIST 07) | B24: BARR | C24: Barren (DIST 07) | D24: 1.0507 | E24: 0.0679 | F24: 1.0489 | G24: 0.0679 | H24: BARR | I24: 0.0018 | J24: 22 | K24: Barren (DIST 07) | S24: tertewr
A25: Barren (DIST 08) | B25: BARR | C25: Barren (DIST 08) | D25: 1.0737 | E25: 0.0679 | F25: 1.0769 | G25: 0.0679 | H25: BARR | I25: -0.0032 | J25: 23 | K25: Barren (DIST 08) | S25: zffds
A26: (DIST UNKNOWN) | B26: BARR | C26: Barren (UNKNOWN) | D26: 0.6575 | E26: 0.0679 | F26: 0.8949 | G26: 0.0679 | H26: BARR | I26: -0.2374 | J26: 24 | K26: Barren (UNKNOWN) | S26: ytryryt
A27: Bath (DIST 00) | B27: BATH | C27: Bath (DIST 00) | D27: 1.034 | E27: 0.2253 | F27: 1.0203 | G27: 0.2253 | H27: BATH | I27: 0.0137 | J27: 25 | K27: Bath (DIST 00) | S27: dffs
A28: Bath (DIST 01) | B28: BATH | C28: Bath (DIST 01) | D28: 1.203 | E28: 0.2253 | F28: 1.1943 | G28: 0.2253 | H28: BATH | I28: 0.0087 | J28: 26 | K28: Bath (DIST 01) | S28: afasfd
A29: Bath (DIST 02) | B29: BATH | C29: Bath (DIST 02) | D29: 1.338 | E29: 0.2253 | F29: 1.3243 | G29: 0.2253 | H29: BATH | I29: 0.0137 | J29: 27 | K29: Bath (DIST 02) | S29: rerrt
A30: Bath (DIST 03) | B30: BATH | C30: Bath (DIST 03) | D30: 1.144 | E30: 0.2253 | F30: 1.1303 | G30: 0.2253 | H30: BATH | I30: 0.0137 | J30: 28 | K30: Bath (DIST 03) | S30: adgfdggf
A31: (DIST UNKNOWN) | B31: BATH | C31: Bath (UNKNOWN) | D31: 1.034 | E31: 0.2253 | F31: 1.0203 | G31: 0.2253 | H31: BATH | I31: 0.0137 | J31: 29 | K31: Bath (UNKNOWN) | S31: sghf
A32: Bell (DIST 01) | B32: BELL | C32: Bell (DIST 01) | D32: 1.034 | E32: 0.145 | F32: 1.049 | G32: 0.145 | H32: BELL | I32: -0.015 | J32: 30 | K32: Bell (DIST 01) | S32: fssdgsdf
A33: Bell (DIST 02) | B33: BELL | C33: Bell (DIST 02) | D33: 1.083 | E33: 0.145 | F33: 1.09 | G33: 0.145 | H33: BELL | I33: -0.007 | J33: 31 | K33: Bell (DIST 02)
A34: Bell (DIST 03) | B34: BELL | C34: Bell (DIST 03) | D34: 1.346 | E34: 0.145 | F34: 1.351 | G34: 0.145 | H34: BELL | I34: -0.005 | J34: 32 | K34: Bell (DIST 03)
A35: (DIST UNKNOWN) | B35: BELL | C35: Bell (UNKNOWN) | D35: 1.034 | E35: 0.145 | F35: 1.049 | G35: 0.145 | H35: BELL | I35: -0.015 | J35: 33 | K35: Bell (UNKNOWN)
A36: Boone (DIST 02) | B36: BOON | C36: Boone (DIST 02) | D36: 1.0529 | E36: 0.2192 | F36: 1.031 | G36: 0.2192 | H36: BOON | I36: 0.0219 | J36: 34 | K36: Boone (DIST 02)
A37: Boone (DIST 03) | B37: BOON | C37: Boone (DIST 03) | D37: 1.2809 | E37: 0.0692 | F37: 1.218 | G37: 0.0692 | H37: BOON | I37: 0.0629 | J37: 35 | K37: Boone (DIST 03)
A38: Boone (DIST 04) | B38: BOON | C38: Boone (DIST 04) | D38: 1.1029 | E38: 0.2692 | F38: 1.081 | G38: 0.2692 | H38: BOON | I38: 0.0219 | J38: 36 | K38: Boone (DIST 04)
A39: Boone (DIST 05) | B39: BOON | C39: Boone (DIST 05) | D39: 1.0879 | E39: 0.2542 | F39: 1.066 | G39: 0.2542 | H39: BOON | I39: 0.0219 | J39: 37 | K39: Boone (DIST 05)
A40: Boone (DIST 06) | B40: BOON | C40: Boone (DIST 06) | D40: 1.1029 | E40: 0.2692 | F40: 1.081 | G40: 0.2692 | H40: BOON | I40: 0.0219 | J40: 38 | K40: Boone (DIST 06)
A41: Boone (DIST 07) | B41: BOON | C41: Boone (DIST 07) | D41: 1.0329 | E41: 0.1992 | F41: 1.011 | G41: 0.1992 | H41: BOON | I41: 0.0219 | J41: 39 | K41: Boone (DIST 07)
A42: Boone (DIST 08) | B42: BOON | C42: Boone (DIST 08) | D42: 1.1029 | E42: 0.2692 | F42: 1.081 | G42: 0.2692 | H42: BOON | I42: 0.0219 | J42: 40 | K42: Boone (DIST 08)
A43: Boone (DIST 09) | B43: BOON | C43: Boone (DIST 09) | D43: 1.2849 | E43: 0.2692 | F43: 1.24 | G43: 0.2692 | H43: BOON | I43: 0.0449 | J43: 41 | K43: Boone (DIST 09)
A44: Boone (DIST 10) | B44: BOON | C44: Boone (DIST 10) | D44: 1.0979 | E44: 0.2542 | F44: 1.066 | G44: 0.2542 | H44: BOON | I44: 0.0319 | J44: 42 | K44: Boone (DIST 10)
A45: Boone (DIST 11) | B45: BOON | C45: Boone (DIST 11) | D45: 1.1029 | E45: 0.2692 | F45: 1.081 | G45: 0.2692 | H45: BOON | I45: 0.0219 | J45: 43 | K45: Boone (DIST 11)
A46: Boone (DIST 12) | B46: BOON | C46: Boone (DIST 12) | D46: 1.5499 | E46: 0.2692 | F46: 1.535 | G46: 0.2692 | H46: BOON | I46: 0.0149 | J46: 44 | K46: Boone (DIST 12)
A47: Boone (DIST 13) | B47: BOON | C47: Boone (DIST 13) | D47: 1.1029 | E47: 0.2692 | F47: 1.081 | G47: 0.2692 | H47: BOON | I47: 0.0219 | J47: 45 | K47: Boone (DIST 13)
A48: Boone (DIST 14) | B48: BOON | C48: Boone (DIST 14) | D48: 1.5499 | E48: 0.2692 | F48: 1.535 | G48: 0.2692 | H48: BOON | I48: 0.0149 | J48: 46 | K48: Boone (DIST 14)
A49: Boone (DIST 15) | B49: BOON | C49: Boone (DIST 15) | D49: 1.6849 | E49: 0.2692 | F49: 1.681 | G49: 0.2692 | H49: BOON | I49: 0.0039 | J49: 47 | K49: Boone (DIST 15)
A50: (DIST UNKNOWN) | B50: BOON | C50: Boone (UNKNOWN) | D50: 1.0329 | E50: 0.0692 | F50: 1.011 | G50: 0.0692 | H50: BOON | I50: 0.0219 | J50: 48 | K50: Boone (UNKNOWN)
A51: Bourbon (DIST 00) | B51: BOUR | C51: Bourbon (DIST 00) | D51: 0.8887 | E51: 0.1665 | F51: 0.9157 | G51: 0.1665 | H51: BOUR | I51: -0.027 | J51: 49 | K51: Bourbon (DIST 00)
A52: Bourbon (DIST 02) | B52: BOUR | C52: Bourbon (DIST 02) | D52: 1.1587 | E52: 0.1665 | F52: 1.2589 | G52: 0.1665 | H52: BOUR | I52: -0.1002 | J52: 50 | K52: Bourbon (DIST 02)
A53: Bourbon (DIST 03) | B53: BOUR | C53: Bourbon (DIST 03) | D53: 1.3787 | E53: 0.1665 | F53: 1.4037 | G53: 0.1665 | H53: BOUR | I53: -0.025 | J53: 51 | K53: Bourbon (DIST 03)
A54: Bourbon (DIST 04) | B54: BOUR | C54: Bourbon (DIST 04) | D54: 1.3673 | E54: 0.1665 | F54: 1.3246 | G54: 0.1665 | H54: BOUR | I54: 0.0427 | J54: 52 | K54: Bourbon (DIST 04)
A55: Bourbon (DIST 05) | B55: BOUR | C55: Bourbon (DIST 05) | D55: 1.0337 | E55: 0.1665 | F55: 1.0809 | G55: 0.1665 | H55: BOUR | I55: -0.0472 | J55: 53 | K55: Bourbon (DIST 05)
A56: (DIST UNKNOWN) | B56: BOUR | C56: Bourbon (UNKNOWN) | D56: 0.08887 | E56: 0.1665 | F56: 0.9157 | G56: 0.1665 | H56: BOUR | I56: -0.82683 | J56: 54 | K56: Bourbon (UNKNOWN)
A57: Boyd (DIST 10) | B57: BOYD | C57: Boyd (DIST 10) | D57: 1.4778 | E57: 0.096 | F57: 1.4516 | G57: 0.096 | H57: BOYD | I57: 0.0262 | J57: 55 | K57: Boyd (DIST 10)
A58: Boyd (DIST 11) | B58: BOYD | C58: Boyd (DIST 11) | D58: 1.7028 | E58: 0.096 | F58: 1.6766 | G58: 0.096 | H58: BOYD | I58: 0.0262 | J58: 56 | K58: Boyd (DIST 11)
A59: Boyd (DIST 22) | B59: BOYD | C59: Boyd (DIST 22) | D59: 1.5022 | E59: 0.096 | F59: 1.501 | G59: 0.096 | H59: BOYD | I59: 0.0012 | J59: 57 | K59: Boyd (DIST 22)
A60: Boyd (DIST 23) | B60: BOYD | C60: Boyd (DIST 23) | D60: 1.2478 | E60: 0.096 | F60: 1.2434 | G60: 0.096 | H60: BOYD | I60: 0.0044 | J60: 58 | K60: Boyd (DIST 23)
A61: Boyd (DIST 24) | B61: BOYD | C61: Boyd (DIST 24) | D61: 1.4142 | E61: 0.096 | F61: 1.386 | G61: 0.096 | H61: BOYD | I61: 0.0282 | J61: 59 | K61: Boyd (DIST 24)
A62: Boyd (DIST 25) | B62: BOYD | C62: Boyd (DIST 25) | D62: 1.6078 | E62: 0.096 | F62: 1.5935 | G62: 0.096 | H62: BOYD | I62: 0.0143 | J62: 60 | K62: Boyd (DIST 25)
A63: Boyd (DIST 26) | B63: BOYD | C63: Boyd (DIST 26) | D63: 1.6078 | E63: 0.096 | F63: 1.5935 | G63: 0.096 | H63: BOYD | I63: 0.0143 | J63: 61 | K63: Boyd (DIST 26)
A64: Boyd (DIST 33) | B64: BOYD | C64: Boyd (DIST 33) | D64: 1.4678 | E64: 0.196 | F64: 1.4634 | G64: 0.196 | H64: BOYD | I64: 0.0044 | J64: 62 | K64: Boyd (DIST 33)
A65: Boyd (DIST 34) | B65: BOYD | C65: Boyd (DIST 34) | D65: 1.6222 | E65: 0.096 | F65: 1.621 | G65: 0.096 | H65: BOYD | I65: 0.0012 | J65: 63 | K65: Boyd (DIST 34)
A66: Boyd (DIST 44) | B66: BOYD | C66: Boyd (DIST 44) | D66: 1.2598 | E66: 0.196 | F66: 1.2284 | G66: 0.196 | H66: BOYD | I66: 0.0314 | J66: 64 | K66: Boyd (DIST 44)
A67: Boyd (DIST 45) | B67: BOYD | C67: Boyd (DIST 45) | D67: 1.2598 | E67: 0.196 | F67: 1.2284 | G67: 0.196 | H67: BOYD | I67: 0.0314 | J67: 65 | K67: Boyd (DIST 45)
A68: Boyd (DIST 46) | B68: BOYD | C68: Boyd (DIST 46) | D68: 1.2598 | E68: 0.196 | F68: 1.2284 | G68: 0.196 | H68: BOYD | I68: 0.0314 | J68: 66 | K68: Boyd (DIST 46)
A69: Boyd (DIST 47) | B69: BOYD | C69: Boyd (DIST 47) | D69: 1.2598 | E69: 0.196 | F69: 1.2284 | G69: 0.196 | H69: BOYD | I69: 0.0314 | J69: 67 | K69: Boyd (DIST 47)
A70: Boyd (DIST 48) | B70: BOYD | C70: Boyd (DIST 48) | D70: 1.2598 | E70: 0.196 | F70: 1.2284 | G70: 0.196 | H70: BOYD | I70: 0.0314 | J70: 68 | K70: Boyd (DIST 48)
A71: Boyd (DIST 53) | B71: BOYD | C71: Boyd (DIST 53) | D71: 1.4318 | E71: 0.196 | F71: 1.4274 | G71: 0.196 | H71: BOYD | I71: 0.0044 | J71: 69 | K71: Boyd (DIST 53)
A72: (DIST UNKNOWN) | B72: BOYD | C72: Boyd (UNKNOWN) | D72: 1.2598 | E72: 0.096 | F72: 1.2284 | G72: 0.096 | H72: BOYD | I72: 0.0314 | J72: 70 | K72: Boyd (UNKNOWN)
A73: Boyle (DIST 00) | B73: BOYL | C73: Boyle (DIST 00) | D73: 1.1777 | E73: 0.1426 | F73: 1.2226 | G73: 0.1426 | H73: BOYL | I73: -0.0449 | J73: 71 | K73: Boyle (DIST 00)
A74: Boyle (DIST 01) | B74: BOYL | C74: Boyle (DIST 01) | D74: 1.5127 | E74: 0.1426 | F74: 1.4886 | G74: 0.1426 | H74: BOYL | I74: 0.0241 | J74: 72 | K74: Boyle (DIST 01)
A75: Boyle (DIST 02) | B75: BOYL | C75: Boyle (DIST 02) | D75: 1.6028 | E75: 0.1426 | F75: 1.5788 | G75: 0.1426 | H75: BOYL | I75: 0.024 | J75: 73 | K75: Boyle (DIST 02)
A76: Boyle (DIST 04) | B76: BOYL | C76: Boyle (DIST 04) | D76: 1.2678 | E76: 0.1426 | F76: 1.3128 | G76: 0.1426 | H76: BOYL | I76: -0.045 | J76: 74 | K76: Boyle (DIST 04)
A77: Boyle (DIST 05) | B77: BOYL | C77: Boyle (DIST 05) | D77: 1.4564 | E77: 0.1426 | F77: 1.5013 | G77: 0.1426 | H77: BOYL | I77: -0.0449 | J77: 75 | K77: Boyle (DIST 05)
A78: Boyle (DIST 06) | B78: BOYL | C78: Boyle (DIST 06) | D78: 1.1817 | E78: 0.1426 | F78: 1.2266 | G78: 0.1426 | H78: BOYL | I78: -0.0449 | J78: 76 | K78: Boyle (DIST 06)
A79: (DIST UNKNOWN) | B79: BOYL | C79: Boyle (UNKNOWN) | D79: 1.1777 | E79: 0.1426 | F79: 1.2226 | G79: 0.1426 | H79: BOYL | I79: -0.0449 | J79: 77 | K79: Boyle (UNKNOWN)
A80: Bracken (DIST 00) | B80: BRAC | C80: Bracken (DIST 00) | D80: 1.1818 | E80: 0.267 | F80: 1.1892 | G80: 0.267 | H80: BRAC | I80: -0.0074 | J80: 78 | K80: Bracken (DIST 00)
A81: Bracken (DIST 01) | B81: BRAC | C81: Bracken (DIST 01) | D81: 2.2538 | E81: 0.267 | F81: 1.9992 | G81: 0.267 | H81: BRAC | I81: 0.2546 | J81: 79 | K81: Bracken (DIST 01)
A82: Bracken (DIST 02) | B82: BRAC | C82: Bracken (DIST 02) | D82: 1.1818 | E82: 0.267 | F82: 1.1892 | G82: 0.267 | H82: BRAC | I82: -0.0074 | J82: 80 | K82: Bracken (DIST 02)
A83: Bracken (DIST 03) | B83: BRAC | C83: Bracken (DIST 03) | D83: 1.1818 | E83: 0.267 | F83: 1.1892 | G83: 0.267 | H83: BRAC | I83: -0.0074 | J83: 81 | K83: Bracken (DIST 03)
A84: Bracken (DIST 04) | B84: BRAC | C84: Bracken (DIST 04) | D84: 2.451 | E84: 0.267 | F84: 2.4546 | G84: 0.267 | H84: BRAC | I84: -0.0036 | J84: 82 | K84: Bracken (DIST 04)
A85: Bracken (DIST 05) | B85: BRAC | C85: Bracken (DIST 05) | D85: 1.5078 | E85: 0.267 | F85: 1.5482 | G85: 0.267 | H85: BRAC | I85: -0.0404 | J85: 83 | K85: Bracken (DIST 05)
A86: (DIST UNKNOWN) | B86: BRAC | C86: Bracken (UNKNOWN) | D86: 1.1818 | E86: 0.267 | F86: 1.1892 | G86: 0.267 | H86: BRAC | I86: -0.0074 | J86: 84 | K86: Bracken (UNKNOWN)
A87: Breathitt (DIST 01) | B87: BREA | C87: Breathitt (DIST 01) | D87: 1.3399 | E87: 0.2471 | F87: 1.3394 | G87: 0.2471 | H87: BREA | I87: 0.0005 | J87: 85 | K87: Breathitt (DIST 01)
A88: Breathitt (DIST 02) | B88: BREA | C88: Breathitt (DIST 02) | D88: 1.3019 | E88: 0.2471 | F88: 1.3024 | G88: 0.2471 | H88: BREA | I88: -0.0005 | J88: 86 | K88: Breathitt (DIST 02)
A89: Breathitt (DIST 03) | B89: BREA | C89: Breathitt (DIST 03) | D89: 1.6229 | E89: 0.2471 | F89: 1.6224 | G89: 0.2471 | H89: BREA | I89: 0.0005 | J89: 87 | K89: Breathitt (DIST 03)
A90: Breathitt (DIST 04) | B90: BREA | C90: Breathitt (DIST 04) | D90: 1.5849 | E90: 0.2471 | F90: 1.5854 | G90: 0.2471 | H90: BREA | I90: -0.0005 | J90: 88 | K90: Breathitt (DIST 04)
A91: (DIST UNKNOWN) | B91: BREA | C91: Breathitt (UNKNOWN) | D91: 1.3019 | E91: 0.2471 | F91: 1.3024 | G91: 0.2471 | H91: BREA | I91: -0.0005 | J91: 89 | K91: Breathitt (UNKNOWN)
A92: Breckinridge (DIST 01) | B92: BREC | C92: Breckinridge (DIST 01) | D92: 0.874 | E92: 0.208959 | F92: 0.892 | G92: 0.208959 | H92: BREC | I92: -0.018 | J92: 90 | K92: Breckinridge (DIST 01)
A93: Breckinridge (DIST 02) | B93: BREC | C93: Breckinridge (DIST 02) | D93: 1.054 | E93: 0.208959 | F93: 1.089 | G93: 0.208959 | H93: BREC | I93: -0.035 | J93: 91 | K93: Breckinridge (DIST 02)
A94: Breckinridge (DIST 03) | B94: BREC | C94: Breckinridge (DIST 03) | D94: 1.224 | E94: 0.208959 | F94: 1.252 | G94: 0.208959 | H94: BREC | I94: -0.028 | J94: 92 | K94: Breckinridge (DIST 03)
A95: Breckinridge (DIST 04) | B95: BREC | C95: Breckinridge (DIST 04) | D95: 1.291 | E95: 0.208959 | F95: 1.3695 | G95: 0.208959 | H95: BREC | I95: -0.0785 | J95: 93 | K95: Breckinridge (DIST 04)
A96: Breckinridge (DIST 05) | B96: BREC | C96: Breckinridge (DIST 05) | D96: 1.416 | E96: 0.208959 | F96: 1.451 | G96: 0.208959 | H96: BREC | I96: -0.035 | J96: 94 | K96: Breckinridge (DIST 05)
A97: (DIST UNKNOWN) | B97: BREC | C97: Breckinridge (UNKNOWN) | D97: 0.874 | E97: 0.208959 | F97: 0.892 | G97: 0.208959 | H97: BREC | I97: -0.018 | J97: 95 | K97: Breckinridge (UNKNOWN)
A98: Bullitt (DIST 00) | B98: BULL | C98: Bullitt (DIST 00) | D98: 0.9375 | E98: 0.1266 | F98: 0.9666 | G98: 0.1266 | H98: BULL | I98: -0.0291 | J98: 96 | K98: Bullitt (DIST 00)
A99: Bullitt (DIST 01) | B99: BULL | C99: Bullitt (DIST 01) | D99: 1.0375 | E99: 0.2266 | F99: 1.0666 | G99: 0.2266 | H99: BULL | I99: -0.0291 | J99: 97 | K99: Bullitt (DIST 01)
A100: Bullitt (DIST 02) | B100: BULL | C100: Bullitt (DIST 02) | D100: 1.0375 | E100: 0.2266 | F100: 1.0666 | G100: 0.2266 | H100: BULL | I100: -0.0291 | J100: 98 | K100: Bullitt (DIST 02)
A101: Bullitt (DIST 03) | B101: BULL | C101: Bullitt (DIST 03) | D101: 1.1375 | E101: 0.3266 | F101: 1.1666 | G101: 0.3266 | H101: BULL | I101: -0.0291 | J101: 99 | K101: Bullitt (DIST 03)
A102: Bullitt (DIST 04) | B102: BULL | C102: Bullitt (DIST 04) | D102: 1.0375 | E102: 0.2266 | F102: 1.0666 | G102: 0.2266 | H102: BULL | I102: -0.0291 | J102: 100 | K102: Bullitt (DIST 04)
A103: Bullitt (DIST 05) | B103: BULL | C103: Bullitt (DIST 05) | D103: 1.2295 | E103: 0.3266 | F103: 1.2616 | G103: 0.3266 | H103: BULL | I103: -0.0321 | J103: 101 | K103: Bullitt (DIST 05)
A104: Bullitt (DIST 06) | B104: BULL | C104: Bullitt (DIST 06) | D104: 1.2175 | E104: 0.2266 | F104: 1.2466 | G104: 0.2266 | H104: BULL | I104: -0.0291 | J104: 102 | K104: Bullitt (DIST 06)
A105: Bullitt (DIST 07) | B105: BULL | C105: Bullitt (DIST 07) | D105: 1.1951 | E105: 0.2266 | F105: 1.2242 | G105: 0.2266 | H105: BULL | I105: -0.0291 | J105: 103 | K105: Bullitt (DIST 07)
A106: Bullitt (DIST 08) | B106: BULL | C106: Bullitt (DIST 08) | D106: 1.2375 | E106: 0.2266 | F106: 1.2666 | G106: 0.2266 | H106: BULL | I106: -0.0291 | J106: 104 | K106: Bullitt (DIST 08)
A107: Bullitt (DIST 09) | B107: BULL | C107: Bullitt (DIST 09) | D107: 1.212 | E107: 0.2266 | F107: 1.2411 | G107: 0.2266 | H107: BULL | I107: -0.0291 | J107: 105 | K107: Bullitt (DIST 09)
A108: Bullitt (DIST 10) | B108: BULL | C108: Bullitt (DIST 10) | D108: 1.2775 | E108: 0.1266 | F108: 1.3066 | G108: 0.1266 | H108: BULL | I108: -0.0291 | J108: 106 | K108: Bullitt (DIST 10)
A109: Bullitt (DIST 11) | B109: BULL | C109: Bullitt (DIST 11) | D109: 1.0595 | E109: 0.1266 | F109: 1.0946 | G109: 0.1266 | H109: BULL | I109: -0.0351 | J109: 107 | K109: Bullitt (DIST 11)
A110: Bullitt (DIST 12) | B110: BULL | C110: Bullitt (DIST 12) | D110: 1.0375 | E110: 0.2266 | F110: 1.0666 | G110: 0.2266 | H110: BULL | I110: -0.0291 | J110: 108 | K110: Bullitt (DIST 12)
A111: Bullitt (DIST 16) | B111: BULL | C111: Bullitt (DIST 16) | D111: 1.1595 | E111: 0.2266 | F111: 1.1946 | G111: 0.2266 | H111: BULL | I111: -0.0351 | J111: 109 | K111: Bullitt (DIST 16)
A112: (DIST UNKNOWN) | B112: BULL | C112: Bullitt (UNKNOWN) | D112: 0.9375 | E112: 0.1266 | F112: 0.9666 | G112: 0.1266 | H112: BULL | I112: -0.0291 | J112: 110 | K112: Bullitt (UNKNOWN)
A113: Butler (DIST 00) | B113: BUTL | C113: Butler (DIST 00) | D113: 0.8556 | E113: 0.115 | F113: 0.8485 | G113: 0.115 | H113: BUTL | I113: 0.0071 | J113: 111 | K113: Butler (DIST 00)
A114: Butler (DIST 01) | B114: BUTL | C114: Butler (DIST 01) | D114: 0.9486 | E114: 0.115 | F114: 0.9581 | G114: 0.115 | H114: BUTL | I114: -0.0095 | J114: 112 | K114: Butler (DIST 01)
A115: Butler (DIST 02) | B115: BUTL | C115: Butler (DIST 02) | D115: 0.8556 | E115: 0.115 | F115: 0.8485 | G115: 0.115 | H115: BUTL | I115: 0.0071 | J115: 113 | K115: Butler (DIST 02)
A116: Butler (DIST 03) | B116: BUTL | C116: Butler (DIST 03) | D116: 0.9506 | E116: 0.115 | F116: 0.8485 | G116: 0.115 | H116: BUTL | I116: 0.1021 | J116: 114 | K116: Butler (DIST 03)
A117: (DIST UNKNOWN) | B117: BUTL | C117: Butler (UNKNOWN) | D117: 0.8556 | E117: 0.115 | F117: 0.8485 | G117: 0.115 | H117: BUTL | I117: 0.0071 | J117: 115 | K117: Butler (UNKNOWN)
A118: Caldwell (DIST 00) | B118: CALD | C118: Caldwell (DIST 00) | D118: 0.7577 | E118: 0.1055 | F118: 0.7438 | G118: 0.1055 | H118: CALD | I118: 0.0139 | J118: 116 | K118: Caldwell (DIST 00)
A119: Caldwell (DIST 01) | B119: CALD | C119: Caldwell (DIST 01) | D119: 0.9315 | E119: 0.1055 | F119: 0.9176 | G119: 0.1055 | H119: CALD | I119: 0.0139 | J119: 117 | K119: Caldwell (DIST 01)
A120: Caldwell (DIST 02) | B120: CALD | C120: Caldwell (DIST 02) | D120: 1.0377 | E120: 0.1055 | F120: 1.0238 | G120: 0.1055 | H120: CALD | I120: 0.0139 | J120: 118 | K120: Caldwell (DIST 02)
A121: (DIST UNKNOWN) | B121: CALD | C121: Caldwell (UNKNOWN) | D121: 0.7577 | E121: 0.1055 | F121: 0.7438 | G121: 0.1055 | H121: CALD | I121: 0.0139 | J121: 119 | K121: Caldwell (UNKNOWN)
A122: Calloway (DIST 01) | B122: CALL | C122: Calloway (DIST 01) | D122: 1.3097 | E122: 0.0715 | F122: 1.3047 | G122: 0.0715 | H122: CALL | I122: 0.005 | J122: 120 | K122: Calloway (DIST 01)
A123: Calloway (DIST 02) | B123: CALL | C123: Calloway (DIST 02) | D123: 1.0886 | E123: 0.1615 | F123: 1.0793 | G123: 0.1615 | H123: CALL | I123: 0.0093 | J123: 121 | K123: Calloway (DIST 02)
A124: Calloway (DIST 03) | B124: CALL | C124: Calloway (DIST 03) | D124: 1.0297 | E124: 0.0715 | F124: 1.0507 | G124: 0.0715 | H124: CALL | I124: -0.021 | J124: 122 | K124: Calloway (DIST 03)
A125: Calloway (DIST 10) | B125: CALL | C125: Calloway (DIST 10) | D125: 0.8086 | E125: 0.1615 | F125: 0.8253 | G125: 0.1615 | H125: CALL | I125: -0.0167 | J125: 123 | K125: Calloway (DIST 10)
A126: Calloway (DIST 12) | B126: CALL | C126: Calloway (DIST 12) | D126: 1.2086 | E126: 0.1615 | F126: 1.2253 | G126: 0.1615 | H126: CALL | I126: -0.0167 | J126: 124 | K126: Calloway (DIST 12)
A127: (DIST UNKNOWN) | B127: CALL | C127: Calloway (UNKNOWN) | D127: 0.8086 | E127: 0.0715 | F127: 0.8253 | G127: 0.0715 | H127: CALL | I127: -0.0167 | J127: 125 | K127: Calloway (UNKNOWN)
A128: Campbell (DIST 01) | B128: CAMP | C128: Campbell (DIST 01) | D128: 1.1116 | E128: 0.098 | F128: 1.0579 | G128: 0.098 | H128: CAMP | I128: 0.0537 | J128: 126 | K128: Campbell (DIST 01)
A129: Campbell (DIST 02) | B129: CAMP | C129: Campbell (DIST 02) | D129: 1.1116 | E129: 0.098 | F129: 1.0579 | G129: 0.098 | H129: CAMP | I129: 0.0537 | J129: 127 | K129: Campbell (DIST 02)
A130: Campbell (DIST 04) | B130: CAMP | C130: Campbell (DIST 04) | D130: 2.4096 | E130: 0.098 | F130: 1.3579 | G130: 0.098 | H130: CAMP | I130: 1.0517 | J130: 128 | K130: Campbell (DIST 04)
A131: Campbell (DIST 05) | B131: CAMP | C131: Campbell (DIST 05) | D131: 2.0566 | E131: 0.098 | F131: 1.9559 | G131: 0.098 | H131: CAMP | I131: 0.1007 | J131: 129 | K131: Campbell (DIST 05)
A132: Campbell (DIST 06) | B132: CAMP | C132: Campbell (DIST 06) | D132: 1.7526 | E132: 0.098 | F132: 0.6839 | G132: 0.098 | H132: CAMP | I132: 1.0687 | J132: 130 | K132: Campbell (DIST 06)
A133: Campbell (DIST 07) | B133: CAMP | C133: Campbell (DIST 07) | D133: 1.9206 | E133: 0.098 | F133: 0.9279 | G133: 0.098 | H133: CAMP | I133: 0.9927 | J133: 131 | K133: Campbell (DIST 07)
A134: Campbell (DIST 08) | B134: CAMP | C134: Campbell (DIST 08) | D134: 2.2635 | E134: 0.098 | F134: 1.2118 | G134: 0.098 | H134: CAMP | I134: 1.0517 | J134: 132 | K134: Campbell (DIST 08)
A135: Campbell (DIST 09) | B135: CAMP | C135: Campbell (DIST 09) | D135: 1.4486 | E135: 0.098 | F135: 1.4549 | G135: 0.098 | H135: CAMP | I135: -0.0063 | J135: 133 | K135: Campbell (DIST 09)
A136: Campbell (DIST 10) | B136: CAMP | C136: Campbell (DIST 10) | D136: 1.6706 | E136: 0.098 | F136: 1.6169 | G136: 0.098 | H136: CAMP | I136: 0.0537 | J136: 134 | K136: Campbell (DIST 10)
A137: Campbell (DIST 11) | B137: CAMP | C137: Campbell (DIST 11) | D137: 1.7376 | E137: 0.098 | F137: 1.6349 | G137: 0.098 | H137: CAMP | I137: 0.1027 | J137: 135 | K137: Campbell (DIST 11)
A138: Campbell (DIST 12) | B138: CAMP | C138: Campbell (DIST 12) | D138: 2.5446 | E138: 0.283 | F138: 1.2429 | G138: 0.283 | H138: CAMP | I138: 1.3017 | J138: 136 | K138: Campbell (DIST 12)
A139: Campbell (DIST 13) | B139: CAMP | C139: Campbell (DIST 13) | D139: 1.6246 | E139: 0.098 | F139: 1.3709 | G139: 0.098 | H139: CAMP | I139: 0.2537 | J139: 137 | K139: Campbell (DIST 13)
A140: Campbell (DIST 14) | B140: CAMP | C140: Campbell (DIST 14) | D140: 1.4546 | E140: 0.283 | F140: 1.3969 | G140: 0.283 | H140: CAMP | I140: 0.0577 | J140: 138 | K140: Campbell (DIST 14)
A141: Campbell (DIST 15) | B141: CAMP | C141: Campbell (DIST 15) | D141: 1.4546 | E141: 0.283 | F141: 1.3969 | G141: 0.283 | H141: CAMP | I141: 0.0577 | J141: 139 | K141: Campbell (DIST 15)
A142: Campbell (DIST 16) | B142: CAMP | C142: Campbell (DIST 16) | D142: 1.3116 | E142: 0.283 | F142: 1.2429 | G142: 0.283 | H142: CAMP | I142: 0.0687 | J142: 140 | K142: Campbell (DIST 16)
A143: Campbell (DIST 17) | B143: CAMP | C143: Campbell (DIST 17) | D143: 1.3116 | E143: 0.283 | F143: 1.2429 | G143: 0.283 | H143: CAMP | I143: 0.0687 | J143: 141 | K143: Campbell (DIST 17)
A144: Campbell (DIST 18) | B144: CAMP | C144: Campbell (DIST 18) | D144: 1.8616 | E144: 0.098 | F144: 1.8079 | G144: 0.098 | H144: CAMP | I144: 0.0537 | J144: 142 | K144: Campbell (DIST 18)
A145: Campbell (DIST 19) | B145: CAMP | C145: Campbell (DIST 19) | D145: 1.8466 | E145: 0.098 | F145: 1.7899 | G145: 0.098 | H145: CAMP | I145: 0.0567 | J145: 143 | K145: Campbell (DIST 19)
A146: Campbell (DIST 20) | B146: CAMP | C146: Campbell (DIST 20) | D146: 1.3856 | E146: 0.098 | F146: 1.3149 | G146: 0.098 | H146: CAMP | I146: 0.0707 | J146: 144 | K146: Campbell (DIST 20)
A147: Campbell (DIST 21) | B147: CAMP | C147: Campbell (DIST 21) | D147: 2.1046 | E147: 0.098 | F147: 1.0039 | G147: 0.098 | H147: CAMP | I147: 1.1007 | J147: 145 | K147: Campbell (DIST 21)
A148: Campbell (DIST 22) | B148: CAMP | C148: Campbell (DIST 22) | D148: 1.7376 | E148: 0.098 | F148: 1.6349 | G148: 0.098 | H148: CAMP | I148: 0.1027 | J148: 146 | K148: Campbell (DIST 22)
A149: Campbell (DIST 23) | B149: CAMP | C149: Campbell (DIST 23) | D149: 1.3386 | E149: 0.098 | F149: 1.2849 | G149: 0.098 | H149: CAMP | I149: 0.0537 | J149: 147 | K149: Campbell (DIST 23)
A150: Campbell (DIST 26) | B150: CAMP | C150: Campbell (DIST 26) | D150: 1.4766 | E150: 0.283 | F150: 1.4079 | G150: 0.283 | H150: CAMP | I150: 0.0687 | J150: 148 | K150: Campbell (DIST 26)
A151: Campbell (DIST 27) | B151: CAMP | C151: Campbell (DIST 27) | D151: 1.2916 | E151: 0.278 | F151: 1.2379 | G151: 0.278 | H151: CAMP | I151: 0.0537 | J151: 149 | K151: Campbell (DIST 27)
A152: Campbell (DIST 28) | B152: CAMP | C152: Campbell (DIST 28) | D152: 1.3116 | E152: 0.298 | F152: 1.2579 | G152: 0.298 | H152: CAMP | I152: 0.0537 | J152: 150 | K152: Campbell (DIST 28)
A153: Campbell (DIST 29) | B153: CAMP | C153: Campbell (DIST 29) | D153: 1.3616 | E153: 0.098 | F153: 1.3079 | G153: 0.098 | H153: CAMP | I153: 0.0537 | J153: 151 | K153: Campbell (DIST 29)
A154: Campbell (DIST 33) | B154: CAMP | C154: Campbell (DIST 33) | D154: 1.2916 | E154: 0.278 | F154: 1.2379 | G154: 0.278 | H154: CAMP | I154: 0.0537 | J154: 152 | K154: Campbell (DIST 33)
A155: Campbell (DIST 35) | B155: CAMP | C155: Campbell (DIST 35) | D155: 1.4346 | E155: 0.278 | F155: 1.3919 | G155: 0.278 | H155: CAMP | I155: 0.0427 | J155: 153 | K155: Campbell (DIST 35)
A156: Campbell (DIST 37) | B156: CAMP | C156: Campbell (DIST 37) | D156: 1.2916 | E156: 0.278 | F156: 1.2379 | G156: 0.278 | H156: CAMP | I156: 0.0537 | J156: 154 | K156: Campbell (DIST 37)
A157: Campbell (DIST 38) | B157: CAMP | C157: Campbell (DIST 38) | D157: 1.7046 | E157: 0.098 | F157: 1.6359 | G157: 0.098 | H157: CAMP | I157: 0.0687 | J157: 155 | K157: Campbell (DIST 38)
A158: Campbell (DIST 39) | B158: CAMP | C158: Campbell (DIST 39) | D158: 1.8466 | E158: 0.098 | F158: 1.7899 | G158: 0.098 | H158: CAMP | I158: 0.0567 | J158: 156 | K158: Campbell (DIST 39)
A159: Campbell (DIST 45) | B159: CAMP | C159: Campbell (DIST 45) | D159: 1.3116 | E159: 0.298 | F159: 1.2579 | G159: 0.298 | H159: CAMP | I159: 0.0537 | J159: 157 | K159: Campbell (DIST 45)
A160: Campbell (DIST 47) | B160: CAMP | C160: Campbell (DIST 47) | D160: 1.3116 | E160: 0.298 | F160: 1.2579 | G160: 0.298 | H160: CAMP | I160: 0.0537 | J160: 158 | K160: Campbell (DIST 47)
A161: Campbell (DIST 48) | B161: CAMP | C161: Campbell (DIST 48) | D161: 1.4816 | E161: 0.298 | F161: 1.4049 | G161: 0.298 | H161: CAMP | I161: 0.0767 | J161: 159 | K161: Campbell (DIST 48)
A162: (DIST UNKNOWN) | B162: CAMP | C162: Campbell (UNKNOWN) | D162: 1.1116 | E162: 0.098 | F162: 0.6839 | G162: 0.098 | H162: CAMP | I162: 0.4277 | J162: 160 | K162: Campbell (UNKNOWN)
A163: Carlisle (DIST 00) | B163: CARL | C163: Carlisle (DIST 00) | D163: 0.99 | E163: 0.032 | F163: 0.9998 | G163: 0.032 | H163: CARL | I163: -0.0098 | J163: 161 | K163: Carlisle (DIST 00)
A164: Carlisle (DIST 01) | B164: CARL | C164: Carlisle (DIST 01) | D164: 1.26 | E164: 0.032 | F164: 1.2698 | G164: 0.032 | H164: CARL | I164: -0.0098 | J164: 162 | K164: Carlisle (DIST 01)
A165: Carlisle (DIST 02) | B165: CARL | C165: Carlisle (DIST 02) | D165: 1.404 | E165: 0.032 | F165: 1.4138 | G165: 0.032 | H165: CARL | I165: -0.0098 | J165: 163 | K165: Carlisle (DIST 02)
A166: (DIST UNKNOWN) | B166: CARL | C166: Carlisle (UNKNOWN) | D166: 0.99 | E166: 0.032 | F166: 0.9998 | G166: 0.032 | H166: CARL | I166: -0.0098 | J166: 164 | K166: Carlisle (UNKNOWN)
A167: Carroll (DIST 00) | B167: CARR | C167: Carroll (DIST 00) | D167: 1.0105 | E167: 0.2331 | F167: 1.0111 | G167: 0.2331 | H167: CARR | I167: -0.0006 | J167: 165 | K167: Carroll (DIST 00)
A168: Carroll (DIST 01) | B168: CARR | C168: Carroll (DIST 01) | D168: 1.1105 | E168: 0.3331 | F168: 1.1111 | G168: 0.3331 | H168: CARR | I168: -0.0006 | J168: 166 | K168: Carroll (DIST 01)
A169: Carroll (DIST 02) | B169: CARR | C169: Carroll (DIST 02) | D169: 1.3905 | E169: 0.3331 | F169: 1.3911 | G169: 0.3331 | H169: CARR | I169: -0.0006 | J169: 167 | K169: Carroll (DIST 02)
A170: Carroll (DIST 03) | B170: CARR | C170: Carroll (DIST 03) | D170: 1.3115 | E170: 0.2331 | F170: 1.3771 | G170: 0.2331 | H170: CARR | I170: -0.0656 | J170: 168 | K170: Carroll (DIST 03)
A171: Carroll (DIST 04) | B171: CARR | C171: Carroll (DIST 04) | D171: 1.2245 | E171: 0.2331 | F171: 1.2251 | G171: 0.2331 | H171: CARR | I171: -0.0006 | J171: 169 | K171: Carroll (DIST 04)
A172: Carroll (DIST 05) | B172: CARR | C172: Carroll (DIST 05) | D172: 1.3105 | E172: 0.2331 | F172: 1.3111 | G172: 0.2331 | H172: CARR | I172: -0.0006 | J172: 170 | K172: Carroll (DIST 05)
A173: Carroll (DIST 06) | B173: CARR | C173: Carroll (DIST 06) | D173: 1.2605 | E173: 0.2331 | F173: 1.2611 | G173: 0.2331 | H173: CARR | I173: -0.0006 | J173: 171 | K173: Carroll (DIST 06)
A174: (DIST UNKNOWN) | B174: CARR | C174: Carroll (UNKNOWN) | D174: 1.0105 | E174: 0.2331 | F174: 1.0111 | G174: 0.2331 | H174: CARR | I174: -0.0006 | J174: 172 | K174: Carroll (UNKNOWN)
A175: Carter (DIST 00) | B175: CART | C175: Carter (DIST 00) | D175: 0.7655 | E175: 0.16 | F175: 0.7756 | G175: 0.16 | H175: CART | I175: -0.0101 | J175: 173 | K175: Carter (DIST 00)
A176: Carter (DIST 01) | B176: CART | C176: Carter (DIST 01) | D176: 0.9574 | E176: 0.16 | F176: 0.9696 | G176: 0.16 | H176: CART | I176: -0.0122 | J176: 174 | K176: Carter (DIST 01)
A177: Carter (DIST 02) | B177: CART | C177: Carter (DIST 02) | D177: 0.9885 | E177: 0.16 | F177: 1.0076 | G177: 0.16 | H177: CART | I177: -0.0191 | J177: 175 | K177: Carter (DIST 02)
A178: (DIST UNKNOWN) | B178: CART | C178: Carter (UNKNOWN) | D178: 0.7655 | E178: 0.16 | F178: 0.7756 | G178: 0.16 | H178: CART | I178: -0.0101 | J178: 176 | K178: Carter (UNKNOWN)
A179: Casey (DIST 00) | B179: CASE | C179: Casey (DIST 00) | D179: 0.8138 | E179: 0.245 | F179: 0.8431 | G179: 0.245 | H179: CASE | I179: -0.0293 | J179: 177 | K179: Casey (DIST 00)
A180: Casey (DIST 01) | B180: CASE | C180: Casey (DIST 01) | D180: 1.0258 | E180: 0.245 | F180: 1.0521 | G180: 0.245 | H180: CASE | I180: -0.0263 | J180: 178 | K180: Casey (DIST 01)
A181: (DIST UNKNOWN) | B181: CASE | C181: Casey (UNKNOWN) | D181: 0.8138 | E181: 0.245 | F181: 0.8431 | G181: 0.245 | H181: CASE | I181: -0.0293 | J181: 179 | K181: Casey (UNKNOWN)
A182: Christian (DIST 00) | B182: CHRI | C182: Christian (DIST 00) | D182: 0.6804 | E182: 0.0648 | F182: 0.6788 | G182: 0.0648 | H182: CHRI | I182: 0.0016 | J182: 180 | K182: Christian (DIST 00)
A183: Christian (DIST 01) | B183: CHRI | C183: Christian (DIST 01) | D183: 0.9194 | E183: 0.0648 | F183: 0.9178 | G183: 0.0648 | H183: CHRI | I183: 0.0016 | J183: 181 | K183: Christian (DIST 01)
A184: Christian (DIST 02) | B184: CHRI | C184: Christian (DIST 02) | D184: 0.9143 | E184: 0.0648 | F184: 1.0031 | G184: 0.0648 | H184: CHRI | I184: -0.0888 | J184: 182 | K184: Christian (DIST 02)
A185: Christian (DIST 03) | B185: CHRI | C185: Christian (DIST 03) | D185: 0.7637 | E185: 0.0648 | F185: 0.7621 | G185: 0.0648 | H185: CHRI | I185: 0.0016 | J185: 183 | K185: Christian (DIST 03)
A186: Christian (DIST 04) | B186: CHRI | C186: Christian (DIST 04) | D186: 0.7802 | E186: 0.0648 | F186: 0.7491 | G186: 0.0648 | H186: CHRI | I186: 0.0311 | J186: 184 | K186: Christian (DIST 04)
A187: Christian (DIST 05) | B187: CHRI | C187: Christian (DIST 05) | D187: 0.9084 | E187: 0.0648 | F187: 0.7822 | G187: 0.0648 | H187: CHRI | I187: 0.1262 | J187: 185 | K187: Christian (DIST 05)
A188: (DIST UNKNOWN) | B188: CHRI | C188: Christian (UNKNOWN) | D188: 0.6804 | E188: 0.0648 | F188: 0.6788 | G188: 0.0648 | H188: CHRI | I188: 0.0016 | J188: 186 | K188: Christian (UNKNOWN)
A189: Clark (DIST 00) | B189: CLAR | C189: Clark (DIST 00) | D189: 0.9518 | E189: 0.1419 | F189: 0.9458 | G189: 0.1419 | H189: CLAR | I189: 0.006 | J189: 187 | K189: Clark (DIST 00)
A190: Clark (DIST 01) | B190: CLAR | C190: Clark (DIST 01) | D190: 1.1048 | E190: 0.1419 | F190: 1.0957 | G190: 0.1419 | H190: CLAR | I190: 0.0091 | J190: 188 | K190: Clark (DIST 01)
A191: (DIST UNKNOWN) | B191: CLAR | C191: Clark (UNKNOWN) | D191: 0.9518 | E191: 0.1419 | F191: 0.9458 | G191: 0.1419 | H191: CLAR | I191: 0.006 | J191: 189 | K191: Clark (UNKNOWN)
A192: Clay (DIST 00) | B192: CLAY | C192: Clay (DIST 00) | D192: 1.1719 | E192: 0.2298 | F192: 1.156 | G192: 0.2298 | H192: CLAY | I192: 0.0159 | J192: 190 | K192: Clay (DIST 00)
A193: Clay (DIST 01) | B193: CLAY | C193: Clay (DIST 01) | D193: 1.5319 | E193: 0.2298 | F193: 1.516 | G193: 0.2298 | H193: CLAY | I193: 0.0159 | J193: 191 | K193: Clay (DIST 01)
A194: (DIST UNKNOWN) | B194: CLAY | C194: Clay (UNKNOWN) | D194: 1.1719 | E194: 0.2298 | F194: 1.156 | G194: 0.2298 | H194: CLAY | I194: 0.0159 | J194: 192 | K194: Clay (UNKNOWN)
A195: Clinton (DIST 00) | B195: CLIN | C195: Clinton (DIST 00) | D195: 0.7634 | E195: 0.0861 | F195: 0.7372 | G195: 0.0861 | H195: CLIN | I195: 0.0262 | J195: 193 | K195: Clinton (DIST 00)
A196: Clinton (DIST 01) | B196: CLIN | C196: Clinton (DIST 01) | D196: 0.9634 | E196: 0.0861 | F196: 0.9372 | G196: 0.0861 | H196: CLIN | I196: 0.0262 | J196: 194 | K196: Clinton (DIST 01)
A197: (DIST UNKNOWN) | B197: CLIN | C197: Clinton (UNKNOWN) | D197: 0.7634 | E197: 0.0861 | F197: 0.7372 | G197: 0.0861 | H197: CLIN | I197: 0.0262 | J197: 195 | K197: Clinton (UNKNOWN)
A198: Crittenden (DIST 01) | B198: CRIT | C198: Crittenden (DIST 01) | D198: 0.7444 | E198: 0.1336 | F198: 0.7466 | G198: 0.1336 | H198: CRIT | I198: -0.0022 | J198: 196 | K198: Crittenden (DIST 01)
A199: Crittenden (DIST 02) | B199: CRIT | C199: Crittenden (DIST 02) | D199: 1.0225 | E199: 0.1336 | F199: 1.0247 | G199: 0.1336 | H199: CRIT | I199: -0.0022 | J199: 197 | K199: Crittenden (DIST 02)
A200: (DIST UNKNOWN) | B200: CRIT | C200: Crittenden (UNKNOWN) | D200: 0.7444 | E200: 0.1336 | F200: 0.7466 | G200: 0.1336 | H200: CRIT | I200: -0.0022 | J200: 198 | K200: Crittenden (UNKNOWN)
... 611 more rows

Sheet Support Schedule Members (hidden)
B2: Schedule Inv / Part III, Line 2 - Supporting Information
B4: Partner/Member/Shareholder/Beneficiary Name | C4: FEIN/SSN | D4: Distributive Share (%) | E4: Distributive Share of Allowable Inventory Tax Credit ($)
D22: Total Dist Share % | E22: Total Dist Share
B23: Totals of above information | D23: =SUM(Welcome!H95:I110)/100 -> 0 | E23: ='Tax Credit Computation'!E79 -> 0
B24: Target goal of above information (per SCHED INV) | D24: 1 | E24: ='Tax Credit Computation'!F50 -> 0
D26: =IF(D23>D24,"ERROR-Cannot exceed 100%","") ->  | E26: =IF(E23>E24,"ERROR-Cannot exceed total allowable credit from SCH INV, Part III, Line 1","") -> 

Sheet Welcome
B1: JFK
C2: 2025 Inventory Tax Credit Computation Worksheet
B3: Click "ENABLE CONTENT" above if you see a security warning.
B4: This program will help you compute and prepare the 2025 Inventory Tax Credit form(s). For your convenience and reference, a link to the SCHEDULE INV and accompanying instructions is provided below. Please read these instructions carefully.
B5: You must have met both the following requirements to receive the credit:
C6: * Paid ad valorem tax on inventory to a taxing jurisdiction within Kentucky, and
C7: * Paid part or all of the inventory tax to the taxing jurisdiction on or before December 31, 2025
B9: Note: The inventory tax credit is NOT based upon all the tangible personal property taxes you paid timely to a Kentucky jurisdiction. It is based upon the portion of tax that is attributable to qualifying INVENTORY. For example, if you timely paid a $1,000 tangible personal property tax bill for 2025 and $200 of the bill was related to qualifying inventory, then only the $200 portion of the bill would qualify for the tax credit calculation.
B11: Your tax bill alone may not distinguish between taxes paid on INVENTORY and taxes paid on other property. This calculator will help you with this issue.
B13: Before continuing, you should gather the following information to help you complete the forms accurately:
C14: 1. | D14: Copies of all 2025 tangible personal property tax returns [Form 62A500] that you filed with a taxing jurisdiction (county) within Kentucky or the Kentucky Department of Revenue.
C15: 2. | D15: Receipts or canceled checks verifying WHEN you paid tax to the taxing jurisdictions. For each tangible personal property tax return, determine if you paid the tax timely and if you paid within a discount period. Remember that if the tax was NOT paid timely, no credit is received.
C16: 3. | D16: Basic information about your business. This includes business name; type of business; Kentucky Corporate Account number; and FEIN or Social Security Number (for Individuals). If you are filing a consolidated income tax return (or your tax return includes disregarded entities) and you filed tangible personal property tax returns for several different entities, you will also need their FEINs.
B17: Below is the first page of a sample tangible personal property tax return (Form 62A500). The highlighted areas are the categories and amounts that should typically be entered into this program. Exceptions can occur under certain circumstances. For instance, if this were an original return AND you later filed an amended return AND you received an ADJUSTED tax bill that was paid timely, then entering the amounts from the original return would NOT be accurate. You should enter only the inventory values on which you ultimately paid tax. Also, IF you know the amount of qualified INVENTORY TAX paid on a specific bill, you can simply enter the amount of tax paid for that location in the INVENTORY CALCULATON OVERRIDE area within the Tax Credit Computation worksheet.
C59: INSTRUCTIONS FOR LAUNCHING THE CALCULATOR
C60: * | D60: Be sure you click "Enable Content" if a security warning appears at the top of the page.
C61: * | D61: Enter your primary FEIN or SSN on the first line below. If applicable, enter FEINs of all other entities included on your income tax return for which you paid Kentucky tangible personal property tax in 2025.
C62: * | D62: Values of INVENTORY are the only amounts relevant to this credit and this calculator.
C63: * | D63: This calculator is Excel-based, so you can save your work as you procede and then come back and finish later.
C64: * | D64: You will have the option to create at least two PDFs which will be saved in the same location as this program. These should be printed and attached to your return. (You will also have the option to create three PDFs if you list more than five recipients of pass-through income. If this occurs, all these should be printed and attached to your return.)
C65: * | D65: After answering/completing the following three (3) sections that are marked with exclamation points (!), click the "ENTER LOCATION DATA" button (further below) to proceed to the input screen where you can begin entering location data to compute the inventory tax credit.
E68: FEIN / Social Security Number
A69: =AVERAGE(B69:B76) -> 7.875 | B69: =LEN(E69) -> 0 | C69: =LEN(E69) -> 0 | D69: Primary FEIN (Parent) / SSN
B70: =IF(C70=0,9,C70) -> 9 | C70: =LEN(TRIM(E70)) -> 0 | D70: =IF(C70=9,"Secondary FEIN",IF(C69=9,"Secondary FEIN (if applicable)","")) -> 
B71: =IF(C71=0,9,C71) -> 9 | C71: 0
B72: 9 | C72: 0
B73: 9 | C73: 0
B74: 9 | C74: 0
B75: 9 | C75: 0
B76: 9 | C76: 0
D86: ARE YOU INCLUDING INVENTORY DATA REGARDING A "Centrally Assessed or Public Service Company? | N86: NO
D90: Is this SCHEDULE INV being prepared for a Pass-through Entity? | J90: NO
D92: If YES, then complete the following section. If NO, skip this section and continue reading below.
A94: =COUNTA(H95:I110) -> 0 | D94: Partner/Member/Shareholder/Beneficiary Name | F94: FEIN/SSN | H94: Distributive Share (%)
A95: =IF(H95="","",TEXT(H95,"#,###.0000")) -> 
A96: =IF(H96="","",TEXT(H96,"#,###.0000")) -> 
A97: =IF(H97="","",TEXT(H97,"#,###.0000")) -> 
A98: =IF(H98="","",TEXT(H98,"#,###.0000")) -> 
A99: =IF(H99="","",TEXT(H99,"#,###.0000")) -> 
A100: =IF(H100="","",TEXT(H100,"#,###.0000")) -> 
K107: Current Distributive Share % is:
K108: =SUM(H95:I110) & "%" -> 0%
D116: Click the "ENTER LOCATION DATA" button to continue to the Tax Credit Calculator.
D118: Then follow the numbered STARS to help guide you along!
B147: To review instructions for Schedule INV, click this link and consult pages 2 and 3.
C152: The following section is here for informational purposes and is a copy of information contained within the 2024 Kentucky Tangible Personal Property Tax (62A500) instruction manual.

Sheet Tax Credit Computation (hidden)
A1: Commonwealth of Kentucky
A2: DEPARTMENT OF REVENUE
A3: 2025 Computation of Inventory Tax Credit
C5: TAXPAYER INFO
A6: Entity Type:
A8: Name of Taxpayer:
A10: Number & Street:
A11: Number & Street:
A12: City, State, Zip:
A14: FEIN / SSN: | C14: =Welcome!E69 -> 0
A16: KY Corp/LLET Account: | D16: =LEN(TRIM(C16)) -> 0
E17: LOCATION # | G17: =IF(G40=1,COLUMN()-6,"") -> 1
E18: COUNTY / DISTRICT
E19: Inv. Calculation OVERRIDE
E20: Tax Paid Timely?
E21: Paid within discount period?
F22: Grand Totals
B23: LINE 31 Merchants Inventory | F23: =SUM(INDIRECT("G23:fz23")) -> 0
B24: LINE 32 Manufacturers Finished Goods | F24: =SUM(INDIRECT("G24:fz24")) -> 0
B25: LINE 33 Manufacturers Raw Materials/Goods in Process | F25: =SUM(INDIRECT("G25:fz25")) -> 0
B26: LINE 34 Line 34 Items (see embedded note) | F26: =SUM(INDIRECT("G26:fz26")) -> 0
B27: New Marine Inventory Under Floor Plan/Salvage Title Veh. | F27: =SUM(INDIRECT("G27:fz27")) -> 0
B28: LINE 35 Goods Stored in Warehouse/Distribution Center | F28: =SUM(INDIRECT("G28:fz28")) -> 0
B29: LINE 36 Inventory in Transit | F29: =SUM(INDIRECT("G29:fz29")) -> 0
C30: Total Inventory Value (per Taxpayer) | D30: =F30 -> 0 | F30: =SUM(F23:F29) -> 0 | G30: 0
B31: Estimated total TIMELY Tangible Personal Property Tax Paid on Inventory (should equal Schedule INV, Part II, Section B2, Line 8) (Before application of the 100% limitation) | D31: =F31 -> 0 | E31: (rounded) | F31: =SUM(INDIRECT("G31:fz31")) -> 0 | G31: =IF(G18="",0,IF(G19>0,IF(G20="YES",G19,0),ROUND(G49,2))) -> 0
E32: FEIN / Taxpayer ID
B35: =SUM($F40:$FT40) -> 1
B36: COUNTY | F36: Grand Totals | G36: ='Tax Credit Computation'!G18 -> 0
B37: PVA PHONE # | E37: Inv Calculation Override Amount | G37: =G19 -> 0
E38: Tax Paid Timely? | G38: =G20 -> 0
B39: =ROUND(SUM(INDIRECT("f41:f47")),0) -> 0 | E39: Paid within discount period? | G39: =G21 -> 0
D40: TEXT READY info for form | G40: 1
A41: 31 | B41: Merchants Inventory | D41: =TEXT('Tax Credit Computation'!F23,"#,##0") -> 0 | E41: =TEXT(F41,"#,##0") -> 0 | F41: =ROUND(SUM(INDIRECT("G41:fz41")),2) -> 0 | G41: =IF(G19>0,0,IF(OR(G$20="NO",G$20=0),0,IF(OR(G$21="YES",G$21=0),(VLOOKUP(G$18,RATES!$R$3:$S$1000,2,FALSE)+0.05)*('Tax Credit Computation'!G23/100)*0.98,(VLOOKUP(G$18,RATES!$R$3:$S$1000,2,FALSE)+0.05)*'Tax Credit Computation'!G23/100))) -> 0
A42: 32 | B42: Manufacturers Finished Goods | D42: =TEXT('Tax Credit Computation'!F24,"#,##0") -> 0 | E42: 0 | F42: =ROUND(SUM(INDIRECT("G42:fz42")),2) -> 0 | G42: =IF(G19>0,0,IF(OR(G$20="NO",G$20=0),0,IF(OR(G$21="YES",G$21=0),(VLOOKUP(G$18,RATES!$R$3:$S$1000,2,FALSE)+0.05)*('Tax Credit Computation'!G24/100)*0.98,(VLOOKUP(G$18,RATES!$R$3:$S$1000,2,FALSE)+0.05)*'Tax Credit Computation'!G24/100))) -> 0
A43: 33 | B43: Manufacturers Raw Materials/Goods in Process | D43: =TEXT('Tax Credit Computation'!F25,"#,##0") -> 0 | E43: 0 | F43: =ROUND(SUM(INDIRECT("G43:fz43")),2) -> 0 | G43: =IF(G19>0,0,IF(OR(G$20="NO",G$20=0),0,IF(OR(G$21="YES",G$21=0),('Tax Credit Computation'!G25*0.05/100)*0.98,'Tax Credit Computation'!G25*0.05/100))) -> 0
A44: 34 | B44: Motor Vehicles/New Farm Machinery Under Floor Plan | D44: =TEXT('Tax Credit Computation'!F26,"#,##0") -> 0 | E44: 0 | F44: =ROUND(SUM(INDIRECT("G44:fz44")),2) -> 0 | G44: =IF(G19>0,0,IF(OR(G$20="NO",G$20=0),0,IF(OR(G$21="YES",G$21=0),('Tax Credit Computation'!G26*0.05/100)*0.98,'Tax Credit Computation'!G26*0.05/100))) -> 0
A45: 35 | B45: Goods Stored in Warehouse/Distribution Center | D45: =TEXT('Tax Credit Computation'!F28,"#,##0") -> 0 | E45: 0 | F45: =ROUND(SUM(INDIRECT("G45:fz45")),2) -> 0 | G45: =IF(G19>0,0,IF(OR(G$20="NO",G$20=0),0,IF(OR(G$21="YES",G$21=0),(VLOOKUP(G$18,RATES!$R$3:$S$1000,2,FALSE)+0.05)*('Tax Credit Computation'!G28/100)*0.98,(VLOOKUP(G$18,RATES!$R$3:$S$1000,2,FALSE)+0.05)*'Tax Credit Computation'!G28/100))) -> 0
A46: 36 | B46: Inventory in Transit | D46: =TEXT('Tax Credit Computation'!F29,"#,##0") -> 0 | E46: 0 | F46: =ROUND(SUM(INDIRECT("G46:fz46")),2) -> 0 | G46: =IF(G19>0,0,IF(OR(G$20="NO",G$20=0),0,IF(OR(G$21="YES",G$21=0),(VLOOKUP(G36,RATES!$R$3:$T$1000,3)*'Tax Credit Computation'!G29/100)*0.98,VLOOKUP(G36,RATES!$R$3:$T$1000,3)*'Tax Credit Computation'!G29/100))) -> 0
B47: Other Tax Paid - Inventory Override | E47: 0 | F47: =ROUND(SUM(INDIRECT("G47:fz47")),2) -> 0 | G47: =IF(G19>0,IF(G20="YES",G19,0),0) -> 0
D48: =TEXT('Tax Credit Computation'!F30,"#,##0") -> 0
B49: ESTIMATED TIMELY TPP TAX PAID (ROUNDED) | E49: =TEXT(F49,"#,##0") -> 0 | F49: =ROUND(SUM(INDIRECT("G49:fz49")),2) -> 0 | G49: =IF(G37>0,IF(G38="YES",ROUND(G37,2),0),ROUND(SUM(G41:G46),2)) -> 0
B50: 100% of Estimated TIMELY TPP Tax Paid (Rounded) | E50: =TEXT(F50,"#,##0") -> 0 | F50: =ROUND(F49*1,2) -> 0
E51: =TEXT(F51,"#,##0") -> 0 | F51: =F44 -> 0
C52: section B2 / Line 8 | E52: =TEXT(F52,"#,##0") -> 0 | F52: =SUM(F41:F46) -> 0
F53: =ROUND(SUM(INDIRECT("G53:fz53")),2) -> 0 | G53: =IF(G19>0,IF(G20="YES",1,0),0) -> 0
C55: The FORM sec 1 / line 31 | E55: =TEXT(F55,"#,##0") -> 0 | F55: =ROUND(SUM(INDIRECT("G55:fz55")),2) -> 0 | G55: =IF(G$53=0,G23,0) -> 0
C56: The FORM sec 1 / line 32 | E56: =TEXT(F56,"#,##0") -> 0 | F56: =ROUND(SUM(INDIRECT("G56:fz56")),2) -> 0 | G56: =IF(G$53=0,G24,0) -> 0
C57: The FORM sec 1 / line 33 | E57: =TEXT(F57,"#,##0") -> 0 | F57: =ROUND(SUM(INDIRECT("G57:fz57")),2) -> 0 | G57: =IF(G$53=0,G25,0) -> 0
C58: The FORM sec 1 / line 34 | E58: =TEXT(F58,"#,##0") -> 0 | F58: =ROUND(SUM(INDIRECT("G58:fz58")),2) -> 0 | G58: =IF(G$53=0,G26,0) -> 0
C60: The FORM sec 1 / line 35 | E60: =TEXT(F60,"#,##0") -> 0 | F60: =ROUND(SUM(INDIRECT("G60:fz60")),2) -> 0 | G60: =IF(G$53=0,G28,0) -> 0
C61: The FORM sec 1 / line 36 | E61: =TEXT(F61,"#,##0") -> 0 | F61: =ROUND(SUM(INDIRECT("G61:fz61")),2) -> 0 | G61: 0
C63: DIST SHARE 1 | D63: =IF(E63>0,TEXT(E63,"#,##0"),"") ->  | E63: =ROUND(F$50*Welcome!H95/100,0) -> 0
C64: DIST SHARE 2 | D64: =IF(E64>0,TEXT(E64,"#,##0"),"") ->  | E64: =ROUND(F$50*Welcome!H96/100,0) -> 0
C65: DIST SHARE 3 | E65: =ROUND(F$50*Welcome!H97/100,0) -> 0
C66: DIST SHARE 4 | E66: =ROUND(F$50*Welcome!H98/100,0) -> 0
C67: DIST SHARE 5 | E67: =ROUND(F$50*Welcome!H99/100,0) -> 0
C68: DIST SHARE 6 | E68: =ROUND(F$50*Welcome!H100/100,0) -> 0
C69: DIST SHARE 7 | E69: =ROUND(F$50*Welcome!H101/100,0) -> 0
C70: DIST SHARE 8 | E70: =ROUND(F$50*Welcome!H102/100,0) -> 0
C71: DIST SHARE 9 | E71: =ROUND(F$50*Welcome!H103/100,0) -> 0
C72: DIST SHARE 10 | E72: =ROUND(F$50*Welcome!H104/100,0) -> 0
C73: DIST SHARE 11 | E73: =ROUND(F$50*Welcome!H105/100,0) -> 0
C74: DIST SHARE 12 | D74: =IF(E74>0,TEXT(E74,"#,##0"),"") ->  | E74: =ROUND(F$50*Welcome!H106/100,0) -> 0
C75: DIST SHARE 13 | E75: =ROUND(F$50*Welcome!H107/100,0) -> 0
C76: DIST SHARE 14 | E76: =ROUND(F$50*Welcome!H108/100,0) -> 0
C77: DIST SHARE 15 | E77: =ROUND(F$50*Welcome!H109/100,0) -> 0
C78: DIST SHARE 16 | E78: =ROUND(F$50*Welcome!H110/100,0) -> 0
C79: TOTAL | E79: =SUM(E63:E78) -> 0
B88: C:\Users\rev3221\Desktop\2019 KY INV TAX CALCULATOR
B107: Computer PATH of most recently saved files:
B108: https://kymsoffice-my.sharepoint.com/personal/joel_king_ky_gov/Documents/Desktop/INV TAX CREDIT CALC 2024 2025
A175: Corporation
A176: Limited Liability Pass-Through Entity
A177: General Partnership
A178: Individual
A179: Other
A185: YES | B185: NO
A186: YES | B186: NO
A187: NO
A205: =Welcome!E69 -> 0
A206: =IF(Welcome!E70=0,"",Welcome!E70) -> 
A207: =IF(Welcome!E71=0,"",Welcome!E71) -> 
A208: =IF(Welcome!E72=0,"",Welcome!E72) -> 
A209: =IF(Welcome!E73=0,"",Welcome!E73) -> 
A210: =IF(Welcome!E74=0,"",Welcome!E74) -> 
A211: =IF(Welcome!E75=0,"",Welcome!E75) -> 
A212: =IF(Welcome!E76=0,"",Welcome!E76) -> 
A225: Adair (DIST 00)
A226: Adair (DIST 01)
A227: Adair (UNKNOWN)
A228: Allen (DIST 00)
A229: Allen (DIST 01)
A230: Allen (UNKNOWN)
A231: Anderson (DIST 00)
A232: Anderson (DIST 02)
A233: Anderson (UNKNOWN)
A234: Ballard (DIST 00)
A235: Ballard (DIST 02)
A236: Ballard (DIST 03)
A237: Ballard (DIST 04)
A238: Ballard (DIST 05)
A239: Ballard (UNKNOWN)
A240: Barren (DIST 01)
A241: Barren (DIST 02)
A242: Barren (DIST 03)
A243: Barren (DIST 04)
A244: Barren (DIST 05)
A245: Barren (DIST 06)
A246: Barren (DIST 07)
A247: Barren (DIST 08)
A248: Barren (UNKNOWN)
A249: Bath (DIST 00)
A250: Bath (DIST 01)
A251: Bath (DIST 02)
A252: Bath (DIST 03)
A253: Bath (UNKNOWN)
A254: Bell (DIST 01)
A255: Bell (DIST 02)
A256: Bell (DIST 03)
A257: Bell (UNKNOWN)
A258: Boone (DIST 02)
A259: Boone (DIST 03)
A260: Boone (DIST 04)
A261: Boone (DIST 05)
A262: Boone (DIST 06)
A263: Boone (DIST 07)
A264: Boone (DIST 08)
A265: Boone (DIST 09)
A266: Boone (DIST 10)
A267: Boone (DIST 11)
A268: Boone (DIST 12)
A269: Boone (DIST 13)
A270: Boone (DIST 14)
A271: Boone (DIST 15)
A272: Boone (UNKNOWN)
A273: Bourbon (DIST 00)
A274: Bourbon (DIST 02)
A275: Bourbon (DIST 03)
A276: Bourbon (DIST 04)
A277: Bourbon (DIST 05)
A278: Bourbon (UNKNOWN)
A279: Boyd (DIST 10)
A280: Boyd (DIST 11)
A281: Boyd (DIST 22)
A282: Boyd (DIST 23)
A283: Boyd (DIST 24)
A284: Boyd (DIST 25)
A285: Boyd (DIST 26)
A286: Boyd (DIST 33)
A287: Boyd (DIST 34)
A288: Boyd (DIST 44)
A289: Boyd (DIST 45)
A290: Boyd (DIST 46)
A291: Boyd (DIST 47)
A292: Boyd (DIST 48)
A293: Boyd (DIST 53)
A294: Boyd (UNKNOWN)
A295: Boyle (DIST 00)
A296: Boyle (DIST 01)
A297: Boyle (DIST 02)
A298: Boyle (DIST 04)
A299: Boyle (DIST 05)
A300: Boyle (DIST 06)
A301: Boyle (UNKNOWN)
A302: Bracken (DIST 00)
A303: Bracken (DIST 01)
A304: Bracken (DIST 02)
A305: Bracken (DIST 03)
A306: Bracken (DIST 04)
A307: Bracken (DIST 05)
A308: Bracken (UNKNOWN)
A309: Breathitt (DIST 01)
A310: Breathitt (DIST 02)
A311: Breathitt (DIST 03)
A312: Breathitt (DIST 04)
A313: Breathitt (UNKNOWN)
A314: Breckinridge (DIST 01)
A315: Breckinridge (DIST 02)
A316: Breckinridge (DIST 03)
A317: Breckinridge (DIST 04)
A318: Breckinridge (DIST 05)
A319: Breckinridge (UNKNOWN)
A320: Bullitt (DIST 00)
A321: Bullitt (DIST 01)
A322: Bullitt (DIST 02)
A323: Bullitt (DIST 03)
A324: Bullitt (DIST 04)
A325: Bullitt (DIST 05)
A326: Bullitt (DIST 06)
A327: Bullitt (DIST 07)
A328: Bullitt (DIST 08)
A329: Bullitt (DIST 09)
A330: Bullitt (DIST 10)
A331: Bullitt (DIST 11)
A332: Bullitt (DIST 12)
A333: Bullitt (DIST 16)
A334: Bullitt (UNKNOWN)
A335: Butler (DIST 00)
A336: Butler (DIST 01)
... 698 more rows

Sheet theFORM (hidden)
A1: 0

Sheet theFORMsupport (hidden)
B3: ="FEDERAL ID: "&'Tax Credit Computation'!C14 -> FEDERAL ID: 0
B4: ="KY Corp/LLET Account: "&'Tax Credit Computation'!C16 -> KY Corp/LLET Account:
B5: ="TAXPAYER NAME: " & 'Tax Credit Computation'!C8 -> TAXPAYER NAME:
B18: County/District | G18: Lee (DIST 01) | H18: Lee (DIST 01) | I18: Woodford (UNKNOWN) | J18: Boone (DIST 09) | K18: Barren (DIST 04) | L18: Anderson (DIST 02)
B19: Inv Tax Calculation Override | I19: 650 | K19: 50000
B20: Tax Paid Timely | G20: YES | H20: YES | I20: YES | J20: YES | K20: YES | L20: YES
B21: Paid Within Discount Period | G21: NO | H21: YES | I21: YES | J21: NO | K21: YES | L21: YES
B22: Total Inventory Value | C22: ALL Location Totals
B23: Line 31 Merchants Inventory | C23: ='Tax Credit Computation'!F23 -> 0 | G23: 5000 | H23: 5000 | J23: 10000 | L23: 100
B24: Line 32 Manufacturers Finished Goods | C24: ='Tax Credit Computation'!F24 -> 0 | G24: 5000 | H24: 5000 | J24: 10000 | L24: 100
B25: Line 33 Manufacturers Raw Materials/Goods in Process | C25: ='Tax Credit Computation'!F25 -> 0 | G25: 5000 | H25: 5000 | J25: 10000 | L25: 100
B26: Line 34 Motor Vehicles & Other Qualified Items | C26: ='Tax Credit Computation'!F26 -> 0 | G26: 5000 | H26: 5000 | J26: 10000 | L26: 100
B27: New Marine Inventory Under Floor Plan/Salvage Title Veh. | C27: ='Tax Credit Computation'!F27 -> 0 | G27: 5000 | H27: 5000
B28: Line 35 Goods Stored in Warehouse/Distribution Center | C28: ='Tax Credit Computation'!F28 -> 0 | G28: 5000 | H28: 5000 | J28: 10000 | L28: 100
B29: Line 36 Inventory in Transit | C29: ='Tax Credit Computation'!F29 -> 0 | G29: 5000 | H29: 5000 | J29: 10000 | L29: 100
B30: TOTAL Inventory Value | C30: ='Tax Credit Computation'!F30 -> 0 | G30: 35000 | H30: 35000 | I30: 0 | J30: 60000 | K30: 0 | L30: 600
B31: FEIN / Tax ID reported under | J31: 666666666 | K31: 333333333 | L31: 111111111
B35: Total Allowable Tax Paid | C35: ALL Location Totals
B36: Line 31 Merchants Inventory | C36: ='Tax Credit Computation'!F41 -> 0 | G36: 80.58 | H36: 78.9684 | I36: 0 | J36: 128.4 | K36: 0 | L36: 1.06281
B37: Line 32 Manufacturers Finished Goods | C37: ='Tax Credit Computation'!F42 -> 0 | G37: 80.58 | H37: 78.9684 | I37: 0 | J37: 128.4 | K37: 0 | L37: 1.06281
B38: Line 33 Manufacturers Raw Materials/Goods in Process | C38: ='Tax Credit Computation'!F43 -> 0 | G38: 2.5 | H38: 2.45 | I38: 0 | J38: 5 | K38: 0 | L38: 0.049
B39: Line 34 Motor Vehicles & Other Qualified Items | C39: ='Tax Credit Computation'!F44 -> 0 | G39: 2.5 | H39: 2.45 | I39: 0 | J39: 5 | K39: 0 | L39: 0.049
B40: Line 35 Goods Stored in Warehouse/Distribution Center | C40: ='Tax Credit Computation'!F45 -> 0 | G40: 80.58 | H40: 78.9684 | I40: 0 | J40: 128.4 | K40: 0 | L40: 1.06281
B41: Line 36 Inventory in Transit | C41: ='Tax Credit Computation'!F46 -> 0 | G41: 7.3 | H41: 7.154 | I41: 0 | J41: 26.4 | K41: 0 | L41: 0.13034
B42: OTHER - Inventory Tax Paid (Inventory Override) | C42: ='Tax Credit Computation'!F47 -> 0 | G42: 0 | H42: 0 | I42: 650 | J42: 0 | K42: 50000 | L42: 0
B43: TOTAL Timely-Paid TPT Inventory Tax (rounded) | C43: =ROUND('Tax Credit Computation'!F49,0) -> 0 | G43: 254.04 | H43: 248.96 | I43: 650 | J43: 421.6 | K43: 50000 | L43: 3.42
B45: Taxpayer Identification Numbers Reported | C45: Potential Issues
B46: =IF(Welcome!E69="","",Welcome!E69) ->  | C46: =IF(SUM(Welcome!H95:I110)>100,"Error-Dist% > 100%","NONE") -> NONE
B47: =IF(Welcome!E70="","",Welcome!E70) ->  | C47: =IF(0.985*'Tax Credit Computation'!E79>'Tax Credit Computation'!F50,"Error-Dist > Credit!","NONE") -> NONE
B48: =IF(Welcome!E71="","",Welcome!E71) -> 
B49: =IF(Welcome!E72="","",Welcome!E72) -> 
B50: =IF(Welcome!E73="","",Welcome!E73) -> 
B51: =IF(Welcome!E74="","",Welcome!E74) -> 
B52: =IF(Welcome!E75="","",Welcome!E75) -> 
B53: =IF(Welcome!E76="","",Welcome!E76) -> 
